Department Family,Entity,Date,Expense Type,Expense Area,Supplier,Transaction Number,Amount,Description,Expenditure Type
HM Land Registry,HM Land Registry,06/05/2021,Employment Agency Staff Costs,DDaT Change Activities,Alexander Mann Solutions Limited,6008006,"4,609.10",Employment Agency Staff Costs,Programme
HM Land Registry,HM Land Registry,06/05/2021,Employment Agency Staff Costs,DDaT Change Activities,Alexander Mann Solutions Limited,6008006,921.82,Employment Agency Staff Costs,Programme
HM Land Registry,HM Land Registry,06/05/2021,Employment Agency Staff Costs,Operations Change Activities,Alexander Mann Solutions Limited,6008006,"3,387.60",Employment Agency Staff Costs,Programme
HM Land Registry,HM Land Registry,06/05/2021,Employment Agency Staff Costs,Operations Change Activities,Alexander Mann Solutions Limited,6008006,"3,387.60",Employment Agency Staff Costs,Programme
HM Land Registry,HM Land Registry,06/05/2021,Employment Agency Staff Costs,Operations Change Activities,Alexander Mann Solutions Limited,6008006,677.52,Employment Agency Staff Costs,Programme
HM Land Registry,HM Land Registry,06/05/2021,Employment Agency Staff Costs,Operations Change Activities,Alexander Mann Solutions Limited,6008006,677.52,Employment Agency Staff Costs,Programme
HM Land Registry,HM Land Registry,06/05/2021,Employment Agency Staff Costs,Office of DDaT,Alexander Mann Solutions Limited,6008006,"2,698.55",Employment Agency Staff Costs,Programme
HM Land Registry,HM Land Registry,06/05/2021,Employment Agency Staff Costs,Office of DDaT,Alexander Mann Solutions Limited,6008006,539.71,Employment Agency Staff Costs,Programme
HM Land Registry,HM Land Registry,06/05/2021,Employment Agency Staff Costs,DDaT Change Activities,Alexander Mann Solutions Limited,6008006,"2,992.75",Employment Agency Staff Costs,Programme
HM Land Registry,HM Land Registry,06/05/2021,Employment Agency Staff Costs,DDaT Change Activities,Alexander Mann Solutions Limited,6008006,598.55,Employment Agency Staff Costs,Programme
HM Land Registry,HM Land Registry,06/05/2021,Employment Agency Staff Costs,Operations Change Activities,Alexander Mann Solutions Limited,6008006,"2,100.20",Employment Agency Staff Costs,Programme
HM Land Registry,HM Land Registry,06/05/2021,Employment Agency Staff Costs,Operations Change Activities,Alexander Mann Solutions Limited,6008006,420.04,Employment Agency Staff Costs,Programme
HM Land Registry,HM Land Registry,06/05/2021,Employment Agency Staff Costs,Finance & Business Services Change Activities,Alexander Mann Solutions Limited,6008006,"1,942.70",Employment Agency Staff Costs,Programme
HM Land Registry,HM Land Registry,06/05/2021,Employment Agency Staff Costs,Finance & Business Services Change Activities,Alexander Mann Solutions Limited,6008006,388.54,Employment Agency Staff Costs,Programme
HM Land Registry,HM Land Registry,06/05/2021,Employment Agency Staff Costs,Risk and Assurance,Alexander Mann Solutions Limited,6008006,"3,412.80",Employment Agency Staff Costs,Programme
HM Land Registry,HM Land Registry,06/05/2021,Employment Agency Staff Costs,Risk and Assurance,Alexander Mann Solutions Limited,6008006,682.56,Employment Agency Staff Costs,Programme
HM Land Registry,HM Land Registry,06/05/2021,Employment Agency Staff Costs,Risk and Assurance,Alexander Mann Solutions Limited,6008006,"9,885.23",Employment Agency Staff Costs,Programme
HM Land Registry,HM Land Registry,06/05/2021,Employment Agency Staff Costs,Risk and Assurance,Alexander Mann Solutions Limited,6008006,"1,977.05",Employment Agency Staff Costs,Programme
HM Land Registry,HM Land Registry,06/05/2021,Employment Agency Staff Costs,DDaT Change Activities,Alexander Mann Solutions Limited,6008006,"2,941.64",Employment Agency Staff Costs,Programme
HM Land Registry,HM Land Registry,06/05/2021,Employment Agency Staff Costs,DDaT Change Activities,Alexander Mann Solutions Limited,6008006,588.33,Employment Agency Staff Costs,Programme
HM Land Registry,HM Land Registry,06/05/2021,Employment Agency Staff Costs,Office of DDaT,Alexander Mann Solutions Limited,6008006,"2,158.84",Employment Agency Staff Costs,Programme
HM Land Registry,HM Land Registry,06/05/2021,Employment Agency Staff Costs,Office of DDaT,Alexander Mann Solutions Limited,6008006,431.77,Employment Agency Staff Costs,Programme
HM Land Registry,HM Land Registry,06/05/2021,Employment Agency Staff Costs,DDaT Change Activities,Alexander Mann Solutions Limited,6008006,"1,470.82",Employment Agency Staff Costs,Programme
HM Land Registry,HM Land Registry,06/05/2021,Employment Agency Staff Costs,DDaT Change Activities,Alexander Mann Solutions Limited,6008006,294.16,Employment Agency Staff Costs,Programme
HM Land Registry,HM Land Registry,06/05/2021,Employment Agency Staff Costs,DDaT Change Activities,Alexander Mann Solutions Limited,6008006,"2,694.70",Employment Agency Staff Costs,Programme
HM Land Registry,HM Land Registry,06/05/2021,Employment Agency Staff Costs,DDaT Change Activities,Alexander Mann Solutions Limited,6008006,538.94,Employment Agency Staff Costs,Programme
HM Land Registry,HM Land Registry,06/05/2021,Employment Agency Staff Costs,Operations Change Activities,Alexander Mann Solutions Limited,6008006,"1,942.70",Employment Agency Staff Costs,Programme
HM Land Registry,HM Land Registry,06/05/2021,Employment Agency Staff Costs,Operations Change Activities,Alexander Mann Solutions Limited,6008006,388.54,Employment Agency Staff Costs,Programme
HM Land Registry,HM Land Registry,06/05/2021,Employment Agency Staff Costs,Operations Change Activities,Alexander Mann Solutions Limited,6008006,"1,942.70",Employment Agency Staff Costs,Programme
HM Land Registry,HM Land Registry,06/05/2021,Employment Agency Staff Costs,Operations Change Activities,Alexander Mann Solutions Limited,6008006,388.54,Employment Agency Staff Costs,Programme
HM Land Registry,HM Land Registry,06/05/2021,Employment Agency Staff Costs,Finance & Business Services Change Activities,Alexander Mann Solutions Limited,6008006,"3,675.35",Employment Agency Staff Costs,Programme
HM Land Registry,HM Land Registry,06/05/2021,Employment Agency Staff Costs,Finance & Business Services Change Activities,Alexander Mann Solutions Limited,6008006,735.07,Employment Agency Staff Costs,Programme
HM Land Registry,HM Land Registry,07/05/2021,Employment Agency Staff Costs,Transformation Change Activities,Alexander Mann Solutions Limited,6008019,"3,592.90",Employment Agency Staff Costs,Programme
HM Land Registry,HM Land Registry,07/05/2021,Employment Agency Staff Costs,Transformation Change Activities,Alexander Mann Solutions Limited,6008019,718.58,Employment Agency Staff Costs,Programme
HM Land Registry,HM Land Registry,07/05/2021,Employment Agency Staff Costs,Transformation Change Activities,Alexander Mann Solutions Limited,6008019,243.45,Employment Agency Staff Costs,Programme
HM Land Registry,HM Land Registry,07/05/2021,Employment Agency Staff Costs,Transformation Change Activities,Alexander Mann Solutions Limited,6008019,48.69,Employment Agency Staff Costs,Programme
HM Land Registry,HM Land Registry,07/05/2021,Employment Agency Staff Costs,Transformation Change Activities,Alexander Mann Solutions Limited,6008019,608.63,Employment Agency Staff Costs,Programme
HM Land Registry,HM Land Registry,07/05/2021,Employment Agency Staff Costs,Transformation Change Activities,Alexander Mann Solutions Limited,6008019,121.73,Employment Agency Staff Costs,Programme
HM Land Registry,HM Land Registry,07/05/2021,Employment Agency Staff Costs,Transformation Change Activities,Alexander Mann Solutions Limited,6008019,608.63,Employment Agency Staff Costs,Programme
HM Land Registry,HM Land Registry,07/05/2021,Employment Agency Staff Costs,Transformation Change Activities,Alexander Mann Solutions Limited,6008019,121.73,Employment Agency Staff Costs,Programme
HM Land Registry,HM Land Registry,07/05/2021,Employment Agency Staff Costs,Operations Change Activities,Alexander Mann Solutions Limited,6008019,"1,185.66",Employment Agency Staff Costs,Programme
HM Land Registry,HM Land Registry,07/05/2021,Employment Agency Staff Costs,Operations Change Activities,Alexander Mann Solutions Limited,6008019,"1,185.66",Employment Agency Staff Costs,Programme
HM Land Registry,HM Land Registry,07/05/2021,Employment Agency Staff Costs,Operations Change Activities,Alexander Mann Solutions Limited,6008019,237.13,Employment Agency Staff Costs,Programme
HM Land Registry,HM Land Registry,07/05/2021,Employment Agency Staff Costs,Operations Change Activities,Alexander Mann Solutions Limited,6008019,237.13,Employment Agency Staff Costs,Programme
HM Land Registry,HM Land Registry,07/05/2021,Employment Agency Staff Costs,Transformation Change Activities,Alexander Mann Solutions Limited,6008019,608.63,Employment Agency Staff Costs,Programme
HM Land Registry,HM Land Registry,07/05/2021,Employment Agency Staff Costs,Transformation Change Activities,Alexander Mann Solutions Limited,6008019,121.73,Employment Agency Staff Costs,Programme
HM Land Registry,HM Land Registry,07/05/2021,Employment Agency Staff Costs,Transformation Change Activities,Alexander Mann Solutions Limited,6008019,608.63,Employment Agency Staff Costs,Programme
HM Land Registry,HM Land Registry,07/05/2021,Employment Agency Staff Costs,Transformation Change Activities,Alexander Mann Solutions Limited,6008019,121.73,Employment Agency Staff Costs,Programme
HM Land Registry,HM Land Registry,07/05/2021,Employment Agency Staff Costs,Operations Change Activities,Alexander Mann Solutions Limited,6008019,"2,669.05",Employment Agency Staff Costs,Programme
HM Land Registry,HM Land Registry,07/05/2021,Employment Agency Staff Costs,Operations Change Activities,Alexander Mann Solutions Limited,6008019,533.81,Employment Agency Staff Costs,Programme
HM Land Registry,HM Land Registry,07/05/2021,Employment Agency Staff Costs,DDaT Change Activities,Alexander Mann Solutions Limited,6008019,"2,694.70",Employment Agency Staff Costs,Programme
HM Land Registry,HM Land Registry,07/05/2021,Employment Agency Staff Costs,DDaT Change Activities,Alexander Mann Solutions Limited,6008019,538.94,Employment Agency Staff Costs,Programme
HM Land Registry,HM Land Registry,07/05/2021,Employment Agency Staff Costs,Transformation Change Activities,Alexander Mann Solutions Limited,6008019,486.90,Employment Agency Staff Costs,Programme
HM Land Registry,HM Land Registry,07/05/2021,Employment Agency Staff Costs,Transformation Change Activities,Alexander Mann Solutions Limited,6008019,97.38,Employment Agency Staff Costs,Programme
HM Land Registry,HM Land Registry,07/05/2021,Employment Agency Staff Costs,Transformation Change Activities,Alexander Mann Solutions Limited,6008019,608.63,Employment Agency Staff Costs,Programme
HM Land Registry,HM Land Registry,07/05/2021,Employment Agency Staff Costs,Transformation Change Activities,Alexander Mann Solutions Limited,6008019,121.73,Employment Agency Staff Costs,Programme
HM Land Registry,HM Land Registry,07/05/2021,Employment Agency Staff Costs,Transformation Change Activities,Alexander Mann Solutions Limited,6008019,608.63,Employment Agency Staff Costs,Programme
HM Land Registry,HM Land Registry,07/05/2021,Employment Agency Staff Costs,Transformation Change Activities,Alexander Mann Solutions Limited,6008019,121.73,Employment Agency Staff Costs,Programme
HM Land Registry,HM Land Registry,07/05/2021,Employment Agency Staff Costs,Finance & Business Services Change Activities,Alexander Mann Solutions Limited,6008019,"3,675.35",Employment Agency Staff Costs,Programme
HM Land Registry,HM Land Registry,07/05/2021,Employment Agency Staff Costs,Finance & Business Services Change Activities,Alexander Mann Solutions Limited,6008019,735.07,Employment Agency Staff Costs,Programme
HM Land Registry,HM Land Registry,07/05/2021,Employment Agency Staff Costs,Transformation Change Activities,Alexander Mann Solutions Limited,6008019,462.56,Employment Agency Staff Costs,Programme
HM Land Registry,HM Land Registry,07/05/2021,Employment Agency Staff Costs,Transformation Change Activities,Alexander Mann Solutions Limited,6008019,92.51,Employment Agency Staff Costs,Programme
HM Land Registry,HM Land Registry,07/05/2021,Employment Agency Staff Costs,Transformation Change Activities,Alexander Mann Solutions Limited,6008019,608.63,Employment Agency Staff Costs,Programme
HM Land Registry,HM Land Registry,07/05/2021,Employment Agency Staff Costs,Transformation Change Activities,Alexander Mann Solutions Limited,6008019,121.73,Employment Agency Staff Costs,Programme
HM Land Registry,HM Land Registry,07/05/2021,Employment Agency Staff Costs,DDaT Change Activities,Alexander Mann Solutions Limited,6008019,"3,675.35",Employment Agency Staff Costs,Programme
HM Land Registry,HM Land Registry,07/05/2021,Employment Agency Staff Costs,DDaT Change Activities,Alexander Mann Solutions Limited,6008019,735.07,Employment Agency Staff Costs,Programme
HM Land Registry,HM Land Registry,07/05/2021,Employment Agency Staff Costs,Operations Change Activities,Alexander Mann Solutions Limited,6008019,"1,247.25",Employment Agency Staff Costs,Programme
HM Land Registry,HM Land Registry,07/05/2021,Employment Agency Staff Costs,Operations Change Activities,Alexander Mann Solutions Limited,6008019,415.75,Employment Agency Staff Costs,Programme
HM Land Registry,HM Land Registry,07/05/2021,Employment Agency Staff Costs,Operations Change Activities,Alexander Mann Solutions Limited,6008019,249.45,Employment Agency Staff Costs,Programme
HM Land Registry,HM Land Registry,07/05/2021,Employment Agency Staff Costs,Operations Change Activities,Alexander Mann Solutions Limited,6008019,83.15,Employment Agency Staff Costs,Programme
HM Land Registry,HM Land Registry,07/05/2021,Employment Agency Staff Costs,Transformation Change Activities,Alexander Mann Solutions Limited,6008019,486.90,Employment Agency Staff Costs,Programme
HM Land Registry,HM Land Registry,07/05/2021,Employment Agency Staff Costs,Transformation Change Activities,Alexander Mann Solutions Limited,6008019,97.38,Employment Agency Staff Costs,Programme
HM Land Registry,HM Land Registry,07/05/2021,Employment Agency Staff Costs,DDaT Change Activities,Alexander Mann Solutions Limited,6008019,"2,304.55",Employment Agency Staff Costs,Programme
HM Land Registry,HM Land Registry,07/05/2021,Employment Agency Staff Costs,DDaT Change Activities,Alexander Mann Solutions Limited,6008019,460.91,Employment Agency Staff Costs,Programme
HM Land Registry,HM Land Registry,07/05/2021,Employment Agency Staff Costs,Operations Change Activities,Alexander Mann Solutions Limited,6008019,338.76,Employment Agency Staff Costs,Programme
HM Land Registry,HM Land Registry,07/05/2021,Employment Agency Staff Costs,Operations Change Activities,Alexander Mann Solutions Limited,6008019,338.76,Employment Agency Staff Costs,Programme
HM Land Registry,HM Land Registry,07/05/2021,Employment Agency Staff Costs,Operations Change Activities,Alexander Mann Solutions Limited,6008019,67.75,Employment Agency Staff Costs,Programme
HM Land Registry,HM Land Registry,07/05/2021,Employment Agency Staff Costs,Operations Change Activities,Alexander Mann Solutions Limited,6008019,67.75,Employment Agency Staff Costs,Programme
HM Land Registry,HM Land Registry,07/05/2021,Employment Agency Staff Costs,Operations Change Activities,Alexander Mann Solutions Limited,6008019,"2,887.75",Employment Agency Staff Costs,Programme
HM Land Registry,HM Land Registry,07/05/2021,Employment Agency Staff Costs,Operations Change Activities,Alexander Mann Solutions Limited,6008019,577.55,Employment Agency Staff Costs,Programme
HM Land Registry,HM Land Registry,07/05/2021,Employment Agency Staff Costs,Operations Change Activities,Alexander Mann Solutions Limited,6008019,"2,078.75",Employment Agency Staff Costs,Programme
HM Land Registry,HM Land Registry,07/05/2021,Employment Agency Staff Costs,Operations Change Activities,Alexander Mann Solutions Limited,6008019,415.75,Employment Agency Staff Costs,Programme
HM Land Registry,HM Land Registry,07/05/2021,Employment Agency Staff Costs,Operations Change Activities,Alexander Mann Solutions Limited,6008019,"2,100.20",Employment Agency Staff Costs,Programme
HM Land Registry,HM Land Registry,07/05/2021,Employment Agency Staff Costs,Operations Change Activities,Alexander Mann Solutions Limited,6008019,420.04,Employment Agency Staff Costs,Programme
HM Land Registry,HM Land Registry,07/05/2021,Employment Agency Staff Costs,Finance & Business Services Change Activities,Alexander Mann Solutions Limited,6008019,"3,649.14",Employment Agency Staff Costs,Programme
HM Land Registry,HM Land Registry,07/05/2021,Employment Agency Staff Costs,Finance & Business Services Change Activities,Alexander Mann Solutions Limited,6008019,729.83,Employment Agency Staff Costs,Programme
HM Land Registry,HM Land Registry,07/05/2021,Employment Agency Staff Costs,Office of DDaT,Alexander Mann Solutions Limited,6008019,"2,698.55",Employment Agency Staff Costs,Programme
HM Land Registry,HM Land Registry,07/05/2021,Employment Agency Staff Costs,Office of DDaT,Alexander Mann Solutions Limited,6008019,539.71,Employment Agency Staff Costs,Programme
HM Land Registry,HM Land Registry,07/05/2021,Employment Agency Staff Costs,Office of DDaT,Alexander Mann Solutions Limited,6008019,"1,567.83",Employment Agency Staff Costs,Programme
HM Land Registry,HM Land Registry,07/05/2021,Employment Agency Staff Costs,Office of DDaT,Alexander Mann Solutions Limited,6008019,313.57,Employment Agency Staff Costs,Programme
HM Land Registry,HM Land Registry,07/05/2021,Employment Agency Staff Costs,Office of DDaT,Alexander Mann Solutions Limited,6008019,600.51,Employment Agency Staff Costs,Programme
HM Land Registry,HM Land Registry,07/05/2021,Employment Agency Staff Costs,Office of DDaT,Alexander Mann Solutions Limited,6008019,120.10,Employment Agency Staff Costs,Programme
HM Land Registry,HM Land Registry,07/05/2021,Employment Agency Staff Costs,Office of DDaT,Alexander Mann Solutions Limited,6008019,608.63,Employment Agency Staff Costs,Programme
HM Land Registry,HM Land Registry,07/05/2021,Employment Agency Staff Costs,Office of DDaT,Alexander Mann Solutions Limited,6008019,121.73,Employment Agency Staff Costs,Programme
HM Land Registry,HM Land Registry,07/05/2021,Employment Agency Staff Costs,DDaT Change Activities,Alexander Mann Solutions Limited,6008019,"3,150.30",Employment Agency Staff Costs,Programme
HM Land Registry,HM Land Registry,07/05/2021,Employment Agency Staff Costs,DDaT Change Activities,Alexander Mann Solutions Limited,6008019,630.06,Employment Agency Staff Costs,Programme
HM Land Registry,HM Land Registry,07/05/2021,Employment Agency Staff Costs,Operations Change Activities,Alexander Mann Solutions Limited,6008019,"-1,260.12",Employment Agency Staff Costs,Programme
HM Land Registry,HM Land Registry,07/05/2021,Employment Agency Staff Costs,Operations Change Activities,Alexander Mann Solutions Limited,6008019,-252.02,Employment Agency Staff Costs,Programme
HM Land Registry,HM Land Registry,10/05/2021,Employment Agency Staff Costs,DDaT Change Activities,Alexander Mann Solutions Limited,6008029,"1,890.18",Employment Agency Staff Costs,Programme
HM Land Registry,HM Land Registry,10/05/2021,Employment Agency Staff Costs,DDaT Change Activities,Alexander Mann Solutions Limited,6008029,378.04,Employment Agency Staff Costs,Programme
HM Land Registry,HM Land Registry,10/05/2021,Employment Agency Staff Costs,Office of DDaT,Alexander Mann Solutions Limited,6008029,608.63,Employment Agency Staff Costs,Programme
HM Land Registry,HM Land Registry,10/05/2021,Employment Agency Staff Costs,Office of DDaT,Alexander Mann Solutions Limited,6008029,121.73,Employment Agency Staff Costs,Programme
HM Land Registry,HM Land Registry,10/05/2021,Employment Agency Staff Costs,DDaT Change Activities,Alexander Mann Solutions Limited,6008029,"3,150.30",Employment Agency Staff Costs,Programme
HM Land Registry,HM Land Registry,10/05/2021,Employment Agency Staff Costs,DDaT Change Activities,Alexander Mann Solutions Limited,6008029,630.06,Employment Agency Staff Costs,Programme
HM Land Registry,HM Land Registry,10/05/2021,Employment Agency Staff Costs,Office of DDaT,Alexander Mann Solutions Limited,6008029,559.94,Employment Agency Staff Costs,Programme
HM Land Registry,HM Land Registry,10/05/2021,Employment Agency Staff Costs,Office of DDaT,Alexander Mann Solutions Limited,6008029,111.99,Employment Agency Staff Costs,Programme
HM Land Registry,HM Land Registry,10/05/2021,Employment Agency Staff Costs,Transformation Change Activities,Alexander Mann Solutions Limited,6008029,"1,217.26",Employment Agency Staff Costs,Programme
HM Land Registry,HM Land Registry,10/05/2021,Employment Agency Staff Costs,Transformation Change Activities,Alexander Mann Solutions Limited,6008029,243.45,Employment Agency Staff Costs,Programme
HM Land Registry,HM Land Registry,10/05/2021,Employment Agency Staff Costs,Transformation Change Activities,Alexander Mann Solutions Limited,6008029,608.63,Employment Agency Staff Costs,Programme
HM Land Registry,HM Land Registry,10/05/2021,Employment Agency Staff Costs,Transformation Change Activities,Alexander Mann Solutions Limited,6008029,121.73,Employment Agency Staff Costs,Programme
HM Land Registry,HM Land Registry,10/05/2021,Employment Agency Staff Costs,Transformation Change Activities,Alexander Mann Solutions Limited,6008029,608.63,Employment Agency Staff Costs,Programme
HM Land Registry,HM Land Registry,10/05/2021,Employment Agency Staff Costs,Transformation Change Activities,Alexander Mann Solutions Limited,6008029,121.73,Employment Agency Staff Costs,Programme
HM Land Registry,HM Land Registry,10/05/2021,Employment Agency Staff Costs,Transformation Change Activities,Alexander Mann Solutions Limited,6008029,608.63,Employment Agency Staff Costs,Programme
HM Land Registry,HM Land Registry,10/05/2021,Employment Agency Staff Costs,Transformation Change Activities,Alexander Mann Solutions Limited,6008029,121.73,Employment Agency Staff Costs,Programme
HM Land Registry,HM Land Registry,10/05/2021,Employment Agency Staff Costs,DDaT Change Activities,Alexander Mann Solutions Limited,6008029,"2,887.75",Employment Agency Staff Costs,Programme
HM Land Registry,HM Land Registry,10/05/2021,Employment Agency Staff Costs,DDaT Change Activities,Alexander Mann Solutions Limited,6008029,577.55,Employment Agency Staff Costs,Programme
HM Land Registry,HM Land Registry,10/05/2021,Employment Agency Staff Costs,Transformation Change Activities,Alexander Mann Solutions Limited,6008029,973.81,Employment Agency Staff Costs,Programme
HM Land Registry,HM Land Registry,10/05/2021,Employment Agency Staff Costs,Transformation Change Activities,Alexander Mann Solutions Limited,6008029,194.76,Employment Agency Staff Costs,Programme
HM Land Registry,HM Land Registry,10/05/2021,Employment Agency Staff Costs,Transformation Change Activities,Alexander Mann Solutions Limited,6008029,"1,095.53",Employment Agency Staff Costs,Programme
HM Land Registry,HM Land Registry,10/05/2021,Employment Agency Staff Costs,Transformation Change Activities,Alexander Mann Solutions Limited,6008029,219.11,Employment Agency Staff Costs,Programme
HM Land Registry,HM Land Registry,10/05/2021,Employment Agency Staff Costs,Transformation Change Activities,Alexander Mann Solutions Limited,6008029,"1,095.53",Employment Agency Staff Costs,Programme
HM Land Registry,HM Land Registry,10/05/2021,Employment Agency Staff Costs,Transformation Change Activities,Alexander Mann Solutions Limited,6008029,219.11,Employment Agency Staff Costs,Programme
HM Land Registry,HM Land Registry,10/05/2021,Employment Agency Staff Costs,Transformation Change Activities,Alexander Mann Solutions Limited,6008029,243.45,Employment Agency Staff Costs,Programme
HM Land Registry,HM Land Registry,10/05/2021,Employment Agency Staff Costs,Transformation Change Activities,Alexander Mann Solutions Limited,6008029,48.69,Employment Agency Staff Costs,Programme
HM Land Registry,HM Land Registry,10/05/2021,Employment Agency Staff Costs,Finance,Alexander Mann Solutions Limited,6008029,"2,432.76",Employment Agency Staff Costs,Programme
HM Land Registry,HM Land Registry,10/05/2021,Employment Agency Staff Costs,Finance,Alexander Mann Solutions Limited,6008029,486.55,Employment Agency Staff Costs,Programme
HM Land Registry,HM Land Registry,10/05/2021,Employment Agency Staff Costs,Transformation Change Activities,Alexander Mann Solutions Limited,6008029,"1,095.53",Employment Agency Staff Costs,Programme
HM Land Registry,HM Land Registry,10/05/2021,Employment Agency Staff Costs,Transformation Change Activities,Alexander Mann Solutions Limited,6008029,219.11,Employment Agency Staff Costs,Programme
HM Land Registry,HM Land Registry,10/05/2021,Employment Agency Staff Costs,Transformation Change Activities,Alexander Mann Solutions Limited,6008029,486.90,Employment Agency Staff Costs,Programme
HM Land Registry,HM Land Registry,10/05/2021,Employment Agency Staff Costs,Transformation Change Activities,Alexander Mann Solutions Limited,6008029,97.38,Employment Agency Staff Costs,Programme
HM Land Registry,HM Land Registry,10/05/2021,Employment Agency Staff Costs,Transformation Change Activities,Alexander Mann Solutions Limited,6008029,486.90,Employment Agency Staff Costs,Programme
HM Land Registry,HM Land Registry,10/05/2021,Employment Agency Staff Costs,Transformation Change Activities,Alexander Mann Solutions Limited,6008029,97.38,Employment Agency Staff Costs,Programme
HM Land Registry,HM Land Registry,10/05/2021,Employment Agency Staff Costs,Operations Change Activities,Alexander Mann Solutions Limited,6008029,"2,669.05",Employment Agency Staff Costs,Programme
HM Land Registry,HM Land Registry,10/05/2021,Employment Agency Staff Costs,Operations Change Activities,Alexander Mann Solutions Limited,6008029,533.81,Employment Agency Staff Costs,Programme
HM Land Registry,HM Land Registry,10/05/2021,Employment Agency Staff Costs,Operations Change Activities,Alexander Mann Solutions Limited,6008029,"2,100.20",Employment Agency Staff Costs,Programme
HM Land Registry,HM Land Registry,10/05/2021,Employment Agency Staff Costs,Operations Change Activities,Alexander Mann Solutions Limited,6008029,420.04,Employment Agency Staff Costs,Programme
HM Land Registry,HM Land Registry,10/05/2021,Employment Agency Staff Costs,Office of DDaT,Alexander Mann Solutions Limited,6008029,600.51,Employment Agency Staff Costs,Programme
HM Land Registry,HM Land Registry,10/05/2021,Employment Agency Staff Costs,Office of DDaT,Alexander Mann Solutions Limited,6008029,120.10,Employment Agency Staff Costs,Programme
HM Land Registry,HM Land Registry,10/05/2021,Employment Agency Staff Costs,Risk and Assurance,Alexander Mann Solutions Limited,6008029,"3,412.80",Employment Agency Staff Costs,Programme
HM Land Registry,HM Land Registry,10/05/2021,Employment Agency Staff Costs,Risk and Assurance,Alexander Mann Solutions Limited,6008029,682.56,Employment Agency Staff Costs,Programme
HM Land Registry,HM Land Registry,10/05/2021,Employment Agency Staff Costs,Transformation Change Activities,Alexander Mann Solutions Limited,6008029,608.63,Employment Agency Staff Costs,Programme
HM Land Registry,HM Land Registry,10/05/2021,Employment Agency Staff Costs,Transformation Change Activities,Alexander Mann Solutions Limited,6008029,121.73,Employment Agency Staff Costs,Programme
HM Land Registry,HM Land Registry,10/05/2021,Employment Agency Staff Costs,Finance & Business Services Change Activities,Alexander Mann Solutions Limited,6008029,"2,940.28",Employment Agency Staff Costs,Programme
HM Land Registry,HM Land Registry,10/05/2021,Employment Agency Staff Costs,Finance & Business Services Change Activities,Alexander Mann Solutions Limited,6008029,588.06,Employment Agency Staff Costs,Programme
HM Land Registry,HM Land Registry,10/05/2021,Employment Agency Staff Costs,Finance & Business Services Change Activities,Alexander Mann Solutions Limited,6008029,"3,675.35",Employment Agency Staff Costs,Programme
HM Land Registry,HM Land Registry,10/05/2021,Employment Agency Staff Costs,Finance & Business Services Change Activities,Alexander Mann Solutions Limited,6008029,735.07,Employment Agency Staff Costs,Programme
HM Land Registry,HM Land Registry,10/05/2021,Employment Agency Staff Costs,DDaT Change Activities,Alexander Mann Solutions Limited,6008029,"2,992.75",Employment Agency Staff Costs,Programme
HM Land Registry,HM Land Registry,10/05/2021,Employment Agency Staff Costs,DDaT Change Activities,Alexander Mann Solutions Limited,6008029,598.55,Employment Agency Staff Costs,Programme
HM Land Registry,HM Land Registry,10/05/2021,Employment Agency Staff Costs,Office of DDaT,Alexander Mann Solutions Limited,6008029,-553.54,Employment Agency Staff Costs,Programme
HM Land Registry,HM Land Registry,10/05/2021,Employment Agency Staff Costs,Office of DDaT,Alexander Mann Solutions Limited,6008029,-110.71,Employment Agency Staff Costs,Programme
HM Land Registry,HM Land Registry,12/05/2021,Employment Agency Staff Costs,Transformation Change Activities,Alexander Mann Solutions Limited,6008051,608.63,Employment Agency Staff Costs,Programme
HM Land Registry,HM Land Registry,12/05/2021,Employment Agency Staff Costs,Transformation Change Activities,Alexander Mann Solutions Limited,6008051,121.73,Employment Agency Staff Costs,Programme
HM Land Registry,HM Land Registry,12/05/2021,Employment Agency Staff Costs,Transformation Change Activities,Alexander Mann Solutions Limited,6008051,219.11,Employment Agency Staff Costs,Programme
HM Land Registry,HM Land Registry,12/05/2021,Employment Agency Staff Costs,Transformation Change Activities,Alexander Mann Solutions Limited,6008051,43.82,Employment Agency Staff Costs,Programme
HM Land Registry,HM Land Registry,12/05/2021,Employment Agency Staff Costs,Transformation Change Activities,Alexander Mann Solutions Limited,6008051,365.18,Employment Agency Staff Costs,Programme
HM Land Registry,HM Land Registry,12/05/2021,Employment Agency Staff Costs,Transformation Change Activities,Alexander Mann Solutions Limited,6008051,73.04,Employment Agency Staff Costs,Programme
HM Land Registry,HM Land Registry,12/05/2021,Employment Agency Staff Costs,Transformation Change Activities,Alexander Mann Solutions Limited,6008051,"3,592.90",Employment Agency Staff Costs,Programme
HM Land Registry,HM Land Registry,12/05/2021,Employment Agency Staff Costs,Transformation Change Activities,Alexander Mann Solutions Limited,6008051,718.58,Employment Agency Staff Costs,Programme
HM Land Registry,HM Land Registry,12/05/2021,Employment Agency Staff Costs,Transformation Change Activities,Alexander Mann Solutions Limited,6008051,608.63,Employment Agency Staff Costs,Programme
HM Land Registry,HM Land Registry,12/05/2021,Employment Agency Staff Costs,Transformation Change Activities,Alexander Mann Solutions Limited,6008051,121.73,Employment Agency Staff Costs,Programme
HM Land Registry,HM Land Registry,12/05/2021,Employment Agency Staff Costs,Transformation Change Activities,Alexander Mann Solutions Limited,6008051,608.63,Employment Agency Staff Costs,Programme
HM Land Registry,HM Land Registry,12/05/2021,Employment Agency Staff Costs,Transformation Change Activities,Alexander Mann Solutions Limited,6008051,121.73,Employment Agency Staff Costs,Programme
HM Land Registry,HM Land Registry,12/05/2021,Employment Agency Staff Costs,Transformation Change Activities,Alexander Mann Solutions Limited,6008051,608.63,Employment Agency Staff Costs,Programme
HM Land Registry,HM Land Registry,12/05/2021,Employment Agency Staff Costs,Transformation Change Activities,Alexander Mann Solutions Limited,6008051,121.73,Employment Agency Staff Costs,Programme
HM Land Registry,HM Land Registry,12/05/2021,Employment Agency Staff Costs,Transformation Change Activities,Alexander Mann Solutions Limited,6008051,608.63,Employment Agency Staff Costs,Programme
HM Land Registry,HM Land Registry,12/05/2021,Employment Agency Staff Costs,Transformation Change Activities,Alexander Mann Solutions Limited,6008051,121.73,Employment Agency Staff Costs,Programme
HM Land Registry,HM Land Registry,12/05/2021,Employment Agency Staff Costs,Transformation Change Activities,Alexander Mann Solutions Limited,6008051,608.63,Employment Agency Staff Costs,Programme
HM Land Registry,HM Land Registry,12/05/2021,Employment Agency Staff Costs,Transformation Change Activities,Alexander Mann Solutions Limited,6008051,121.73,Employment Agency Staff Costs,Programme
HM Land Registry,HM Land Registry,12/05/2021,Employment Agency Staff Costs,Transformation Change Activities,Alexander Mann Solutions Limited,6008051,608.63,Employment Agency Staff Costs,Programme
HM Land Registry,HM Land Registry,12/05/2021,Employment Agency Staff Costs,Transformation Change Activities,Alexander Mann Solutions Limited,6008051,121.73,Employment Agency Staff Costs,Programme
HM Land Registry,HM Land Registry,12/05/2021,Employment Agency Staff Costs,Transformation Change Activities,Alexander Mann Solutions Limited,6008051,608.63,Employment Agency Staff Costs,Programme
HM Land Registry,HM Land Registry,12/05/2021,Employment Agency Staff Costs,Transformation Change Activities,Alexander Mann Solutions Limited,6008051,121.73,Employment Agency Staff Costs,Programme
HM Land Registry,HM Land Registry,12/05/2021,Employment Agency Staff Costs,Transformation Change Activities,Alexander Mann Solutions Limited,6008051,97.38,Employment Agency Staff Costs,Programme
HM Land Registry,HM Land Registry,12/05/2021,Employment Agency Staff Costs,Transformation Change Activities,Alexander Mann Solutions Limited,6008051,486.90,Employment Agency Staff Costs,Programme
HM Land Registry,HM Land Registry,12/05/2021,Employment Agency Staff Costs,Transformation Change Activities,Alexander Mann Solutions Limited,6008051,121.73,Employment Agency Staff Costs,Programme
HM Land Registry,HM Land Registry,12/05/2021,Employment Agency Staff Costs,Transformation Change Activities,Alexander Mann Solutions Limited,6008051,608.63,Employment Agency Staff Costs,Programme
HM Land Registry,HM Land Registry,12/05/2021,Employment Agency Staff Costs,Transformation Change Activities,Alexander Mann Solutions Limited,6008051,97.38,Employment Agency Staff Costs,Programme
HM Land Registry,HM Land Registry,12/05/2021,Employment Agency Staff Costs,Transformation Change Activities,Alexander Mann Solutions Limited,6008051,486.90,Employment Agency Staff Costs,Programme
HM Land Registry,HM Land Registry,12/05/2021,Employment Agency Staff Costs,Transformation Change Activities,Alexander Mann Solutions Limited,6008051,77.90,Employment Agency Staff Costs,Programme
HM Land Registry,HM Land Registry,12/05/2021,Employment Agency Staff Costs,Transformation Change Activities,Alexander Mann Solutions Limited,6008051,389.52,Employment Agency Staff Costs,Programme
HM Land Registry,HM Land Registry,12/05/2021,Employment Agency Staff Costs,Transformation Change Activities,Alexander Mann Solutions Limited,6008051,486.90,Employment Agency Staff Costs,Programme
HM Land Registry,HM Land Registry,12/05/2021,Employment Agency Staff Costs,Transformation Change Activities,Alexander Mann Solutions Limited,6008051,97.38,Employment Agency Staff Costs,Programme
HM Land Registry,HM Land Registry,12/05/2021,Employment Agency Staff Costs,Transformation Change Activities,Alexander Mann Solutions Limited,6008051,486.90,Employment Agency Staff Costs,Programme
HM Land Registry,HM Land Registry,12/05/2021,Employment Agency Staff Costs,Transformation Change Activities,Alexander Mann Solutions Limited,6008051,97.38,Employment Agency Staff Costs,Programme
HM Land Registry,HM Land Registry,12/05/2021,Employment Agency Staff Costs,Transformation Change Activities,Alexander Mann Solutions Limited,6008051,243.45,Employment Agency Staff Costs,Programme
HM Land Registry,HM Land Registry,12/05/2021,Employment Agency Staff Costs,Transformation Change Activities,Alexander Mann Solutions Limited,6008051,48.69,Employment Agency Staff Costs,Programme
HM Land Registry,HM Land Registry,12/05/2021,Employment Agency Staff Costs,DDaT Change Activities,Alexander Mann Solutions Limited,6008051,"2,887.75",Employment Agency Staff Costs,Programme
HM Land Registry,HM Land Registry,12/05/2021,Employment Agency Staff Costs,DDaT Change Activities,Alexander Mann Solutions Limited,6008051,577.55,Employment Agency Staff Costs,Programme
HM Land Registry,HM Land Registry,12/05/2021,Employment Agency Staff Costs,DDaT Change Activities,Alexander Mann Solutions Limited,6008051,"3,675.35",Employment Agency Staff Costs,Programme
HM Land Registry,HM Land Registry,12/05/2021,Employment Agency Staff Costs,DDaT Change Activities,Alexander Mann Solutions Limited,6008051,735.07,Employment Agency Staff Costs,Programme
HM Land Registry,HM Land Registry,12/05/2021,Employment Agency Staff Costs,DDaT Change Activities,Alexander Mann Solutions Limited,6008051,"2,520.24",Employment Agency Staff Costs,Programme
HM Land Registry,HM Land Registry,12/05/2021,Employment Agency Staff Costs,DDaT Change Activities,Alexander Mann Solutions Limited,6008051,504.05,Employment Agency Staff Costs,Programme
HM Land Registry,HM Land Registry,12/05/2021,Employment Agency Staff Costs,DDaT Change Activities,Alexander Mann Solutions Limited,6008051,"3,150.30",Employment Agency Staff Costs,Programme
HM Land Registry,HM Land Registry,12/05/2021,Employment Agency Staff Costs,DDaT Change Activities,Alexander Mann Solutions Limited,6008051,630.06,Employment Agency Staff Costs,Programme
HM Land Registry,HM Land Registry,13/05/2021,Employment Agency Staff Costs,Transformation Change Activities,Alexander Mann Solutions Limited,6008071,486.90,Employment Agency Staff Costs,Programme
HM Land Registry,HM Land Registry,13/05/2021,Employment Agency Staff Costs,Transformation Change Activities,Alexander Mann Solutions Limited,6008071,97.38,Employment Agency Staff Costs,Programme
HM Land Registry,HM Land Registry,13/05/2021,Employment Agency Staff Costs,Transformation Change Activities,Alexander Mann Solutions Limited,6008071,608.63,Employment Agency Staff Costs,Programme
HM Land Registry,HM Land Registry,13/05/2021,Employment Agency Staff Costs,Transformation Change Activities,Alexander Mann Solutions Limited,6008071,121.73,Employment Agency Staff Costs,Programme
HM Land Registry,HM Land Registry,13/05/2021,Employment Agency Staff Costs,Office of DDaT,Alexander Mann Solutions Limited,6008071,"1,567.83",Employment Agency Staff Costs,Programme
HM Land Registry,HM Land Registry,13/05/2021,Employment Agency Staff Costs,Office of DDaT,Alexander Mann Solutions Limited,6008071,313.57,Employment Agency Staff Costs,Programme
HM Land Registry,HM Land Registry,13/05/2021,Employment Agency Staff Costs,DDaT Change Activities,Alexander Mann Solutions Limited,6008071,"2,304.55",Employment Agency Staff Costs,Programme
HM Land Registry,HM Land Registry,13/05/2021,Employment Agency Staff Costs,DDaT Change Activities,Alexander Mann Solutions Limited,6008071,460.91,Employment Agency Staff Costs,Programme
HM Land Registry,HM Land Registry,13/05/2021,Employment Agency Staff Costs,DDaT Change Activities,Alexander Mann Solutions Limited,6008071,"3,677.05",Employment Agency Staff Costs,Programme
HM Land Registry,HM Land Registry,13/05/2021,Employment Agency Staff Costs,DDaT Change Activities,Alexander Mann Solutions Limited,6008071,735.41,Employment Agency Staff Costs,Programme
HM Land Registry,HM Land Registry,13/05/2021,Employment Agency Staff Costs,DDaT Change Activities,Alexander Mann Solutions Limited,6008071,"2,694.70",Employment Agency Staff Costs,Programme
HM Land Registry,HM Land Registry,13/05/2021,Employment Agency Staff Costs,DDaT Change Activities,Alexander Mann Solutions Limited,6008071,538.94,Employment Agency Staff Costs,Programme
HM Land Registry,HM Land Registry,13/05/2021,Employment Agency Staff Costs,Operations Change Activities,Alexander Mann Solutions Limited,6008071,"2,100.20",Employment Agency Staff Costs,Programme
HM Land Registry,HM Land Registry,13/05/2021,Employment Agency Staff Costs,Operations Change Activities,Alexander Mann Solutions Limited,6008071,420.04,Employment Agency Staff Costs,Programme
HM Land Registry,HM Land Registry,13/05/2021,Employment Agency Staff Costs,Office of DDaT,Alexander Mann Solutions Limited,6008071,600.51,Employment Agency Staff Costs,Programme
HM Land Registry,HM Land Registry,13/05/2021,Employment Agency Staff Costs,Office of DDaT,Alexander Mann Solutions Limited,6008071,120.10,Employment Agency Staff Costs,Programme
HM Land Registry,HM Land Registry,13/05/2021,Employment Agency Staff Costs,Office of DDaT,Alexander Mann Solutions Limited,6008071,608.63,Employment Agency Staff Costs,Programme
HM Land Registry,HM Land Registry,13/05/2021,Employment Agency Staff Costs,Office of DDaT,Alexander Mann Solutions Limited,6008071,121.73,Employment Agency Staff Costs,Programme
HM Land Registry,HM Land Registry,13/05/2021,Employment Agency Staff Costs,DDaT Change Activities,Alexander Mann Solutions Limited,6008071,"3,150.30",Employment Agency Staff Costs,Programme
HM Land Registry,HM Land Registry,13/05/2021,Employment Agency Staff Costs,DDaT Change Activities,Alexander Mann Solutions Limited,6008071,630.06,Employment Agency Staff Costs,Programme
HM Land Registry,HM Land Registry,13/05/2021,Employment Agency Staff Costs,Office of DDaT,Alexander Mann Solutions Limited,6008071,600.51,Employment Agency Staff Costs,Programme
HM Land Registry,HM Land Registry,13/05/2021,Employment Agency Staff Costs,Office of DDaT,Alexander Mann Solutions Limited,6008071,120.10,Employment Agency Staff Costs,Programme
HM Land Registry,HM Land Registry,13/05/2021,Employment Agency Staff Costs,Operations Change Activities,Alexander Mann Solutions Limited,6008071,"1,693.80",Employment Agency Staff Costs,Programme
HM Land Registry,HM Land Registry,13/05/2021,Employment Agency Staff Costs,Operations Change Activities,Alexander Mann Solutions Limited,6008071,"1,693.80",Employment Agency Staff Costs,Programme
HM Land Registry,HM Land Registry,13/05/2021,Employment Agency Staff Costs,Operations Change Activities,Alexander Mann Solutions Limited,6008071,338.76,Employment Agency Staff Costs,Programme
HM Land Registry,HM Land Registry,13/05/2021,Employment Agency Staff Costs,Operations Change Activities,Alexander Mann Solutions Limited,6008071,338.76,Employment Agency Staff Costs,Programme
HM Land Registry,HM Land Registry,13/05/2021,Employment Agency Staff Costs,Office of DDaT,Alexander Mann Solutions Limited,6008071,-549.82,Employment Agency Staff Costs,Programme
HM Land Registry,HM Land Registry,13/05/2021,Employment Agency Staff Costs,Office of DDaT,Alexander Mann Solutions Limited,6008071,-109.96,Employment Agency Staff Costs,Programme
HM Land Registry,HM Land Registry,17/05/2021,Employment Agency Staff Costs,Transformation Change Activities,Alexander Mann Solutions Limited,6008086,"2,515.03",Employment Agency Staff Costs,Programme
HM Land Registry,HM Land Registry,17/05/2021,Employment Agency Staff Costs,Transformation Change Activities,Alexander Mann Solutions Limited,6008086,503.01,Employment Agency Staff Costs,Programme
HM Land Registry,HM Land Registry,17/05/2021,Employment Agency Staff Costs,Customer Insight & Experience,Alexander Mann Solutions Limited,6008086,"2,874.34",Employment Agency Staff Costs,Programme
HM Land Registry,HM Land Registry,17/05/2021,Employment Agency Staff Costs,Office of DDaT,Alexander Mann Solutions Limited,6008086,"2,698.55",Employment Agency Staff Costs,Programme
HM Land Registry,HM Land Registry,17/05/2021,Employment Agency Staff Costs,Office of DDaT,Alexander Mann Solutions Limited,6008086,539.71,Employment Agency Staff Costs,Programme
HM Land Registry,HM Land Registry,17/05/2021,Employment Agency Staff Costs,Finance,Alexander Mann Solutions Limited,6008086,"6,081.90",Employment Agency Staff Costs,Programme
HM Land Registry,HM Land Registry,17/05/2021,Employment Agency Staff Costs,Finance,Alexander Mann Solutions Limited,6008086,"1,216.38",Employment Agency Staff Costs,Programme
HM Land Registry,HM Land Registry,17/05/2021,Employment Agency Staff Costs,Transformation Change Activities,Alexander Mann Solutions Limited,6008086,"7,185.80",Employment Agency Staff Costs,Programme
HM Land Registry,HM Land Registry,17/05/2021,Employment Agency Staff Costs,Transformation Change Activities,Alexander Mann Solutions Limited,6008086,"1,437.16",Employment Agency Staff Costs,Programme
HM Land Registry,HM Land Registry,17/05/2021,Employment Agency Staff Costs,Transformation Change Activities,Alexander Mann Solutions Limited,6008086,608.63,Employment Agency Staff Costs,Programme
HM Land Registry,HM Land Registry,17/05/2021,Employment Agency Staff Costs,Transformation Change Activities,Alexander Mann Solutions Limited,6008086,121.73,Employment Agency Staff Costs,Programme
HM Land Registry,HM Land Registry,17/05/2021,Employment Agency Staff Costs,Transformation Change Activities,Alexander Mann Solutions Limited,6008086,608.63,Employment Agency Staff Costs,Programme
HM Land Registry,HM Land Registry,17/05/2021,Employment Agency Staff Costs,Transformation Change Activities,Alexander Mann Solutions Limited,6008086,121.73,Employment Agency Staff Costs,Programme
HM Land Registry,HM Land Registry,17/05/2021,Employment Agency Staff Costs,Transformation Change Activities,Alexander Mann Solutions Limited,6008086,608.63,Employment Agency Staff Costs,Programme
HM Land Registry,HM Land Registry,17/05/2021,Employment Agency Staff Costs,Transformation Change Activities,Alexander Mann Solutions Limited,6008086,121.73,Employment Agency Staff Costs,Programme
HM Land Registry,HM Land Registry,17/05/2021,Employment Agency Staff Costs,Transformation Change Activities,Alexander Mann Solutions Limited,6008086,486.90,Employment Agency Staff Costs,Programme
HM Land Registry,HM Land Registry,17/05/2021,Employment Agency Staff Costs,Transformation Change Activities,Alexander Mann Solutions Limited,6008086,97.38,Employment Agency Staff Costs,Programme
HM Land Registry,HM Land Registry,17/05/2021,Employment Agency Staff Costs,Transformation Change Activities,Alexander Mann Solutions Limited,6008086,608.63,Employment Agency Staff Costs,Programme
HM Land Registry,HM Land Registry,17/05/2021,Employment Agency Staff Costs,Transformation Change Activities,Alexander Mann Solutions Limited,6008086,121.73,Employment Agency Staff Costs,Programme
HM Land Registry,HM Land Registry,17/05/2021,Employment Agency Staff Costs,Transformation Change Activities,Alexander Mann Solutions Limited,6008086,608.63,Employment Agency Staff Costs,Programme
HM Land Registry,HM Land Registry,17/05/2021,Employment Agency Staff Costs,Transformation Change Activities,Alexander Mann Solutions Limited,6008086,121.73,Employment Agency Staff Costs,Programme
HM Land Registry,HM Land Registry,17/05/2021,Employment Agency Staff Costs,Transformation Change Activities,Alexander Mann Solutions Limited,6008086,121.73,Employment Agency Staff Costs,Programme
HM Land Registry,HM Land Registry,17/05/2021,Employment Agency Staff Costs,Transformation Change Activities,Alexander Mann Solutions Limited,6008086,608.63,Employment Agency Staff Costs,Programme
HM Land Registry,HM Land Registry,17/05/2021,Employment Agency Staff Costs,Transformation Change Activities,Alexander Mann Solutions Limited,6008086,608.63,Employment Agency Staff Costs,Programme
HM Land Registry,HM Land Registry,17/05/2021,Employment Agency Staff Costs,Transformation Change Activities,Alexander Mann Solutions Limited,6008086,121.73,Employment Agency Staff Costs,Programme
HM Land Registry,HM Land Registry,17/05/2021,Employment Agency Staff Costs,Transformation Change Activities,Alexander Mann Solutions Limited,6008086,486.90,Employment Agency Staff Costs,Programme
HM Land Registry,HM Land Registry,17/05/2021,Employment Agency Staff Costs,Transformation Change Activities,Alexander Mann Solutions Limited,6008086,97.38,Employment Agency Staff Costs,Programme
HM Land Registry,HM Land Registry,17/05/2021,Employment Agency Staff Costs,Transformation Change Activities,Alexander Mann Solutions Limited,6008086,608.63,Employment Agency Staff Costs,Programme
HM Land Registry,HM Land Registry,17/05/2021,Employment Agency Staff Costs,Transformation Change Activities,Alexander Mann Solutions Limited,6008086,121.73,Employment Agency Staff Costs,Programme
HM Land Registry,HM Land Registry,17/05/2021,Employment Agency Staff Costs,Transformation Change Activities,Alexander Mann Solutions Limited,6008086,608.63,Employment Agency Staff Costs,Programme
HM Land Registry,HM Land Registry,17/05/2021,Employment Agency Staff Costs,Transformation Change Activities,Alexander Mann Solutions Limited,6008086,121.73,Employment Agency Staff Costs,Programme
HM Land Registry,HM Land Registry,17/05/2021,Employment Agency Staff Costs,Transformation Change Activities,Alexander Mann Solutions Limited,6008086,608.63,Employment Agency Staff Costs,Programme
HM Land Registry,HM Land Registry,17/05/2021,Employment Agency Staff Costs,Transformation Change Activities,Alexander Mann Solutions Limited,6008086,121.73,Employment Agency Staff Costs,Programme
HM Land Registry,HM Land Registry,17/05/2021,Employment Agency Staff Costs,DDaT Change Activities,Alexander Mann Solutions Limited,6008086,"2,887.75",Employment Agency Staff Costs,Programme
HM Land Registry,HM Land Registry,17/05/2021,Employment Agency Staff Costs,DDaT Change Activities,Alexander Mann Solutions Limited,6008086,577.55,Employment Agency Staff Costs,Programme
HM Land Registry,HM Land Registry,17/05/2021,Employment Agency Staff Costs,DDaT Change Activities,Alexander Mann Solutions Limited,6008086,"3,675.35",Employment Agency Staff Costs,Programme
HM Land Registry,HM Land Registry,17/05/2021,Employment Agency Staff Costs,DDaT Change Activities,Alexander Mann Solutions Limited,6008086,735.07,Employment Agency Staff Costs,Programme
HM Land Registry,HM Land Registry,17/05/2021,Employment Agency Staff Costs,DDaT Change Activities,Alexander Mann Solutions Limited,6008086,"2,520.24",Employment Agency Staff Costs,Programme
HM Land Registry,HM Land Registry,17/05/2021,Employment Agency Staff Costs,DDaT Change Activities,Alexander Mann Solutions Limited,6008086,504.05,Employment Agency Staff Costs,Programme
HM Land Registry,HM Land Registry,17/05/2021,Employment Agency Staff Costs,DDaT Change Activities,Alexander Mann Solutions Limited,6008086,"2,394.20",Employment Agency Staff Costs,Programme
HM Land Registry,HM Land Registry,17/05/2021,Employment Agency Staff Costs,DDaT Change Activities,Alexander Mann Solutions Limited,6008086,478.84,Employment Agency Staff Costs,Programme
HM Land Registry,HM Land Registry,17/05/2021,Employment Agency Staff Costs,Operations Change Activities,Alexander Mann Solutions Limited,6008086,"2,598.98",Employment Agency Staff Costs,Programme
HM Land Registry,HM Land Registry,17/05/2021,Employment Agency Staff Costs,Operations Change Activities,Alexander Mann Solutions Limited,6008086,519.80,Employment Agency Staff Costs,Programme
HM Land Registry,HM Land Registry,17/05/2021,Employment Agency Staff Costs,DDaT Change Activities,Alexander Mann Solutions Limited,6008086,"3,150.30",Employment Agency Staff Costs,Programme
HM Land Registry,HM Land Registry,17/05/2021,Employment Agency Staff Costs,DDaT Change Activities,Alexander Mann Solutions Limited,6008086,630.06,Employment Agency Staff Costs,Programme
HM Land Registry,HM Land Registry,17/05/2021,Employment Agency Staff Costs,Operations Change Activities,Alexander Mann Solutions Limited,6008086,"2,100.20",Employment Agency Staff Costs,Programme
HM Land Registry,HM Land Registry,17/05/2021,Employment Agency Staff Costs,Operations Change Activities,Alexander Mann Solutions Limited,6008086,420.04,Employment Agency Staff Costs,Programme
HM Land Registry,HM Land Registry,17/05/2021,Employment Agency Staff Costs,Operations Change Activities,Alexander Mann Solutions Limited,6008086,"2,078.75",Employment Agency Staff Costs,Programme
HM Land Registry,HM Land Registry,17/05/2021,Employment Agency Staff Costs,Operations Change Activities,Alexander Mann Solutions Limited,6008086,415.75,Employment Agency Staff Costs,Programme
HM Land Registry,HM Land Registry,17/05/2021,Employment Agency Staff Costs,Operations Change Activities,Alexander Mann Solutions Limited,6008086,"2,669.05",Employment Agency Staff Costs,Programme
HM Land Registry,HM Land Registry,17/05/2021,Employment Agency Staff Costs,Operations Change Activities,Alexander Mann Solutions Limited,6008086,533.81,Employment Agency Staff Costs,Programme
HM Land Registry,HM Land Registry,17/05/2021,Employment Agency Staff Costs,Transformation Change Activities,Alexander Mann Solutions Limited,6008086,945.08,Employment Agency Staff Costs,Programme
HM Land Registry,HM Land Registry,17/05/2021,Employment Agency Staff Costs,Transformation Change Activities,Alexander Mann Solutions Limited,6008086,189.02,Employment Agency Staff Costs,Programme
HM Land Registry,HM Land Registry,19/05/2021,Employment Agency Staff Costs,Transformation Change Activities,Alexander Mann Solutions Limited,6008098,"3,592.90",Employment Agency Staff Costs,Programme
HM Land Registry,HM Land Registry,19/05/2021,Employment Agency Staff Costs,Transformation Change Activities,Alexander Mann Solutions Limited,6008098,718.58,Employment Agency Staff Costs,Programme
HM Land Registry,HM Land Registry,19/05/2021,Employment Agency Staff Costs,Transformation Change Activities,Alexander Mann Solutions Limited,6008098,608.63,Employment Agency Staff Costs,Programme
HM Land Registry,HM Land Registry,19/05/2021,Employment Agency Staff Costs,Transformation Change Activities,Alexander Mann Solutions Limited,6008098,121.73,Employment Agency Staff Costs,Programme
HM Land Registry,HM Land Registry,19/05/2021,Employment Agency Staff Costs,Transformation Change Activities,Alexander Mann Solutions Limited,6008098,608.63,Employment Agency Staff Costs,Programme
HM Land Registry,HM Land Registry,19/05/2021,Employment Agency Staff Costs,Transformation Change Activities,Alexander Mann Solutions Limited,6008098,121.73,Employment Agency Staff Costs,Programme
HM Land Registry,HM Land Registry,19/05/2021,Employment Agency Staff Costs,Finance & Business Services Change Activities,Alexander Mann Solutions Limited,6008098,"7,509.18",Employment Agency Staff Costs,Programme
HM Land Registry,HM Land Registry,19/05/2021,Employment Agency Staff Costs,Finance & Business Services Change Activities,Alexander Mann Solutions Limited,6008098,"1,501.84",Employment Agency Staff Costs,Programme
HM Land Registry,HM Land Registry,19/05/2021,Employment Agency Staff Costs,Office of DDaT,Alexander Mann Solutions Limited,6008098,"2,698.55",Employment Agency Staff Costs,Programme
HM Land Registry,HM Land Registry,19/05/2021,Employment Agency Staff Costs,Office of DDaT,Alexander Mann Solutions Limited,6008098,539.71,Employment Agency Staff Costs,Programme
HM Land Registry,HM Land Registry,19/05/2021,Employment Agency Staff Costs,Office of DDaT,Alexander Mann Solutions Limited,6008098,"1,567.83",Employment Agency Staff Costs,Programme
HM Land Registry,HM Land Registry,19/05/2021,Employment Agency Staff Costs,Office of DDaT,Alexander Mann Solutions Limited,6008098,313.57,Employment Agency Staff Costs,Programme
HM Land Registry,HM Land Registry,19/05/2021,Employment Agency Staff Costs,DDaT Change Activities,Alexander Mann Solutions Limited,6008098,"2,304.55",Employment Agency Staff Costs,Programme
HM Land Registry,HM Land Registry,19/05/2021,Employment Agency Staff Costs,DDaT Change Activities,Alexander Mann Solutions Limited,6008098,460.91,Employment Agency Staff Costs,Programme
HM Land Registry,HM Land Registry,19/05/2021,Employment Agency Staff Costs,DDaT Change Activities,Alexander Mann Solutions Limited,6008098,"3,677.05",Employment Agency Staff Costs,Programme
HM Land Registry,HM Land Registry,19/05/2021,Employment Agency Staff Costs,DDaT Change Activities,Alexander Mann Solutions Limited,6008098,735.41,Employment Agency Staff Costs,Programme
HM Land Registry,HM Land Registry,19/05/2021,Employment Agency Staff Costs,DDaT Change Activities,Alexander Mann Solutions Limited,6008098,"2,694.70",Employment Agency Staff Costs,Programme
HM Land Registry,HM Land Registry,19/05/2021,Employment Agency Staff Costs,DDaT Change Activities,Alexander Mann Solutions Limited,6008098,538.94,Employment Agency Staff Costs,Programme
HM Land Registry,HM Land Registry,19/05/2021,Employment Agency Staff Costs,Operations Change Activities,Alexander Mann Solutions Limited,6008098,"2,100.20",Employment Agency Staff Costs,Programme
HM Land Registry,HM Land Registry,19/05/2021,Employment Agency Staff Costs,Operations Change Activities,Alexander Mann Solutions Limited,6008098,420.04,Employment Agency Staff Costs,Programme
HM Land Registry,HM Land Registry,19/05/2021,Employment Agency Staff Costs,Transformation Change Activities,Alexander Mann Solutions Limited,6008098,"2,155.74",Employment Agency Staff Costs,Programme
HM Land Registry,HM Land Registry,19/05/2021,Employment Agency Staff Costs,Transformation Change Activities,Alexander Mann Solutions Limited,6008098,431.15,Employment Agency Staff Costs,Programme
HM Land Registry,HM Land Registry,19/05/2021,Employment Agency Staff Costs,Office of DDaT,Alexander Mann Solutions Limited,6008098,600.51,Employment Agency Staff Costs,Programme
HM Land Registry,HM Land Registry,19/05/2021,Employment Agency Staff Costs,Office of DDaT,Alexander Mann Solutions Limited,6008098,120.10,Employment Agency Staff Costs,Programme
HM Land Registry,HM Land Registry,19/05/2021,Employment Agency Staff Costs,Office of DDaT,Alexander Mann Solutions Limited,6008098,608.63,Employment Agency Staff Costs,Programme
HM Land Registry,HM Land Registry,19/05/2021,Employment Agency Staff Costs,Office of DDaT,Alexander Mann Solutions Limited,6008098,121.73,Employment Agency Staff Costs,Programme
HM Land Registry,HM Land Registry,19/05/2021,Employment Agency Staff Costs,DDaT Change Activities,Alexander Mann Solutions Limited,6008098,"3,150.30",Employment Agency Staff Costs,Programme
HM Land Registry,HM Land Registry,19/05/2021,Employment Agency Staff Costs,DDaT Change Activities,Alexander Mann Solutions Limited,6008098,630.06,Employment Agency Staff Costs,Programme
HM Land Registry,HM Land Registry,19/05/2021,Employment Agency Staff Costs,Office of DDaT,Alexander Mann Solutions Limited,6008098,"1,601.17",Employment Agency Staff Costs,Programme
HM Land Registry,HM Land Registry,19/05/2021,Employment Agency Staff Costs,Office of DDaT,Alexander Mann Solutions Limited,6008098,320.23,Employment Agency Staff Costs,Programme
HM Land Registry,HM Land Registry,19/05/2021,Employment Agency Staff Costs,Office of DDaT,Alexander Mann Solutions Limited,6008098,486.90,Employment Agency Staff Costs,Programme
HM Land Registry,HM Land Registry,19/05/2021,Employment Agency Staff Costs,Office of DDaT,Alexander Mann Solutions Limited,6008098,97.38,Employment Agency Staff Costs,Programme
HM Land Registry,HM Land Registry,19/05/2021,Employment Agency Staff Costs,Risk and Assurance,Alexander Mann Solutions Limited,6008098,"3,412.80",Employment Agency Staff Costs,Programme
HM Land Registry,HM Land Registry,19/05/2021,Employment Agency Staff Costs,Risk and Assurance,Alexander Mann Solutions Limited,6008098,682.56,Employment Agency Staff Costs,Programme
HM Land Registry,HM Land Registry,19/05/2021,Employment Agency Staff Costs,Risk and Assurance,Alexander Mann Solutions Limited,6008098,"15,680.02",Employment Agency Staff Costs,Programme
HM Land Registry,HM Land Registry,19/05/2021,Employment Agency Staff Costs,Risk and Assurance,Alexander Mann Solutions Limited,6008098,"3,136.00",Employment Agency Staff Costs,Programme
HM Land Registry,HM Land Registry,19/05/2021,Employment Agency Staff Costs,Transformation Change Activities,Alexander Mann Solutions Limited,6008098,"3,592.90",Employment Agency Staff Costs,Programme
HM Land Registry,HM Land Registry,19/05/2021,Employment Agency Staff Costs,Transformation Change Activities,Alexander Mann Solutions Limited,6008098,718.58,Employment Agency Staff Costs,Programme
HM Land Registry,HM Land Registry,19/05/2021,Employment Agency Staff Costs,Office of DDaT,Alexander Mann Solutions Limited,6008098,"3,566.56",Employment Agency Staff Costs,Programme
HM Land Registry,HM Land Registry,19/05/2021,Employment Agency Staff Costs,Office of DDaT,Alexander Mann Solutions Limited,6008098,713.31,Employment Agency Staff Costs,Programme
HM Land Registry,HM Land Registry,24/05/2021,Employment Agency Staff Costs,Transformation Change Activities,Alexander Mann Solutions Limited,6008146,608.63,Employment Agency Staff Costs,Programme
HM Land Registry,HM Land Registry,24/05/2021,Employment Agency Staff Costs,Transformation Change Activities,Alexander Mann Solutions Limited,6008146,121.73,Employment Agency Staff Costs,Programme
HM Land Registry,HM Land Registry,24/05/2021,Employment Agency Staff Costs,Transformation Change Activities,Alexander Mann Solutions Limited,6008146,600.51,Employment Agency Staff Costs,Programme
HM Land Registry,HM Land Registry,24/05/2021,Employment Agency Staff Costs,Transformation Change Activities,Alexander Mann Solutions Limited,6008146,120.10,Employment Agency Staff Costs,Programme
HM Land Registry,HM Land Registry,24/05/2021,Employment Agency Staff Costs,Finance,Alexander Mann Solutions Limited,6008146,"3,040.95",Employment Agency Staff Costs,Programme
HM Land Registry,HM Land Registry,24/05/2021,Employment Agency Staff Costs,Finance,Alexander Mann Solutions Limited,6008146,608.19,Employment Agency Staff Costs,Programme
HM Land Registry,HM Land Registry,24/05/2021,Employment Agency Staff Costs,Transformation Change Activities,Alexander Mann Solutions Limited,6008146,"4,495.73",Employment Agency Staff Costs,Programme
HM Land Registry,HM Land Registry,24/05/2021,Employment Agency Staff Costs,Transformation Change Activities,Alexander Mann Solutions Limited,6008146,899.15,Employment Agency Staff Costs,Programme
HM Land Registry,HM Land Registry,24/05/2021,Employment Agency Staff Costs,Transformation Change Activities,Alexander Mann Solutions Limited,6008146,608.63,Employment Agency Staff Costs,Programme
HM Land Registry,HM Land Registry,24/05/2021,Employment Agency Staff Costs,Transformation Change Activities,Alexander Mann Solutions Limited,6008146,121.73,Employment Agency Staff Costs,Programme
HM Land Registry,HM Land Registry,24/05/2021,Employment Agency Staff Costs,Transformation Change Activities,Alexander Mann Solutions Limited,6008146,495.02,Employment Agency Staff Costs,Programme
HM Land Registry,HM Land Registry,24/05/2021,Employment Agency Staff Costs,Transformation Change Activities,Alexander Mann Solutions Limited,6008146,99.00,Employment Agency Staff Costs,Programme
HM Land Registry,HM Land Registry,24/05/2021,Employment Agency Staff Costs,Transformation Change Activities,Alexander Mann Solutions Limited,6008146,608.63,Employment Agency Staff Costs,Programme
HM Land Registry,HM Land Registry,24/05/2021,Employment Agency Staff Costs,Transformation Change Activities,Alexander Mann Solutions Limited,6008146,121.73,Employment Agency Staff Costs,Programme
HM Land Registry,HM Land Registry,24/05/2021,Employment Agency Staff Costs,Transformation Change Activities,Alexander Mann Solutions Limited,6008146,608.63,Employment Agency Staff Costs,Programme
HM Land Registry,HM Land Registry,24/05/2021,Employment Agency Staff Costs,Transformation Change Activities,Alexander Mann Solutions Limited,6008146,121.73,Employment Agency Staff Costs,Programme
HM Land Registry,HM Land Registry,24/05/2021,Employment Agency Staff Costs,Transformation Change Activities,Alexander Mann Solutions Limited,6008146,486.90,Employment Agency Staff Costs,Programme
HM Land Registry,HM Land Registry,24/05/2021,Employment Agency Staff Costs,Transformation Change Activities,Alexander Mann Solutions Limited,6008146,97.38,Employment Agency Staff Costs,Programme
HM Land Registry,HM Land Registry,24/05/2021,Employment Agency Staff Costs,Transformation Change Activities,Alexander Mann Solutions Limited,6008146,608.63,Employment Agency Staff Costs,Programme
HM Land Registry,HM Land Registry,24/05/2021,Employment Agency Staff Costs,Transformation Change Activities,Alexander Mann Solutions Limited,6008146,121.73,Employment Agency Staff Costs,Programme
HM Land Registry,HM Land Registry,24/05/2021,Employment Agency Staff Costs,Transformation Change Activities,Alexander Mann Solutions Limited,6008146,486.90,Employment Agency Staff Costs,Programme
HM Land Registry,HM Land Registry,24/05/2021,Employment Agency Staff Costs,Transformation Change Activities,Alexander Mann Solutions Limited,6008146,97.38,Employment Agency Staff Costs,Programme
HM Land Registry,HM Land Registry,24/05/2021,Employment Agency Staff Costs,Transformation Change Activities,Alexander Mann Solutions Limited,6008146,608.63,Employment Agency Staff Costs,Programme
HM Land Registry,HM Land Registry,24/05/2021,Employment Agency Staff Costs,Transformation Change Activities,Alexander Mann Solutions Limited,6008146,121.73,Employment Agency Staff Costs,Programme
HM Land Registry,HM Land Registry,24/05/2021,Employment Agency Staff Costs,DDaT Change Activities,Alexander Mann Solutions Limited,6008146,"2,887.75",Employment Agency Staff Costs,Programme
HM Land Registry,HM Land Registry,24/05/2021,Employment Agency Staff Costs,DDaT Change Activities,Alexander Mann Solutions Limited,6008146,577.55,Employment Agency Staff Costs,Programme
HM Land Registry,HM Land Registry,24/05/2021,Employment Agency Staff Costs,DDaT Change Activities,Alexander Mann Solutions Limited,6008146,"2,992.75",Employment Agency Staff Costs,Programme
HM Land Registry,HM Land Registry,24/05/2021,Employment Agency Staff Costs,DDaT Change Activities,Alexander Mann Solutions Limited,6008146,598.55,Employment Agency Staff Costs,Programme
HM Land Registry,HM Land Registry,24/05/2021,Employment Agency Staff Costs,Operations Change Activities,Alexander Mann Solutions Limited,6008146,"2,598.98",Employment Agency Staff Costs,Programme
HM Land Registry,HM Land Registry,24/05/2021,Employment Agency Staff Costs,Operations Change Activities,Alexander Mann Solutions Limited,6008146,519.80,Employment Agency Staff Costs,Programme
HM Land Registry,HM Land Registry,24/05/2021,Employment Agency Staff Costs,DDaT Change Activities,Alexander Mann Solutions Limited,6008146,"3,150.30",Employment Agency Staff Costs,Programme
HM Land Registry,HM Land Registry,24/05/2021,Employment Agency Staff Costs,DDaT Change Activities,Alexander Mann Solutions Limited,6008146,630.06,Employment Agency Staff Costs,Programme
HM Land Registry,HM Land Registry,24/05/2021,Employment Agency Staff Costs,Operations Change Activities,Alexander Mann Solutions Limited,6008146,"2,078.75",Employment Agency Staff Costs,Programme
HM Land Registry,HM Land Registry,24/05/2021,Employment Agency Staff Costs,Operations Change Activities,Alexander Mann Solutions Limited,6008146,415.75,Employment Agency Staff Costs,Programme
HM Land Registry,HM Land Registry,24/05/2021,Employment Agency Staff Costs,Operations Change Activities,Alexander Mann Solutions Limited,6008146,"2,669.05",Employment Agency Staff Costs,Programme
HM Land Registry,HM Land Registry,24/05/2021,Employment Agency Staff Costs,Operations Change Activities,Alexander Mann Solutions Limited,6008146,533.81,Employment Agency Staff Costs,Programme
HM Land Registry,HM Land Registry,24/05/2021,Employment Agency Staff Costs,Operations Change Activities,Alexander Mann Solutions Limited,6008146,"1,942.70",Employment Agency Staff Costs,Programme
HM Land Registry,HM Land Registry,24/05/2021,Employment Agency Staff Costs,Operations Change Activities,Alexander Mann Solutions Limited,6008146,388.54,Employment Agency Staff Costs,Programme
HM Land Registry,HM Land Registry,24/05/2021,Employment Agency Staff Costs,Transformation Change Activities,Alexander Mann Solutions Limited,6008146,"1,240.26",Employment Agency Staff Costs,Programme
HM Land Registry,HM Land Registry,24/05/2021,Employment Agency Staff Costs,Transformation Change Activities,Alexander Mann Solutions Limited,6008146,248.05,Employment Agency Staff Costs,Programme
HM Land Registry,HM Land Registry,24/05/2021,Employment Agency Staff Costs,Transformation Change Activities,Alexander Mann Solutions Limited,6008146,486.90,Employment Agency Staff Costs,Programme
HM Land Registry,HM Land Registry,24/05/2021,Employment Agency Staff Costs,Transformation Change Activities,Alexander Mann Solutions Limited,6008146,97.38,Employment Agency Staff Costs,Programme
HM Land Registry,HM Land Registry,24/05/2021,Employment Agency Staff Costs,Finance & Business Services Change Activities,Alexander Mann Solutions Limited,6008146,"8,212.40",Employment Agency Staff Costs,Programme
HM Land Registry,HM Land Registry,24/05/2021,Employment Agency Staff Costs,Finance & Business Services Change Activities,Alexander Mann Solutions Limited,6008146,"1,642.48",Employment Agency Staff Costs,Programme
HM Land Registry,HM Land Registry,24/05/2021,Employment Agency Staff Costs,Office of DDaT,Alexander Mann Solutions Limited,6008146,"2,158.84",Employment Agency Staff Costs,Programme
HM Land Registry,HM Land Registry,24/05/2021,Employment Agency Staff Costs,Office of DDaT,Alexander Mann Solutions Limited,6008146,431.77,Employment Agency Staff Costs,Programme
HM Land Registry,HM Land Registry,24/05/2021,Employment Agency Staff Costs,Office of DDaT,Alexander Mann Solutions Limited,6008146,"1,567.83",Employment Agency Staff Costs,Programme
HM Land Registry,HM Land Registry,24/05/2021,Employment Agency Staff Costs,Office of DDaT,Alexander Mann Solutions Limited,6008146,313.57,Employment Agency Staff Costs,Programme
HM Land Registry,HM Land Registry,24/05/2021,Employment Agency Staff Costs,DDaT Change Activities,Alexander Mann Solutions Limited,6008146,"2,941.64",Employment Agency Staff Costs,Programme
HM Land Registry,HM Land Registry,24/05/2021,Employment Agency Staff Costs,DDaT Change Activities,Alexander Mann Solutions Limited,6008146,588.33,Employment Agency Staff Costs,Programme
HM Land Registry,HM Land Registry,24/05/2021,Employment Agency Staff Costs,Operations Change Activities,Alexander Mann Solutions Limited,6008146,"1,680.16",Employment Agency Staff Costs,Programme
HM Land Registry,HM Land Registry,24/05/2021,Employment Agency Staff Costs,Operations Change Activities,Alexander Mann Solutions Limited,6008146,336.03,Employment Agency Staff Costs,Programme
HM Land Registry,HM Land Registry,24/05/2021,Employment Agency Staff Costs,Office of DDaT,Alexander Mann Solutions Limited,6008146,97.38,Employment Agency Staff Costs,Programme
HM Land Registry,HM Land Registry,24/05/2021,Employment Agency Staff Costs,Office of DDaT,Alexander Mann Solutions Limited,6008146,19.48,Employment Agency Staff Costs,Programme
HM Land Registry,HM Land Registry,26/05/2021,Employment Agency Staff Costs,Operations Change Activities,Alexander Mann Solutions Limited,6008159,"1,693.80",Employment Agency Staff Costs,Programme
HM Land Registry,HM Land Registry,26/05/2021,Employment Agency Staff Costs,Operations Change Activities,Alexander Mann Solutions Limited,6008159,"1,693.80",Employment Agency Staff Costs,Programme
HM Land Registry,HM Land Registry,26/05/2021,Employment Agency Staff Costs,Operations Change Activities,Alexander Mann Solutions Limited,6008159,338.76,Employment Agency Staff Costs,Programme
HM Land Registry,HM Land Registry,26/05/2021,Employment Agency Staff Costs,Operations Change Activities,Alexander Mann Solutions Limited,6008159,338.76,Employment Agency Staff Costs,Programme
HM Land Registry,HM Land Registry,26/05/2021,Employment Agency Staff Costs,Transformation Change Activities,Alexander Mann Solutions Limited,6008159,"4,430.82",Employment Agency Staff Costs,Programme
HM Land Registry,HM Land Registry,26/05/2021,Employment Agency Staff Costs,Transformation Change Activities,Alexander Mann Solutions Limited,6008159,886.16,Employment Agency Staff Costs,Programme
HM Land Registry,HM Land Registry,26/05/2021,Employment Agency Staff Costs,Transformation Change Activities,Alexander Mann Solutions Limited,6008159,608.63,Employment Agency Staff Costs,Programme
HM Land Registry,HM Land Registry,26/05/2021,Employment Agency Staff Costs,Transformation Change Activities,Alexander Mann Solutions Limited,6008159,121.73,Employment Agency Staff Costs,Programme
HM Land Registry,HM Land Registry,26/05/2021,Employment Agency Staff Costs,Transformation Change Activities,Alexander Mann Solutions Limited,6008159,608.63,Employment Agency Staff Costs,Programme
HM Land Registry,HM Land Registry,26/05/2021,Employment Agency Staff Costs,Transformation Change Activities,Alexander Mann Solutions Limited,6008159,121.73,Employment Agency Staff Costs,Programme
HM Land Registry,HM Land Registry,26/05/2021,Employment Agency Staff Costs,Transformation Change Activities,Alexander Mann Solutions Limited,6008159,559.94,Employment Agency Staff Costs,Programme
HM Land Registry,HM Land Registry,26/05/2021,Employment Agency Staff Costs,Transformation Change Activities,Alexander Mann Solutions Limited,6008159,111.99,Employment Agency Staff Costs,Programme
HM Land Registry,HM Land Registry,26/05/2021,Employment Agency Staff Costs,Transformation Change Activities,Alexander Mann Solutions Limited,6008159,608.63,Employment Agency Staff Costs,Programme
HM Land Registry,HM Land Registry,26/05/2021,Employment Agency Staff Costs,Transformation Change Activities,Alexander Mann Solutions Limited,6008159,121.73,Employment Agency Staff Costs,Programme
HM Land Registry,HM Land Registry,26/05/2021,Employment Agency Staff Costs,Transformation Change Activities,Alexander Mann Solutions Limited,6008159,608.63,Employment Agency Staff Costs,Programme
HM Land Registry,HM Land Registry,26/05/2021,Employment Agency Staff Costs,Transformation Change Activities,Alexander Mann Solutions Limited,6008159,121.73,Employment Agency Staff Costs,Programme
HM Land Registry,HM Land Registry,26/05/2021,Employment Agency Staff Costs,Transformation Change Activities,Alexander Mann Solutions Limited,6008159,608.63,Employment Agency Staff Costs,Programme
HM Land Registry,HM Land Registry,26/05/2021,Employment Agency Staff Costs,Transformation Change Activities,Alexander Mann Solutions Limited,6008159,121.73,Employment Agency Staff Costs,Programme
HM Land Registry,HM Land Registry,26/05/2021,Employment Agency Staff Costs,Transformation Change Activities,Alexander Mann Solutions Limited,6008159,486.90,Employment Agency Staff Costs,Programme
HM Land Registry,HM Land Registry,26/05/2021,Employment Agency Staff Costs,Transformation Change Activities,Alexander Mann Solutions Limited,6008159,97.38,Employment Agency Staff Costs,Programme
HM Land Registry,HM Land Registry,26/05/2021,Employment Agency Staff Costs,Transformation Change Activities,Alexander Mann Solutions Limited,6008159,608.63,Employment Agency Staff Costs,Programme
HM Land Registry,HM Land Registry,26/05/2021,Employment Agency Staff Costs,Transformation Change Activities,Alexander Mann Solutions Limited,6008159,121.73,Employment Agency Staff Costs,Programme
HM Land Registry,HM Land Registry,26/05/2021,Employment Agency Staff Costs,DDaT Change Activities,Alexander Mann Solutions Limited,6008159,"1,260.12",Employment Agency Staff Costs,Programme
HM Land Registry,HM Land Registry,26/05/2021,Employment Agency Staff Costs,DDaT Change Activities,Alexander Mann Solutions Limited,6008159,252.02,Employment Agency Staff Costs,Programme
HM Land Registry,HM Land Registry,26/05/2021,Employment Agency Staff Costs,Finance & Business Services Change Activities,Alexander Mann Solutions Limited,6008159,"20,531.00",Employment Agency Staff Costs,Programme
HM Land Registry,HM Land Registry,26/05/2021,Employment Agency Staff Costs,Finance & Business Services Change Activities,Alexander Mann Solutions Limited,6008159,"4,106.20",Employment Agency Staff Costs,Programme
HM Land Registry,HM Land Registry,26/05/2021,Employment Agency Staff Costs,DDaT Change Activities,Alexander Mann Solutions Limited,6008159,"1,843.64",Employment Agency Staff Costs,Programme
HM Land Registry,HM Land Registry,26/05/2021,Employment Agency Staff Costs,DDaT Change Activities,Alexander Mann Solutions Limited,6008159,368.73,Employment Agency Staff Costs,Programme
HM Land Registry,HM Land Registry,26/05/2021,Employment Agency Staff Costs,DDaT Change Activities,Alexander Mann Solutions Limited,6008159,"2,155.76",Employment Agency Staff Costs,Programme
HM Land Registry,HM Land Registry,26/05/2021,Employment Agency Staff Costs,DDaT Change Activities,Alexander Mann Solutions Limited,6008159,431.15,Employment Agency Staff Costs,Programme
HM Land Registry,HM Land Registry,26/05/2021,Employment Agency Staff Costs,Transformation Change Activities,Alexander Mann Solutions Limited,6008159,"2,874.32",Employment Agency Staff Costs,Programme
HM Land Registry,HM Land Registry,26/05/2021,Employment Agency Staff Costs,Transformation Change Activities,Alexander Mann Solutions Limited,6008159,574.86,Employment Agency Staff Costs,Programme
HM Land Registry,HM Land Registry,26/05/2021,Employment Agency Staff Costs,Office of DDaT,Alexander Mann Solutions Limited,6008159,486.90,Employment Agency Staff Costs,Programme
HM Land Registry,HM Land Registry,26/05/2021,Employment Agency Staff Costs,Office of DDaT,Alexander Mann Solutions Limited,6008159,97.38,Employment Agency Staff Costs,Programme
HM Land Registry,HM Land Registry,26/05/2021,Employment Agency Staff Costs,DDaT Change Activities,Alexander Mann Solutions Limited,6008159,"2,520.24",Employment Agency Staff Costs,Programme
HM Land Registry,HM Land Registry,26/05/2021,Employment Agency Staff Costs,DDaT Change Activities,Alexander Mann Solutions Limited,6008159,504.05,Employment Agency Staff Costs,Programme
HM Land Registry,HM Land Registry,26/05/2021,Employment Agency Staff Costs,Office of DDaT,Alexander Mann Solutions Limited,6008159,357.06,Employment Agency Staff Costs,Programme
HM Land Registry,HM Land Registry,26/05/2021,Employment Agency Staff Costs,Office of DDaT,Alexander Mann Solutions Limited,6008159,71.41,Employment Agency Staff Costs,Programme
HM Land Registry,HM Land Registry,26/05/2021,Employment Agency Staff Costs,Operations Change Activities,Alexander Mann Solutions Limited,6008159,"1,355.04",Employment Agency Staff Costs,Programme
HM Land Registry,HM Land Registry,26/05/2021,Employment Agency Staff Costs,Operations Change Activities,Alexander Mann Solutions Limited,6008159,"1,355.04",Employment Agency Staff Costs,Programme
HM Land Registry,HM Land Registry,26/05/2021,Employment Agency Staff Costs,Operations Change Activities,Alexander Mann Solutions Limited,6008159,271.01,Employment Agency Staff Costs,Programme
HM Land Registry,HM Land Registry,26/05/2021,Employment Agency Staff Costs,Operations Change Activities,Alexander Mann Solutions Limited,6008159,271.01,Employment Agency Staff Costs,Programme
HM Land Registry,HM Land Registry,26/05/2021,Employment Agency Staff Costs,Transformation Change Activities,Alexander Mann Solutions Limited,6008159,"2,874.32",Employment Agency Staff Costs,Programme
HM Land Registry,HM Land Registry,26/05/2021,Employment Agency Staff Costs,Transformation Change Activities,Alexander Mann Solutions Limited,6008159,574.86,Employment Agency Staff Costs,Programme
HM Land Registry,HM Land Registry,26/05/2021,Employment Agency Staff Costs,Transformation Change Activities,Alexander Mann Solutions Limited,6008159,243.45,Employment Agency Staff Costs,Programme
HM Land Registry,HM Land Registry,26/05/2021,Employment Agency Staff Costs,Transformation Change Activities,Alexander Mann Solutions Limited,6008159,48.69,Employment Agency Staff Costs,Programme
HM Land Registry,HM Land Registry,26/05/2021,Employment Agency Staff Costs,Transformation Change Activities,Alexander Mann Solutions Limited,6008159,486.90,Employment Agency Staff Costs,Programme
HM Land Registry,HM Land Registry,26/05/2021,Employment Agency Staff Costs,Transformation Change Activities,Alexander Mann Solutions Limited,6008159,97.38,Employment Agency Staff Costs,Programme
HM Land Registry,HM Land Registry,26/05/2021,Employment Agency Staff Costs,Transformation Change Activities,Alexander Mann Solutions Limited,6008159,486.90,Employment Agency Staff Costs,Programme
HM Land Registry,HM Land Registry,26/05/2021,Employment Agency Staff Costs,Transformation Change Activities,Alexander Mann Solutions Limited,6008159,97.38,Employment Agency Staff Costs,Programme
HM Land Registry,HM Land Registry,26/05/2021,Employment Agency Staff Costs,Transformation Change Activities,Alexander Mann Solutions Limited,6008159,365.18,Employment Agency Staff Costs,Programme
HM Land Registry,HM Land Registry,26/05/2021,Employment Agency Staff Costs,Transformation Change Activities,Alexander Mann Solutions Limited,6008159,73.04,Employment Agency Staff Costs,Programme
HM Land Registry,HM Land Registry,26/05/2021,Employment Agency Staff Costs,Transformation Change Activities,Alexander Mann Solutions Limited,6008159,486.90,Employment Agency Staff Costs,Programme
HM Land Registry,HM Land Registry,26/05/2021,Employment Agency Staff Costs,Transformation Change Activities,Alexander Mann Solutions Limited,6008159,97.38,Employment Agency Staff Costs,Programme
HM Land Registry,HM Land Registry,26/05/2021,Employment Agency Staff Costs,Transformation Change Activities,Alexander Mann Solutions Limited,6008159,486.90,Employment Agency Staff Costs,Programme
HM Land Registry,HM Land Registry,26/05/2021,Employment Agency Staff Costs,Transformation Change Activities,Alexander Mann Solutions Limited,6008159,97.38,Employment Agency Staff Costs,Programme
HM Land Registry,HM Land Registry,26/05/2021,Employment Agency Staff Costs,Transformation Change Activities,Alexander Mann Solutions Limited,6008159,365.18,Employment Agency Staff Costs,Programme
HM Land Registry,HM Land Registry,26/05/2021,Employment Agency Staff Costs,Transformation Change Activities,Alexander Mann Solutions Limited,6008159,73.04,Employment Agency Staff Costs,Programme
HM Land Registry,HM Land Registry,26/05/2021,Employment Agency Staff Costs,Transformation Change Activities,Alexander Mann Solutions Limited,6008159,486.90,Employment Agency Staff Costs,Programme
HM Land Registry,HM Land Registry,26/05/2021,Employment Agency Staff Costs,Transformation Change Activities,Alexander Mann Solutions Limited,6008159,97.38,Employment Agency Staff Costs,Programme
HM Land Registry,HM Land Registry,26/05/2021,Employment Agency Staff Costs,Transformation Change Activities,Alexander Mann Solutions Limited,6008159,486.90,Employment Agency Staff Costs,Programme
HM Land Registry,HM Land Registry,26/05/2021,Employment Agency Staff Costs,Transformation Change Activities,Alexander Mann Solutions Limited,6008159,97.38,Employment Agency Staff Costs,Programme
HM Land Registry,HM Land Registry,26/05/2021,Employment Agency Staff Costs,Office of DDaT,Alexander Mann Solutions Limited,6008159,486.90,Employment Agency Staff Costs,Programme
HM Land Registry,HM Land Registry,26/05/2021,Employment Agency Staff Costs,Office of DDaT,Alexander Mann Solutions Limited,6008159,97.38,Employment Agency Staff Costs,Programme
HM Land Registry,HM Land Registry,26/05/2021,Employment Agency Staff Costs,Office of DDaT,Alexander Mann Solutions Limited,6008159,523.42,Employment Agency Staff Costs,Programme
HM Land Registry,HM Land Registry,26/05/2021,Employment Agency Staff Costs,Office of DDaT,Alexander Mann Solutions Limited,6008159,104.68,Employment Agency Staff Costs,Programme
HM Land Registry,HM Land Registry,26/05/2021,Employment Agency Staff Costs,Transformation Change Activities,Alexander Mann Solutions Limited,6008159,462.56,Employment Agency Staff Costs,Programme
HM Land Registry,HM Land Registry,26/05/2021,Employment Agency Staff Costs,Transformation Change Activities,Alexander Mann Solutions Limited,6008159,92.51,Employment Agency Staff Costs,Programme
HM Land Registry,HM Land Registry,26/05/2021,Employment Agency Staff Costs,Transformation Change Activities,Alexander Mann Solutions Limited,6008159,316.49,Employment Agency Staff Costs,Programme
HM Land Registry,HM Land Registry,26/05/2021,Employment Agency Staff Costs,Transformation Change Activities,Alexander Mann Solutions Limited,6008159,63.30,Employment Agency Staff Costs,Programme
HM Land Registry,HM Land Registry,26/05/2021,Employment Agency Staff Costs,Transformation Change Activities,Alexander Mann Solutions Limited,6008159,486.90,Employment Agency Staff Costs,Programme
HM Land Registry,HM Land Registry,26/05/2021,Employment Agency Staff Costs,Transformation Change Activities,Alexander Mann Solutions Limited,6008159,97.38,Employment Agency Staff Costs,Programme
HM Land Registry,HM Land Registry,26/05/2021,Employment Agency Staff Costs,Transformation Change Activities,Alexander Mann Solutions Limited,6008159,365.18,Employment Agency Staff Costs,Programme
HM Land Registry,HM Land Registry,26/05/2021,Employment Agency Staff Costs,Transformation Change Activities,Alexander Mann Solutions Limited,6008159,73.04,Employment Agency Staff Costs,Programme
HM Land Registry,HM Land Registry,26/05/2021,Employment Agency Staff Costs,Transformation Change Activities,Alexander Mann Solutions Limited,6008159,365.18,Employment Agency Staff Costs,Programme
HM Land Registry,HM Land Registry,26/05/2021,Employment Agency Staff Costs,Transformation Change Activities,Alexander Mann Solutions Limited,6008159,73.04,Employment Agency Staff Costs,Programme
HM Land Registry,HM Land Registry,26/05/2021,Employment Agency Staff Costs,Transformation Change Activities,Alexander Mann Solutions Limited,6008159,365.18,Employment Agency Staff Costs,Programme
HM Land Registry,HM Land Registry,26/05/2021,Employment Agency Staff Costs,Transformation Change Activities,Alexander Mann Solutions Limited,6008159,73.04,Employment Agency Staff Costs,Programme
HM Land Registry,HM Land Registry,26/05/2021,Employment Agency Staff Costs,Transformation Change Activities,Alexander Mann Solutions Limited,6008159,486.90,Employment Agency Staff Costs,Programme
HM Land Registry,HM Land Registry,26/05/2021,Employment Agency Staff Costs,Transformation Change Activities,Alexander Mann Solutions Limited,6008159,97.38,Employment Agency Staff Costs,Programme
HM Land Registry,HM Land Registry,26/05/2021,Employment Agency Staff Costs,Transformation Change Activities,Alexander Mann Solutions Limited,6008159,486.90,Employment Agency Staff Costs,Programme
HM Land Registry,HM Land Registry,26/05/2021,Employment Agency Staff Costs,Transformation Change Activities,Alexander Mann Solutions Limited,6008159,97.38,Employment Agency Staff Costs,Programme
HM Land Registry,HM Land Registry,26/05/2021,Employment Agency Staff Costs,DDaT Change Activities,Alexander Mann Solutions Limited,6008159,"2,310.20",Employment Agency Staff Costs,Programme
HM Land Registry,HM Land Registry,26/05/2021,Employment Agency Staff Costs,DDaT Change Activities,Alexander Mann Solutions Limited,6008159,462.04,Employment Agency Staff Costs,Programme
HM Land Registry,HM Land Registry,26/05/2021,Employment Agency Staff Costs,DDaT Change Activities,Alexander Mann Solutions Limited,6008159,"2,940.28",Employment Agency Staff Costs,Programme
HM Land Registry,HM Land Registry,26/05/2021,Employment Agency Staff Costs,DDaT Change Activities,Alexander Mann Solutions Limited,6008159,588.06,Employment Agency Staff Costs,Programme
HM Land Registry,HM Land Registry,26/05/2021,Employment Agency Staff Costs,DDaT Change Activities,Alexander Mann Solutions Limited,6008159,"1,260.12",Employment Agency Staff Costs,Programme
HM Land Registry,HM Land Registry,26/05/2021,Employment Agency Staff Costs,DDaT Change Activities,Alexander Mann Solutions Limited,6008159,252.02,Employment Agency Staff Costs,Programme
HM Land Registry,HM Land Registry,26/05/2021,Employment Agency Staff Costs,Office of DDaT,Alexander Mann Solutions Limited,6008159,"1,095.53",Employment Agency Staff Costs,Programme
HM Land Registry,HM Land Registry,26/05/2021,Employment Agency Staff Costs,Office of DDaT,Alexander Mann Solutions Limited,6008159,219.11,Employment Agency Staff Costs,Programme
HM Land Registry,HM Land Registry,26/05/2021,Employment Agency Staff Costs,DDaT Change Activities,Alexander Mann Solutions Limited,6008159,"2,394.20",Employment Agency Staff Costs,Programme
HM Land Registry,HM Land Registry,26/05/2021,Employment Agency Staff Costs,DDaT Change Activities,Alexander Mann Solutions Limited,6008159,478.84,Employment Agency Staff Costs,Programme
HM Land Registry,HM Land Registry,26/05/2021,Employment Agency Staff Costs,Operations Change Activities,Alexander Mann Solutions Limited,6008159,"2,310.20",Employment Agency Staff Costs,Programme
HM Land Registry,HM Land Registry,26/05/2021,Employment Agency Staff Costs,Operations Change Activities,Alexander Mann Solutions Limited,6008159,462.04,Employment Agency Staff Costs,Programme
HM Land Registry,HM Land Registry,26/05/2021,Employment Agency Staff Costs,DDaT Change Activities,Alexander Mann Solutions Limited,6008159,"2,520.24",Employment Agency Staff Costs,Programme
HM Land Registry,HM Land Registry,26/05/2021,Employment Agency Staff Costs,DDaT Change Activities,Alexander Mann Solutions Limited,6008159,504.05,Employment Agency Staff Costs,Programme
HM Land Registry,HM Land Registry,26/05/2021,Employment Agency Staff Costs,Operations Change Activities,Alexander Mann Solutions Limited,6008159,"1,680.16",Employment Agency Staff Costs,Programme
HM Land Registry,HM Land Registry,26/05/2021,Employment Agency Staff Costs,Operations Change Activities,Alexander Mann Solutions Limited,6008159,336.03,Employment Agency Staff Costs,Programme
HM Land Registry,HM Land Registry,26/05/2021,Employment Agency Staff Costs,Operations Change Activities,Alexander Mann Solutions Limited,6008159,"1,663.00",Employment Agency Staff Costs,Programme
HM Land Registry,HM Land Registry,26/05/2021,Employment Agency Staff Costs,Operations Change Activities,Alexander Mann Solutions Limited,6008159,332.60,Employment Agency Staff Costs,Programme
HM Land Registry,HM Land Registry,26/05/2021,Employment Agency Staff Costs,Operations Change Activities,Alexander Mann Solutions Limited,6008159,"2,135.24",Employment Agency Staff Costs,Programme
HM Land Registry,HM Land Registry,26/05/2021,Employment Agency Staff Costs,Operations Change Activities,Alexander Mann Solutions Limited,6008159,427.05,Employment Agency Staff Costs,Programme
HM Land Registry,HM Land Registry,26/05/2021,Employment Agency Staff Costs,Operations Change Activities,Alexander Mann Solutions Limited,6008159,"1,554.16",Employment Agency Staff Costs,Programme
HM Land Registry,HM Land Registry,26/05/2021,Employment Agency Staff Costs,Operations Change Activities,Alexander Mann Solutions Limited,6008159,310.83,Employment Agency Staff Costs,Programme
HM Land Registry,HM Land Registry,26/05/2021,Employment Agency Staff Costs,Operations Change Activities,Alexander Mann Solutions Limited,6008159,"5,113.08",Employment Agency Staff Costs,Programme
HM Land Registry,HM Land Registry,26/05/2021,Employment Agency Staff Costs,Operations Change Activities,Alexander Mann Solutions Limited,6008159,"1,022.62",Employment Agency Staff Costs,Programme
HM Land Registry,HM Land Registry,26/05/2021,Employment Agency Staff Costs,Transformation Change Activities,Alexander Mann Solutions Limited,6008159,470.67,Employment Agency Staff Costs,Programme
HM Land Registry,HM Land Registry,26/05/2021,Employment Agency Staff Costs,Transformation Change Activities,Alexander Mann Solutions Limited,6008159,94.13,Employment Agency Staff Costs,Programme
HM Land Registry,HM Land Registry,26/05/2021,Employment Agency Staff Costs,Transformation Change Activities,Alexander Mann Solutions Limited,6008159,486.90,Employment Agency Staff Costs,Programme
HM Land Registry,HM Land Registry,26/05/2021,Employment Agency Staff Costs,Transformation Change Activities,Alexander Mann Solutions Limited,6008159,97.38,Employment Agency Staff Costs,Programme
HM Land Registry,HM Land Registry,26/05/2021,Employment Agency Staff Costs,Transformation Change Activities,Alexander Mann Solutions Limited,6008159,486.90,Employment Agency Staff Costs,Programme
HM Land Registry,HM Land Registry,26/05/2021,Employment Agency Staff Costs,Transformation Change Activities,Alexander Mann Solutions Limited,6008159,97.38,Employment Agency Staff Costs,Programme
HM Land Registry,HM Land Registry,26/05/2021,Employment Agency Staff Costs,Transformation Change Activities,Alexander Mann Solutions Limited,6008159,945.08,Employment Agency Staff Costs,Programme
HM Land Registry,HM Land Registry,26/05/2021,Employment Agency Staff Costs,Transformation Change Activities,Alexander Mann Solutions Limited,6008159,189.02,Employment Agency Staff Costs,Programme
HM Land Registry,HM Land Registry,26/05/2021,Employment Agency Staff Costs,DDaT Change Activities,Alexander Mann Solutions Limited,6008159,"2,272.48",Employment Agency Staff Costs,Programme
HM Land Registry,HM Land Registry,26/05/2021,Employment Agency Staff Costs,DDaT Change Activities,Alexander Mann Solutions Limited,6008159,454.50,Employment Agency Staff Costs,Programme
HM Land Registry,HM Land Registry,26/05/2021,Employment Agency Staff Costs,DDaT Change Activities,Alexander Mann Solutions Limited,6008159,"1,363.48",Employment Agency Staff Costs,Programme
HM Land Registry,HM Land Registry,26/05/2021,Employment Agency Staff Costs,DDaT Change Activities,Alexander Mann Solutions Limited,6008159,272.70,Employment Agency Staff Costs,Programme
HM Land Registry,HM Land Registry,27/05/2021,Employment Agency Staff Costs,Transformation Change Activities,Alexander Mann Solutions Limited,6008183,608.63,Employment Agency Staff Costs,Programme
HM Land Registry,HM Land Registry,27/05/2021,Employment Agency Staff Costs,Transformation Change Activities,Alexander Mann Solutions Limited,6008183,121.73,Employment Agency Staff Costs,Programme
HM Land Registry,HM Land Registry,27/05/2021,Employment Agency Staff Costs,Finance & Business Services Change Activities,Alexander Mann Solutions Limited,6008183,"3,952.20",Employment Agency Staff Costs,Programme
HM Land Registry,HM Land Registry,27/05/2021,Employment Agency Staff Costs,Finance & Business Services Change Activities,Alexander Mann Solutions Limited,6008183,790.44,Employment Agency Staff Costs,Programme
HM Land Registry,HM Land Registry,27/05/2021,Employment Agency Staff Costs,Operations Change Activities,Alexander Mann Solutions Limited,6008183,"2,078.75",Employment Agency Staff Costs,Programme
HM Land Registry,HM Land Registry,27/05/2021,Employment Agency Staff Costs,Operations Change Activities,Alexander Mann Solutions Limited,6008183,415.75,Employment Agency Staff Costs,Programme
HM Land Registry,HM Land Registry,27/05/2021,Employment Agency Staff Costs,Operations Change Activities,Alexander Mann Solutions Limited,6008183,"2,669.05",Employment Agency Staff Costs,Programme
HM Land Registry,HM Land Registry,27/05/2021,Employment Agency Staff Costs,Operations Change Activities,Alexander Mann Solutions Limited,6008183,533.81,Employment Agency Staff Costs,Programme
HM Land Registry,HM Land Registry,27/05/2021,Employment Agency Staff Costs,Operations Change Activities,Alexander Mann Solutions Limited,6008183,"1,942.70",Employment Agency Staff Costs,Programme
HM Land Registry,HM Land Registry,27/05/2021,Employment Agency Staff Costs,Operations Change Activities,Alexander Mann Solutions Limited,6008183,388.54,Employment Agency Staff Costs,Programme
HM Land Registry,HM Land Registry,27/05/2021,Employment Agency Staff Costs,Operations Change Activities,Alexander Mann Solutions Limited,6008183,"3,408.72",Employment Agency Staff Costs,Programme
HM Land Registry,HM Land Registry,27/05/2021,Employment Agency Staff Costs,Operations Change Activities,Alexander Mann Solutions Limited,6008183,681.74,Employment Agency Staff Costs,Programme
HM Land Registry,HM Land Registry,27/05/2021,Employment Agency Staff Costs,Transformation Change Activities,Alexander Mann Solutions Limited,6008183,551.82,Employment Agency Staff Costs,Programme
HM Land Registry,HM Land Registry,27/05/2021,Employment Agency Staff Costs,Transformation Change Activities,Alexander Mann Solutions Limited,6008183,110.36,Employment Agency Staff Costs,Programme
HM Land Registry,HM Land Registry,27/05/2021,Employment Agency Staff Costs,Transformation Change Activities,Alexander Mann Solutions Limited,6008183,"2,362.70",Employment Agency Staff Costs,Programme
HM Land Registry,HM Land Registry,27/05/2021,Employment Agency Staff Costs,Transformation Change Activities,Alexander Mann Solutions Limited,6008183,472.54,Employment Agency Staff Costs,Programme
HM Land Registry,HM Land Registry,27/05/2021,Employment Agency Staff Costs,DDaT Change Activities,Alexander Mann Solutions Limited,6008183,"2,840.60",Employment Agency Staff Costs,Programme
HM Land Registry,HM Land Registry,27/05/2021,Employment Agency Staff Costs,DDaT Change Activities,Alexander Mann Solutions Limited,6008183,568.12,Employment Agency Staff Costs,Programme
HM Land Registry,HM Land Registry,27/05/2021,Employment Agency Staff Costs,DDaT Change Activities,Alexander Mann Solutions Limited,6008183,"3,408.70",Employment Agency Staff Costs,Programme
HM Land Registry,HM Land Registry,27/05/2021,Employment Agency Staff Costs,DDaT Change Activities,Alexander Mann Solutions Limited,6008183,681.74,Employment Agency Staff Costs,Programme
HM Land Registry,HM Land Registry,28/05/2021,Employment Agency Staff Costs,DDaT Change Activities,Alexander Mann Solutions Limited,6008208,"3,677.05",Employment Agency Staff Costs,Programme
HM Land Registry,HM Land Registry,28/05/2021,Employment Agency Staff Costs,DDaT Change Activities,Alexander Mann Solutions Limited,6008208,735.41,Employment Agency Staff Costs,Programme
HM Land Registry,HM Land Registry,28/05/2021,Employment Agency Staff Costs,DDaT Change Activities,Alexander Mann Solutions Limited,6008208,"2,694.70",Employment Agency Staff Costs,Programme
HM Land Registry,HM Land Registry,28/05/2021,Employment Agency Staff Costs,DDaT Change Activities,Alexander Mann Solutions Limited,6008208,538.94,Employment Agency Staff Costs,Programme
HM Land Registry,HM Land Registry,28/05/2021,Employment Agency Staff Costs,Operations Change Activities,Alexander Mann Solutions Limited,6008208,"2,100.20",Employment Agency Staff Costs,Programme
HM Land Registry,HM Land Registry,28/05/2021,Employment Agency Staff Costs,Operations Change Activities,Alexander Mann Solutions Limited,6008208,420.04,Employment Agency Staff Costs,Programme
HM Land Registry,HM Land Registry,28/05/2021,Employment Agency Staff Costs,Office of DDaT,Alexander Mann Solutions Limited,6008208,600.51,Employment Agency Staff Costs,Programme
HM Land Registry,HM Land Registry,28/05/2021,Employment Agency Staff Costs,Office of DDaT,Alexander Mann Solutions Limited,6008208,120.10,Employment Agency Staff Costs,Programme
HM Land Registry,HM Land Registry,28/05/2021,Employment Agency Staff Costs,Office of DDaT,Alexander Mann Solutions Limited,6008208,365.18,Employment Agency Staff Costs,Programme
HM Land Registry,HM Land Registry,28/05/2021,Employment Agency Staff Costs,Office of DDaT,Alexander Mann Solutions Limited,6008208,73.04,Employment Agency Staff Costs,Programme
HM Land Registry,HM Land Registry,28/05/2021,Employment Agency Staff Costs,Office of DDaT,Alexander Mann Solutions Limited,6008208,486.90,Employment Agency Staff Costs,Programme
HM Land Registry,HM Land Registry,28/05/2021,Employment Agency Staff Costs,Office of DDaT,Alexander Mann Solutions Limited,6008208,97.38,Employment Agency Staff Costs,Programme
HM Land Registry,HM Land Registry,28/05/2021,Employment Agency Staff Costs,Operations Change Activities,Alexander Mann Solutions Limited,6008208,"1,693.80",Employment Agency Staff Costs,Programme
HM Land Registry,HM Land Registry,28/05/2021,Employment Agency Staff Costs,Operations Change Activities,Alexander Mann Solutions Limited,6008208,"1,693.80",Employment Agency Staff Costs,Programme
HM Land Registry,HM Land Registry,28/05/2021,Employment Agency Staff Costs,Operations Change Activities,Alexander Mann Solutions Limited,6008208,338.76,Employment Agency Staff Costs,Programme
HM Land Registry,HM Land Registry,28/05/2021,Employment Agency Staff Costs,Operations Change Activities,Alexander Mann Solutions Limited,6008208,338.76,Employment Agency Staff Costs,Programme
HM Land Registry,HM Land Registry,28/05/2021,Employment Agency Staff Costs,Transformation Change Activities,Alexander Mann Solutions Limited,6008208,608.63,Employment Agency Staff Costs,Programme
HM Land Registry,HM Land Registry,28/05/2021,Employment Agency Staff Costs,Transformation Change Activities,Alexander Mann Solutions Limited,6008208,121.73,Employment Agency Staff Costs,Programme
HM Land Registry,HM Land Registry,28/05/2021,Employment Agency Staff Costs,Transformation Change Activities,Alexander Mann Solutions Limited,6008208,486.90,Employment Agency Staff Costs,Programme
HM Land Registry,HM Land Registry,28/05/2021,Employment Agency Staff Costs,Transformation Change Activities,Alexander Mann Solutions Limited,6008208,97.38,Employment Agency Staff Costs,Programme
HM Land Registry,HM Land Registry,28/05/2021,Employment Agency Staff Costs,Transformation Change Activities,Alexander Mann Solutions Limited,6008208,608.63,Employment Agency Staff Costs,Programme
HM Land Registry,HM Land Registry,28/05/2021,Employment Agency Staff Costs,Transformation Change Activities,Alexander Mann Solutions Limited,6008208,121.73,Employment Agency Staff Costs,Programme
HM Land Registry,HM Land Registry,28/05/2021,Employment Agency Staff Costs,Transformation Change Activities,Alexander Mann Solutions Limited,6008208,608.63,Employment Agency Staff Costs,Programme
HM Land Registry,HM Land Registry,28/05/2021,Employment Agency Staff Costs,Transformation Change Activities,Alexander Mann Solutions Limited,6008208,121.73,Employment Agency Staff Costs,Programme
HM Land Registry,HM Land Registry,28/05/2021,Employment Agency Staff Costs,Transformation Change Activities,Alexander Mann Solutions Limited,6008208,600.51,Employment Agency Staff Costs,Programme
HM Land Registry,HM Land Registry,28/05/2021,Employment Agency Staff Costs,Transformation Change Activities,Alexander Mann Solutions Limited,6008208,120.10,Employment Agency Staff Costs,Programme
HM Land Registry,HM Land Registry,28/05/2021,Employment Agency Staff Costs,Transformation Change Activities,Alexander Mann Solutions Limited,6008208,470.67,Employment Agency Staff Costs,Programme
HM Land Registry,HM Land Registry,28/05/2021,Employment Agency Staff Costs,Transformation Change Activities,Alexander Mann Solutions Limited,6008208,94.13,Employment Agency Staff Costs,Programme
HM Land Registry,HM Land Registry,28/05/2021,Employment Agency Staff Costs,Transformation Change Activities,Alexander Mann Solutions Limited,6008208,608.63,Employment Agency Staff Costs,Programme
HM Land Registry,HM Land Registry,28/05/2021,Employment Agency Staff Costs,Transformation Change Activities,Alexander Mann Solutions Limited,6008208,121.73,Employment Agency Staff Costs,Programme
HM Land Registry,HM Land Registry,28/05/2021,Employment Agency Staff Costs,Transformation Change Activities,Alexander Mann Solutions Limited,6008208,608.63,Employment Agency Staff Costs,Programme
HM Land Registry,HM Land Registry,28/05/2021,Employment Agency Staff Costs,Transformation Change Activities,Alexander Mann Solutions Limited,6008208,121.73,Employment Agency Staff Costs,Programme
HM Land Registry,HM Land Registry,28/05/2021,Employment Agency Staff Costs,Transformation Change Activities,Alexander Mann Solutions Limited,6008208,486.90,Employment Agency Staff Costs,Programme
HM Land Registry,HM Land Registry,28/05/2021,Employment Agency Staff Costs,Transformation Change Activities,Alexander Mann Solutions Limited,6008208,97.38,Employment Agency Staff Costs,Programme
HM Land Registry,HM Land Registry,28/05/2021,Employment Agency Staff Costs,Office of DDaT,Alexander Mann Solutions Limited,6008208,608.63,Employment Agency Staff Costs,Programme
HM Land Registry,HM Land Registry,28/05/2021,Employment Agency Staff Costs,Office of DDaT,Alexander Mann Solutions Limited,6008208,121.73,Employment Agency Staff Costs,Programme
HM Land Registry,HM Land Registry,28/05/2021,Employment Agency Staff Costs,Office of DDaT,Alexander Mann Solutions Limited,6008208,624.86,Employment Agency Staff Costs,Programme
HM Land Registry,HM Land Registry,28/05/2021,Employment Agency Staff Costs,Office of DDaT,Alexander Mann Solutions Limited,6008208,124.97,Employment Agency Staff Costs,Programme
HM Land Registry,HM Land Registry,28/05/2021,Employment Agency Staff Costs,Transformation Change Activities,Alexander Mann Solutions Limited,6008208,608.63,Employment Agency Staff Costs,Programme
HM Land Registry,HM Land Registry,28/05/2021,Employment Agency Staff Costs,Transformation Change Activities,Alexander Mann Solutions Limited,6008208,121.73,Employment Agency Staff Costs,Programme
HM Land Registry,HM Land Registry,28/05/2021,Employment Agency Staff Costs,Transformation Change Activities,Alexander Mann Solutions Limited,6008208,612.68,Employment Agency Staff Costs,Programme
HM Land Registry,HM Land Registry,28/05/2021,Employment Agency Staff Costs,Transformation Change Activities,Alexander Mann Solutions Limited,6008208,122.54,Employment Agency Staff Costs,Programme
HM Land Registry,HM Land Registry,28/05/2021,Employment Agency Staff Costs,Transformation Change Activities,Alexander Mann Solutions Limited,6008208,608.63,Employment Agency Staff Costs,Programme
HM Land Registry,HM Land Registry,28/05/2021,Employment Agency Staff Costs,Transformation Change Activities,Alexander Mann Solutions Limited,6008208,121.73,Employment Agency Staff Costs,Programme
HM Land Registry,HM Land Registry,28/05/2021,Employment Agency Staff Costs,Transformation Change Activities,Alexander Mann Solutions Limited,6008208,608.63,Employment Agency Staff Costs,Programme
HM Land Registry,HM Land Registry,28/05/2021,Employment Agency Staff Costs,Transformation Change Activities,Alexander Mann Solutions Limited,6008208,121.73,Employment Agency Staff Costs,Programme
HM Land Registry,HM Land Registry,28/05/2021,Employment Agency Staff Costs,Transformation Change Activities,Alexander Mann Solutions Limited,6008208,608.63,Employment Agency Staff Costs,Programme
HM Land Registry,HM Land Registry,28/05/2021,Employment Agency Staff Costs,Transformation Change Activities,Alexander Mann Solutions Limited,6008208,121.73,Employment Agency Staff Costs,Programme
HM Land Registry,HM Land Registry,28/05/2021,Employment Agency Staff Costs,Transformation Change Activities,Alexander Mann Solutions Limited,6008208,486.90,Employment Agency Staff Costs,Programme
HM Land Registry,HM Land Registry,28/05/2021,Employment Agency Staff Costs,Transformation Change Activities,Alexander Mann Solutions Limited,6008208,97.38,Employment Agency Staff Costs,Programme
HM Land Registry,HM Land Registry,28/05/2021,Employment Agency Staff Costs,Transformation Change Activities,Alexander Mann Solutions Limited,6008208,608.63,Employment Agency Staff Costs,Programme
HM Land Registry,HM Land Registry,28/05/2021,Employment Agency Staff Costs,Transformation Change Activities,Alexander Mann Solutions Limited,6008208,121.73,Employment Agency Staff Costs,Programme
HM Land Registry,HM Land Registry,28/05/2021,Employment Agency Staff Costs,DDaT Change Activities,Alexander Mann Solutions Limited,6008208,"2,887.75",Employment Agency Staff Costs,Programme
HM Land Registry,HM Land Registry,28/05/2021,Employment Agency Staff Costs,DDaT Change Activities,Alexander Mann Solutions Limited,6008208,577.55,Employment Agency Staff Costs,Programme
HM Land Registry,HM Land Registry,28/05/2021,Employment Agency Staff Costs,DDaT Change Activities,Alexander Mann Solutions Limited,6008208,"3,675.35",Employment Agency Staff Costs,Programme
HM Land Registry,HM Land Registry,28/05/2021,Employment Agency Staff Costs,DDaT Change Activities,Alexander Mann Solutions Limited,6008208,735.07,Employment Agency Staff Costs,Programme
HM Land Registry,HM Land Registry,28/05/2021,Employment Agency Staff Costs,Office of DDaT,Alexander Mann Solutions Limited,6008208,608.63,Employment Agency Staff Costs,Programme
HM Land Registry,HM Land Registry,28/05/2021,Employment Agency Staff Costs,Office of DDaT,Alexander Mann Solutions Limited,6008208,121.73,Employment Agency Staff Costs,Programme
HM Land Registry,HM Land Registry,28/05/2021,Employment Agency Staff Costs,DDaT Change Activities,Alexander Mann Solutions Limited,6008208,"2,992.75",Employment Agency Staff Costs,Programme
HM Land Registry,HM Land Registry,28/05/2021,Employment Agency Staff Costs,DDaT Change Activities,Alexander Mann Solutions Limited,6008208,598.55,Employment Agency Staff Costs,Programme
HM Land Registry,HM Land Registry,28/05/2021,Employment Agency Staff Costs,Operations Change Activities,Alexander Mann Solutions Limited,6008208,"2,887.75",Employment Agency Staff Costs,Programme
HM Land Registry,HM Land Registry,28/05/2021,Employment Agency Staff Costs,Operations Change Activities,Alexander Mann Solutions Limited,6008208,577.55,Employment Agency Staff Costs,Programme
HM Land Registry,HM Land Registry,28/05/2021,Employment Agency Staff Costs,DDaT Change Activities,Alexander Mann Solutions Limited,6008208,"3,150.30",Employment Agency Staff Costs,Programme
HM Land Registry,HM Land Registry,28/05/2021,Employment Agency Staff Costs,DDaT Change Activities,Alexander Mann Solutions Limited,6008208,630.06,Employment Agency Staff Costs,Programme
HM Land Registry,HM Land Registry,28/05/2021,Employment Agency Staff Costs,Operations Change Activities,Alexander Mann Solutions Limited,6008208,"2,100.20",Employment Agency Staff Costs,Programme
HM Land Registry,HM Land Registry,28/05/2021,Employment Agency Staff Costs,Operations Change Activities,Alexander Mann Solutions Limited,6008208,420.04,Employment Agency Staff Costs,Programme
HM Land Registry,HM Land Registry,28/05/2021,Employment Agency Staff Costs,DDaT Change Activities,Alexander Mann Solutions Limited,6008208,"2,304.55",Employment Agency Staff Costs,Programme
HM Land Registry,HM Land Registry,28/05/2021,Employment Agency Staff Costs,DDaT Change Activities,Alexander Mann Solutions Limited,6008208,460.91,Employment Agency Staff Costs,Programme
HM Land Registry,HM Land Registry,28/05/2021,Employment Agency Staff Costs,Transformation Change Activities,Alexander Mann Solutions Limited,6008208,97.38,Employment Agency Staff Costs,Programme
HM Land Registry,HM Land Registry,28/05/2021,Employment Agency Staff Costs,Transformation Change Activities,Alexander Mann Solutions Limited,6008208,486.90,Employment Agency Staff Costs,Programme
HM Land Registry,HM Land Registry,24/05/2021,Software as a Service (Cloud),DDaT Operations,Amazon Web Services Inc,60807,"1,979.64",Software as a Service (Cloud),Programme
HM Land Registry,HM Land Registry,24/05/2021,Software as a Service (Cloud),DDaT Change Activities,Amazon Web Services Inc,60807,"47,442.24",Software as a Service (Cloud),Programme
HM Land Registry,HM Land Registry,24/05/2021,Software as a Service (Cloud),Transformation Change Activities,Amazon Web Services Inc,60807,"30,731.52",Software as a Service (Cloud),Programme
HM Land Registry,HM Land Registry,06/05/2021,Consultancy Non-IT Advice Only,Director of Legal and Assurance,Baringa Partners LLP,6008007,"50,490.00",Consultancy Non-IT Advice Only,Programme
HM Land Registry,HM Land Registry,19/05/2021,Professional Services,Operations Change Activities,Baringa Partners LLP,6008101,"108,825.00",Professional Services,Programme
HM Land Registry,HM Land Registry,19/05/2021,Professional Services,Operations Change Activities,Baringa Partners LLP,6008101,"21,765.00",Professional Services,Programme
HM Land Registry,HM Land Registry,19/05/2021,Professional Services,Operations Change Activities,Baringa Partners LLP,6008101,"159,355.00",Professional Services,Programme
HM Land Registry,HM Land Registry,19/05/2021,Professional Services,Operations Change Activities,Baringa Partners LLP,6008101,"31,871.00",Professional Services,Programme
HM Land Registry,HM Land Registry,05/05/2021,Software as a Service (Cloud),DDaT Operations,Bytes Software Services Ltd,6007993,"52,000.00",Software as a Service (Cloud),Programme
HM Land Registry,HM Land Registry,19/05/2021,National Recruitment,HR Operations,Cabinet Office,6008102,"22,519.00",National Recruitment,Programme
HM Land Registry,HM Land Registry,26/05/2021,Computer Equipment Hire,DDaT Change Activities,Cabinet Office,6008163,"4,003.29",Computer Equipment Hire,Programme
HM Land Registry,HM Land Registry,26/05/2021,Computer Equipment Hire,DDaT Change Activities,Cabinet Office,6008163,800.66,Computer Equipment Hire,Programme
HM Land Registry,HM Land Registry,26/05/2021,Computer Equipment Hire,DDaT Change Activities,Cabinet Office,6008163,"4,003.29",Computer Equipment Hire,Programme
HM Land Registry,HM Land Registry,26/05/2021,Computer Equipment Hire,DDaT Change Activities,Cabinet Office,6008163,800.66,Computer Equipment Hire,Programme
HM Land Registry,HM Land Registry,26/05/2021,Computer Equipment Hire,DDaT Change Activities,Cabinet Office,6008163,"1,220.62",Computer Equipment Hire,Programme
HM Land Registry,HM Land Registry,26/05/2021,Computer Equipment Hire,DDaT Change Activities,Cabinet Office,6008163,469.71,Computer Equipment Hire,Programme
HM Land Registry,HM Land Registry,26/05/2021,Computer Equipment Hire,DDaT Change Activities,Cabinet Office,6008163,"1,127.91",Computer Equipment Hire,Programme
HM Land Registry,HM Land Registry,26/05/2021,National Recruitment,HR Operations,Cabinet Office,6008163,"23,642.50",National Recruitment,Programme
HM Land Registry,HM Land Registry,24/05/2021,Payroll Costs,HR Operations,CGI IT UK Limited,6008147,"24,826.95",Payroll Costs,Programme
HM Land Registry,HM Land Registry,24/05/2021,Payroll Costs,HR Operations,CGI IT UK Limited,6008147,756.87,Payroll Costs,Programme
HM Land Registry,HM Land Registry,13/05/2021,Professional Services,Transformation Change Activities,DEF Software Ltd,6008076,"12,272.81",Professional Services,Programme
HM Land Registry,HM Land Registry,13/05/2021,Professional Services,Transformation Change Activities,DEF Software Ltd,6008076,"2,454.56",Professional Services,Programme
HM Land Registry,HM Land Registry,13/05/2021,Professional Services,Transformation Change Activities,DEF Software Ltd,6008076,"17,598.75",Professional Services,Programme
HM Land Registry,HM Land Registry,13/05/2021,Professional Services,Transformation Change Activities,DEF Software Ltd,6008076,"3,519.75",Professional Services,Programme
HM Land Registry,HM Land Registry,26/05/2021,Software as a Service (Cloud),DDaT Operations,Diligent Boardbooks Ltd,6008167,"27,280.87",Software as a Service (Cloud),Programme
HM Land Registry,HM Land Registry,27/05/2021,Rates Payable,Facilities & Property Asset Management,Durham County Council,6008189,"29,696.00",Rates Payable,Programme
HM Land Registry,HM Land Registry,27/05/2021,Rates Payable,Facilities & Property Asset Management,Durham County Council,6008189,"1,297.00",Rates Payable,Programme
HM Land Registry,HM Land Registry,26/05/2021,Consultancy Non-IT Advice Only,Central Analysis,Ernst & Young LLP,6008171,"41,561.00",Consultancy Non-IT Advice Only,Programme
HM Land Registry,HM Land Registry,10/05/2021,Professional Services,DDaT Change Activities,FDM Group Limited,6008038,"3,900.00",Professional Services,Programme
HM Land Registry,HM Land Registry,10/05/2021,Professional Services,DDaT Change Activities,FDM Group Limited,6008038,780.00,Professional Services,Programme
HM Land Registry,HM Land Registry,10/05/2021,Professional Services,DDaT Change Activities,FDM Group Limited,6008038,"5,400.00",Professional Services,Programme
HM Land Registry,HM Land Registry,10/05/2021,Professional Services,DDaT Change Activities,FDM Group Limited,6008038,"1,080.00",Professional Services,Programme
HM Land Registry,HM Land Registry,10/05/2021,Professional Services,Office of DDaT,FDM Group Limited,6008038,"6,650.00",Professional Services,Programme
HM Land Registry,HM Land Registry,10/05/2021,Professional Services,Office of DDaT,FDM Group Limited,6008038,"1,330.00",Professional Services,Programme
HM Land Registry,HM Land Registry,10/05/2021,Professional Services,DDaT Change Activities,FDM Group Limited,6008038,"1,026.00",Professional Services,Programme
HM Land Registry,HM Land Registry,10/05/2021,Professional Services,DDaT Change Activities,FDM Group Limited,6008038,"5,130.00",Professional Services,Programme
HM Land Registry,HM Land Registry,10/05/2021,Professional Services,DDaT Change Activities,FDM Group Limited,6008038,"5,400.00",Professional Services,Programme
HM Land Registry,HM Land Registry,10/05/2021,Professional Services,DDaT Change Activities,FDM Group Limited,6008038,"1,080.00",Professional Services,Programme
HM Land Registry,HM Land Registry,10/05/2021,Professional Services,DDaT Change Activities,FDM Group Limited,6008038,"2,275.00",Professional Services,Programme
HM Land Registry,HM Land Registry,10/05/2021,Professional Services,DDaT Change Activities,FDM Group Limited,6008038,455.00,Professional Services,Programme
HM Land Registry,HM Land Registry,10/05/2021,Professional Services,Operations Change Activities,FDM Group Limited,6008038,"6,000.00",Professional Services,Programme
HM Land Registry,HM Land Registry,10/05/2021,Professional Services,Operations Change Activities,FDM Group Limited,6008038,"1,200.00",Professional Services,Programme
HM Land Registry,HM Land Registry,10/05/2021,Professional Services,DDaT Change Activities,FDM Group Limited,6008038,"5,700.00",Professional Services,Programme
HM Land Registry,HM Land Registry,10/05/2021,Professional Services,DDaT Change Activities,FDM Group Limited,6008038,"1,140.00",Professional Services,Programme
HM Land Registry,HM Land Registry,10/05/2021,Professional Services,DDaT Change Activities,FDM Group Limited,6008038,"6,000.00",Professional Services,Programme
HM Land Registry,HM Land Registry,10/05/2021,Professional Services,DDaT Change Activities,FDM Group Limited,6008038,"1,200.00",Professional Services,Programme
HM Land Registry,HM Land Registry,10/05/2021,Professional Services,DDaT Change Activities,FDM Group Limited,6008038,"4,050.00",Professional Services,Programme
HM Land Registry,HM Land Registry,10/05/2021,Professional Services,DDaT Change Activities,FDM Group Limited,6008038,810.00,Professional Services,Programme
HM Land Registry,HM Land Registry,10/05/2021,Professional Services,DDaT Change Activities,FDM Group Limited,6008038,"7,000.00",Professional Services,Programme
HM Land Registry,HM Land Registry,10/05/2021,Professional Services,DDaT Change Activities,FDM Group Limited,6008038,"1,400.00",Professional Services,Programme
HM Land Registry,HM Land Registry,10/05/2021,Professional Services,DDaT Change Activities,FDM Group Limited,6008038,"2,100.00",Professional Services,Programme
HM Land Registry,HM Land Registry,10/05/2021,Professional Services,DDaT Change Activities,FDM Group Limited,6008038,420.00,Professional Services,Programme
HM Land Registry,HM Land Registry,10/05/2021,Professional Services,Operations Change Activities,Foundry4 Consulting Ltd,6008039,"-2,280.00",Professional Services,Programme
HM Land Registry,HM Land Registry,10/05/2021,Professional Services,Operations Change Activities,Foundry4 Consulting Ltd,6008039,-456.00,Professional Services,Programme
HM Land Registry,HM Land Registry,10/05/2021,Other External Training,Organisation & Employee Development,Foundry4 Consulting Ltd,6008039,"25,269.44",Other External Training,Programme
HM Land Registry,HM Land Registry,10/05/2021,Professional Services,Operations Change Activities,Foundry4 Consulting Ltd,6008039,"15,960.00",Professional Services,Programme
HM Land Registry,HM Land Registry,10/05/2021,Professional Services,Operations Change Activities,Foundry4 Consulting Ltd,6008039,"3,192.00",Professional Services,Programme
HM Land Registry,HM Land Registry,26/05/2021,Professional Services,Operations Change Activities,Foundry4 Consulting Ltd,6008172,"10,640.00",Professional Services,Programme
HM Land Registry,HM Land Registry,26/05/2021,Professional Services,Operations Change Activities,Foundry4 Consulting Ltd,6008172,"2,128.00",Professional Services,Programme
HM Land Registry,HM Land Registry,26/05/2021,Professional Services,Operations Change Activities,Foundry4 Consulting Ltd,6008172,"12,350.00",Professional Services,Programme
HM Land Registry,HM Land Registry,26/05/2021,Professional Services,Operations Change Activities,Foundry4 Consulting Ltd,6008172,"2,470.00",Professional Services,Programme
HM Land Registry,HM Land Registry,26/05/2021,Other External Training,Organisation & Employee Development,Foundry4 Consulting Ltd,6008172,"12,635.00",Other External Training,Programme
HM Land Registry,HM Land Registry,26/05/2021,Professional Services,Operations Change Activities,Foundry4 Consulting Ltd,6008172,"14,250.00",Professional Services,Programme
HM Land Registry,HM Land Registry,26/05/2021,Professional Services,Operations Change Activities,Foundry4 Consulting Ltd,6008172,"2,850.00",Professional Services,Programme
HM Land Registry,HM Land Registry,27/05/2021,Rates Payable,Facilities & Property Asset Management,Gloucester City Council,6008193,"30,208.00",Rates Payable,Programme
HM Land Registry,HM Land Registry,19/05/2021,Consultancy Non-IT Advice Only,Finance,Government Actuary's Department,6008111,"38,716.08",Consultancy Non-IT Advice Only,Programme
HM Land Registry,HM Land Registry,24/05/2021,National Medical Expenses,HR Operations,Health Management Ltd,6008150,"24,209.25",National Medical Expenses,Programme
HM Land Registry,HM Land Registry,19/05/2021,Computer Equipment Hire,DDaT Operations,IBM United Kingdom Ltd,6008114,"24,836.63",Computer Equipment Hire,Programme
HM Land Registry,HM Land Registry,19/05/2021,Computer Equipment Hire,DDaT Operations,IBM United Kingdom Ltd,6008114,"4,967.33",Computer Equipment Hire,Programme
HM Land Registry,HM Land Registry,05/05/2021,Professional Services,Programme & Project Delivery,Idox Software Ltd,6007999,"2,885.62",Professional Services,Programme
HM Land Registry,HM Land Registry,05/05/2021,Professional Services,Transformation Change Activities,Idox Software Ltd,6007999,"2,992.50",Professional Services,Programme
HM Land Registry,HM Land Registry,05/05/2021,Professional Services,Programme & Project Delivery,Idox Software Ltd,6007999,577.12,Professional Services,Programme
HM Land Registry,HM Land Registry,05/05/2021,Professional Services,Transformation Change Activities,Idox Software Ltd,6007999,598.50,Professional Services,Programme
HM Land Registry,HM Land Registry,05/05/2021,Professional Services,Transformation Change Activities,Idox Software Ltd,6007999,"11,520.00",Professional Services,Programme
HM Land Registry,HM Land Registry,05/05/2021,Professional Services,Transformation Change Activities,Idox Software Ltd,6007999,"26,880.00",Professional Services,Programme
HM Land Registry,HM Land Registry,05/05/2021,Professional Services,Transformation Change Activities,Idox Software Ltd,6007999,"7,680.00",Professional Services,Programme
HM Land Registry,HM Land Registry,24/05/2021,Facilities Quoted & Ad-hoc Works,Facilities,ISS Mediclean Ltd,6008152,41.56,Facilities Quoted & Ad-hoc Works,Programme
HM Land Registry,HM Land Registry,24/05/2021,Facilities Quoted & Ad-hoc Works,Facilities,ISS Mediclean Ltd,6008152,459.82,Facilities Quoted & Ad-hoc Works,Programme
HM Land Registry,HM Land Registry,24/05/2021,Facilities Quoted & Ad-hoc Works,Facilities,ISS Mediclean Ltd,6008152,"5,400.73",Facilities Quoted & Ad-hoc Works,Programme
HM Land Registry,HM Land Registry,24/05/2021,Facilities Quoted & Ad-hoc Works,Facilities,ISS Mediclean Ltd,6008152,54.95,Facilities Quoted & Ad-hoc Works,Programme
HM Land Registry,HM Land Registry,24/05/2021,Facilities Quoted & Ad-hoc Works,Facilities,ISS Mediclean Ltd,6008152,"4,342.52",Facilities Quoted & Ad-hoc Works,Programme
HM Land Registry,HM Land Registry,24/05/2021,Facilities Quoted & Ad-hoc Works,Facilities,ISS Mediclean Ltd,6008152,"7,936.97",Facilities Quoted & Ad-hoc Works,Programme
HM Land Registry,HM Land Registry,24/05/2021,Facilities Quoted & Ad-hoc Works,Facilities,ISS Mediclean Ltd,6008152,228.07,Facilities Quoted & Ad-hoc Works,Programme
HM Land Registry,HM Land Registry,24/05/2021,Facilities Quoted & Ad-hoc Works,Facilities,ISS Mediclean Ltd,6008152,"1,014.86",Facilities Quoted & Ad-hoc Works,Programme
HM Land Registry,HM Land Registry,24/05/2021,Facilities Quoted & Ad-hoc Works,Facilities,ISS Mediclean Ltd,6008152,"4,957.59",Facilities Quoted & Ad-hoc Works,Programme
HM Land Registry,HM Land Registry,24/05/2021,Facilities Quoted & Ad-hoc Works,Facilities,ISS Mediclean Ltd,6008152,"1,564.98",Facilities Quoted & Ad-hoc Works,Programme
HM Land Registry,HM Land Registry,24/05/2021,Facilities Quoted & Ad-hoc Works,Facilities,ISS Mediclean Ltd,6008152,260.00,Facilities Quoted & Ad-hoc Works,Programme
HM Land Registry,HM Land Registry,24/05/2021,Facilities Quoted & Ad-hoc Works,Facilities,ISS Mediclean Ltd,6008152,798.64,Facilities Quoted & Ad-hoc Works,Programme
HM Land Registry,HM Land Registry,24/05/2021,Facilities Quoted & Ad-hoc Works,Facilities,ISS Mediclean Ltd,6008152,18.57,Facilities Quoted & Ad-hoc Works,Programme
HM Land Registry,HM Land Registry,24/05/2021,Facilities Quoted & Ad-hoc Works,Facilities,ISS Mediclean Ltd,6008152,94.30,Facilities Quoted & Ad-hoc Works,Programme
HM Land Registry,HM Land Registry,24/05/2021,Facilities Quoted & Ad-hoc Works,Facilities,ISS Mediclean Ltd,6008152,36.34,Facilities Quoted & Ad-hoc Works,Programme
HM Land Registry,HM Land Registry,24/05/2021,Facilities Quoted & Ad-hoc Works,Facilities,ISS Mediclean Ltd,6008152,902.18,Facilities Quoted & Ad-hoc Works,Programme
HM Land Registry,HM Land Registry,24/05/2021,Facilities Quoted & Ad-hoc Works,Facilities,ISS Mediclean Ltd,6008152,"4,352.75",Facilities Quoted & Ad-hoc Works,Programme
HM Land Registry,HM Land Registry,24/05/2021,Facilities Quoted & Ad-hoc Works,Facilities,ISS Mediclean Ltd,6008152,41.62,Facilities Quoted & Ad-hoc Works,Programme
HM Land Registry,HM Land Registry,24/05/2021,Facilities Quoted & Ad-hoc Works,Facilities,ISS Mediclean Ltd,6008152,"7,318.17",Facilities Quoted & Ad-hoc Works,Programme
HM Land Registry,HM Land Registry,24/05/2021,Facilities Quoted & Ad-hoc Works,Facilities,ISS Mediclean Ltd,6008152,"7,612.49",Facilities Quoted & Ad-hoc Works,Programme
HM Land Registry,HM Land Registry,24/05/2021,Facilities Quoted & Ad-hoc Works,Facilities,ISS Mediclean Ltd,6008152,246.89,Facilities Quoted & Ad-hoc Works,Programme
HM Land Registry,HM Land Registry,24/05/2021,Facilities Quoted & Ad-hoc Works,Facilities,ISS Mediclean Ltd,6008152,325.89,Facilities Quoted & Ad-hoc Works,Programme
HM Land Registry,HM Land Registry,24/05/2021,Facilities Quoted & Ad-hoc Works,Facilities,ISS Mediclean Ltd,6008152,"4,648.89",Facilities Quoted & Ad-hoc Works,Programme
HM Land Registry,HM Land Registry,24/05/2021,Facilities Quoted & Ad-hoc Works,Facilities,ISS Mediclean Ltd,6008152,"1,709.64",Facilities Quoted & Ad-hoc Works,Programme
HM Land Registry,HM Land Registry,24/05/2021,Facilities Quoted & Ad-hoc Works,Facilities,ISS Mediclean Ltd,6008152,229.81,Facilities Quoted & Ad-hoc Works,Programme
HM Land Registry,HM Land Registry,24/05/2021,Facilities Quoted & Ad-hoc Works,Facilities,ISS Mediclean Ltd,6008152,46.89,Facilities Quoted & Ad-hoc Works,Programme
HM Land Registry,HM Land Registry,24/05/2021,Facilities Quoted & Ad-hoc Works,Facilities,ISS Mediclean Ltd,6008152,498.78,Facilities Quoted & Ad-hoc Works,Programme
HM Land Registry,HM Land Registry,24/05/2021,Facilities Quoted & Ad-hoc Works,Facilities,ISS Mediclean Ltd,6008152,"7,550.89",Facilities Quoted & Ad-hoc Works,Programme
HM Land Registry,HM Land Registry,24/05/2021,Facilities Quoted & Ad-hoc Works,Facilities,ISS Mediclean Ltd,6008152,81.72,Facilities Quoted & Ad-hoc Works,Programme
HM Land Registry,HM Land Registry,24/05/2021,Facilities Quoted & Ad-hoc Works,Facilities,ISS Mediclean Ltd,6008152,"6,488.15",Facilities Quoted & Ad-hoc Works,Programme
HM Land Registry,HM Land Registry,24/05/2021,Facilities Quoted & Ad-hoc Works,Facilities,ISS Mediclean Ltd,6008152,"10,561.05",Facilities Quoted & Ad-hoc Works,Programme
HM Land Registry,HM Land Registry,24/05/2021,Facilities Quoted & Ad-hoc Works,Facilities,ISS Mediclean Ltd,6008152,321.02,Facilities Quoted & Ad-hoc Works,Programme
HM Land Registry,HM Land Registry,24/05/2021,Facilities Quoted & Ad-hoc Works,Facilities,ISS Mediclean Ltd,6008152,"1,528.94",Facilities Quoted & Ad-hoc Works,Programme
HM Land Registry,HM Land Registry,24/05/2021,Facilities Quoted & Ad-hoc Works,Facilities,ISS Mediclean Ltd,6008152,"8,533.71",Facilities Quoted & Ad-hoc Works,Programme
HM Land Registry,HM Land Registry,24/05/2021,Facilities Quoted & Ad-hoc Works,Facilities,ISS Mediclean Ltd,6008152,974.49,Facilities Quoted & Ad-hoc Works,Programme
HM Land Registry,HM Land Registry,24/05/2021,Facilities Quoted & Ad-hoc Works,Facilities,ISS Mediclean Ltd,6008152,245.43,Facilities Quoted & Ad-hoc Works,Programme
HM Land Registry,HM Land Registry,24/05/2021,Facilities Quoted & Ad-hoc Works,Facilities,ISS Mediclean Ltd,6008152,36.17,Facilities Quoted & Ad-hoc Works,Programme
HM Land Registry,HM Land Registry,24/05/2021,Facilities Quoted & Ad-hoc Works,Facilities,ISS Mediclean Ltd,6008152,269.75,Facilities Quoted & Ad-hoc Works,Programme
HM Land Registry,HM Land Registry,24/05/2021,Facilities Quoted & Ad-hoc Works,Facilities,ISS Mediclean Ltd,6008152,"4,293.94",Facilities Quoted & Ad-hoc Works,Programme
HM Land Registry,HM Land Registry,24/05/2021,Facilities Quoted & Ad-hoc Works,Facilities,ISS Mediclean Ltd,6008152,54.95,Facilities Quoted & Ad-hoc Works,Programme
HM Land Registry,HM Land Registry,24/05/2021,Facilities Quoted & Ad-hoc Works,Facilities,ISS Mediclean Ltd,6008152,"5,570.73",Facilities Quoted & Ad-hoc Works,Programme
HM Land Registry,HM Land Registry,24/05/2021,Facilities Quoted & Ad-hoc Works,Facilities,ISS Mediclean Ltd,6008152,"7,009.25",Facilities Quoted & Ad-hoc Works,Programme
HM Land Registry,HM Land Registry,24/05/2021,Facilities Quoted & Ad-hoc Works,Facilities,ISS Mediclean Ltd,6008152,201.51,Facilities Quoted & Ad-hoc Works,Programme
HM Land Registry,HM Land Registry,24/05/2021,Facilities Quoted & Ad-hoc Works,Facilities,ISS Mediclean Ltd,6008152,"2,104.79",Facilities Quoted & Ad-hoc Works,Programme
HM Land Registry,HM Land Registry,24/05/2021,Facilities Quoted & Ad-hoc Works,Facilities,ISS Mediclean Ltd,6008152,"3,529.03",Facilities Quoted & Ad-hoc Works,Programme
HM Land Registry,HM Land Registry,24/05/2021,Facilities Quoted & Ad-hoc Works,Facilities,ISS Mediclean Ltd,6008152,"1,512.37",Facilities Quoted & Ad-hoc Works,Programme
HM Land Registry,HM Land Registry,24/05/2021,Facilities Quoted & Ad-hoc Works,Facilities,ISS Mediclean Ltd,6008152,148.12,Facilities Quoted & Ad-hoc Works,Programme
HM Land Registry,HM Land Registry,24/05/2021,Facilities Quoted & Ad-hoc Works,Facilities,ISS Mediclean Ltd,6008152,45.05,Facilities Quoted & Ad-hoc Works,Programme
HM Land Registry,HM Land Registry,24/05/2021,Facilities Quoted & Ad-hoc Works,Facilities,ISS Mediclean Ltd,6008152,477.71,Facilities Quoted & Ad-hoc Works,Programme
HM Land Registry,HM Land Registry,24/05/2021,Facilities Quoted & Ad-hoc Works,Facilities,ISS Mediclean Ltd,6008152,"8,398.33",Facilities Quoted & Ad-hoc Works,Programme
HM Land Registry,HM Land Registry,24/05/2021,Facilities Quoted & Ad-hoc Works,Facilities,ISS Mediclean Ltd,6008152,41.62,Facilities Quoted & Ad-hoc Works,Programme
HM Land Registry,HM Land Registry,24/05/2021,Facilities Quoted & Ad-hoc Works,Facilities,ISS Mediclean Ltd,6008152,"7,479.73",Facilities Quoted & Ad-hoc Works,Programme
HM Land Registry,HM Land Registry,24/05/2021,Facilities Quoted & Ad-hoc Works,Facilities,ISS Mediclean Ltd,6008152,"3,339.45",Facilities Quoted & Ad-hoc Works,Programme
HM Land Registry,HM Land Registry,24/05/2021,Facilities Quoted & Ad-hoc Works,Facilities,ISS Mediclean Ltd,6008152,247.73,Facilities Quoted & Ad-hoc Works,Programme
HM Land Registry,HM Land Registry,24/05/2021,Facilities Quoted & Ad-hoc Works,Facilities,ISS Mediclean Ltd,6008152,862.39,Facilities Quoted & Ad-hoc Works,Programme
HM Land Registry,HM Land Registry,24/05/2021,Facilities Quoted & Ad-hoc Works,Facilities,ISS Mediclean Ltd,6008152,"5,728.70",Facilities Quoted & Ad-hoc Works,Programme
HM Land Registry,HM Land Registry,24/05/2021,Facilities Quoted & Ad-hoc Works,Facilities,ISS Mediclean Ltd,6008152,"2,498.70",Facilities Quoted & Ad-hoc Works,Programme
HM Land Registry,HM Land Registry,24/05/2021,Facilities Quoted & Ad-hoc Works,Facilities,ISS Mediclean Ltd,6008152,191.19,Facilities Quoted & Ad-hoc Works,Programme
HM Land Registry,HM Land Registry,24/05/2021,Facilities Quoted & Ad-hoc Works,Facilities,ISS Mediclean Ltd,6008152,39.85,Facilities Quoted & Ad-hoc Works,Programme
HM Land Registry,HM Land Registry,24/05/2021,Facilities Quoted & Ad-hoc Works,Facilities,ISS Mediclean Ltd,6008152,322.52,Facilities Quoted & Ad-hoc Works,Programme
HM Land Registry,HM Land Registry,24/05/2021,Facilities Quoted & Ad-hoc Works,Facilities,ISS Mediclean Ltd,6008152,"4,646.02",Facilities Quoted & Ad-hoc Works,Programme
HM Land Registry,HM Land Registry,24/05/2021,Facilities Quoted & Ad-hoc Works,Facilities,ISS Mediclean Ltd,6008152,41.62,Facilities Quoted & Ad-hoc Works,Programme
HM Land Registry,HM Land Registry,24/05/2021,Facilities Quoted & Ad-hoc Works,Facilities,ISS Mediclean Ltd,6008152,"4,853.15",Facilities Quoted & Ad-hoc Works,Programme
HM Land Registry,HM Land Registry,24/05/2021,Facilities Quoted & Ad-hoc Works,Facilities,ISS Mediclean Ltd,6008152,"7,588.01",Facilities Quoted & Ad-hoc Works,Programme
HM Land Registry,HM Land Registry,24/05/2021,Facilities Quoted & Ad-hoc Works,Facilities,ISS Mediclean Ltd,6008152,214.85,Facilities Quoted & Ad-hoc Works,Programme
HM Land Registry,HM Land Registry,24/05/2021,Facilities Quoted & Ad-hoc Works,Facilities,ISS Mediclean Ltd,6008152,"1,045.56",Facilities Quoted & Ad-hoc Works,Programme
HM Land Registry,HM Land Registry,24/05/2021,Facilities Quoted & Ad-hoc Works,Facilities,ISS Mediclean Ltd,6008152,"5,363.24",Facilities Quoted & Ad-hoc Works,Programme
HM Land Registry,HM Land Registry,24/05/2021,Facilities Quoted & Ad-hoc Works,Facilities,ISS Mediclean Ltd,6008152,"2,202.80",Facilities Quoted & Ad-hoc Works,Programme
HM Land Registry,HM Land Registry,24/05/2021,Facilities Quoted & Ad-hoc Works,Facilities,ISS Mediclean Ltd,6008152,244.38,Facilities Quoted & Ad-hoc Works,Programme
HM Land Registry,HM Land Registry,24/05/2021,Facilities Quoted & Ad-hoc Works,Facilities,ISS Mediclean Ltd,6008152,29.19,Facilities Quoted & Ad-hoc Works,Programme
HM Land Registry,HM Land Registry,24/05/2021,Facilities Quoted & Ad-hoc Works,Facilities,ISS Mediclean Ltd,6008152,117.34,Facilities Quoted & Ad-hoc Works,Programme
HM Land Registry,HM Land Registry,24/05/2021,Facilities Quoted & Ad-hoc Works,Facilities,ISS Mediclean Ltd,6008152,574.20,Facilities Quoted & Ad-hoc Works,Programme
HM Land Registry,HM Land Registry,24/05/2021,Facilities Quoted & Ad-hoc Works,Facilities,ISS Mediclean Ltd,6008152,9.12,Facilities Quoted & Ad-hoc Works,Programme
HM Land Registry,HM Land Registry,24/05/2021,Facilities Quoted & Ad-hoc Works,Facilities,ISS Mediclean Ltd,6008152,38.93,Facilities Quoted & Ad-hoc Works,Programme
HM Land Registry,HM Land Registry,24/05/2021,Facilities Quoted & Ad-hoc Works,Facilities,ISS Mediclean Ltd,6008152,479.85,Facilities Quoted & Ad-hoc Works,Programme
HM Land Registry,HM Land Registry,24/05/2021,Facilities Quoted & Ad-hoc Works,Facilities,ISS Mediclean Ltd,6008152,36.24,Facilities Quoted & Ad-hoc Works,Programme
HM Land Registry,HM Land Registry,24/05/2021,Facilities Quoted & Ad-hoc Works,Facilities,ISS Mediclean Ltd,6008152,278.92,Facilities Quoted & Ad-hoc Works,Programme
HM Land Registry,HM Land Registry,24/05/2021,Facilities Quoted & Ad-hoc Works,Facilities,ISS Mediclean Ltd,6008152,"5,420.33",Facilities Quoted & Ad-hoc Works,Programme
HM Land Registry,HM Land Registry,24/05/2021,Facilities Quoted & Ad-hoc Works,Facilities,ISS Mediclean Ltd,6008152,68.80,Facilities Quoted & Ad-hoc Works,Programme
HM Land Registry,HM Land Registry,24/05/2021,Facilities Quoted & Ad-hoc Works,Facilities,ISS Mediclean Ltd,6008152,"6,292.62",Facilities Quoted & Ad-hoc Works,Programme
HM Land Registry,HM Land Registry,24/05/2021,Facilities Quoted & Ad-hoc Works,Facilities,ISS Mediclean Ltd,6008152,"2,015.75",Facilities Quoted & Ad-hoc Works,Programme
HM Land Registry,HM Land Registry,24/05/2021,Facilities Quoted & Ad-hoc Works,Facilities,ISS Mediclean Ltd,6008152,149.48,Facilities Quoted & Ad-hoc Works,Programme
HM Land Registry,HM Land Registry,24/05/2021,Facilities Quoted & Ad-hoc Works,Facilities,ISS Mediclean Ltd,6008152,400.75,Facilities Quoted & Ad-hoc Works,Programme
HM Land Registry,HM Land Registry,24/05/2021,Facilities Quoted & Ad-hoc Works,Facilities,ISS Mediclean Ltd,6008152,"4,262.30",Facilities Quoted & Ad-hoc Works,Programme
HM Land Registry,HM Land Registry,24/05/2021,Facilities Quoted & Ad-hoc Works,Facilities,ISS Mediclean Ltd,6008152,"1,426.89",Facilities Quoted & Ad-hoc Works,Programme
HM Land Registry,HM Land Registry,24/05/2021,Facilities Quoted & Ad-hoc Works,Facilities,ISS Mediclean Ltd,6008152,193.07,Facilities Quoted & Ad-hoc Works,Programme
HM Land Registry,HM Land Registry,24/05/2021,Facilities Quoted & Ad-hoc Works,Facilities,ISS Mediclean Ltd,6008152,39.84,Facilities Quoted & Ad-hoc Works,Programme
HM Land Registry,HM Land Registry,24/05/2021,Facilities Quoted & Ad-hoc Works,Facilities,ISS Mediclean Ltd,6008152,358.61,Facilities Quoted & Ad-hoc Works,Programme
HM Land Registry,HM Land Registry,24/05/2021,Facilities Quoted & Ad-hoc Works,Facilities,ISS Mediclean Ltd,6008152,"4,039.94",Facilities Quoted & Ad-hoc Works,Programme
HM Land Registry,HM Land Registry,24/05/2021,Facilities Quoted & Ad-hoc Works,Facilities,ISS Mediclean Ltd,6008152,41.62,Facilities Quoted & Ad-hoc Works,Programme
HM Land Registry,HM Land Registry,24/05/2021,Facilities Quoted & Ad-hoc Works,Facilities,ISS Mediclean Ltd,6008152,"4,411.52",Facilities Quoted & Ad-hoc Works,Programme
HM Land Registry,HM Land Registry,24/05/2021,Facilities Quoted & Ad-hoc Works,Facilities,ISS Mediclean Ltd,6008152,"9,089.22",Facilities Quoted & Ad-hoc Works,Programme
HM Land Registry,HM Land Registry,24/05/2021,Facilities Quoted & Ad-hoc Works,Facilities,ISS Mediclean Ltd,6008152,242.24,Facilities Quoted & Ad-hoc Works,Programme
HM Land Registry,HM Land Registry,24/05/2021,Facilities Quoted & Ad-hoc Works,Facilities,ISS Mediclean Ltd,6008152,178.34,Facilities Quoted & Ad-hoc Works,Programme
HM Land Registry,HM Land Registry,24/05/2021,Facilities Quoted & Ad-hoc Works,Facilities,ISS Mediclean Ltd,6008152,"4,902.39",Facilities Quoted & Ad-hoc Works,Programme
HM Land Registry,HM Land Registry,24/05/2021,Facilities Quoted & Ad-hoc Works,Facilities,ISS Mediclean Ltd,6008152,"3,623.12",Facilities Quoted & Ad-hoc Works,Programme
HM Land Registry,HM Land Registry,24/05/2021,Facilities Quoted & Ad-hoc Works,Facilities,ISS Mediclean Ltd,6008152,221.31,Facilities Quoted & Ad-hoc Works,Programme
HM Land Registry,HM Land Registry,24/05/2021,Facilities Quoted & Ad-hoc Works,Facilities,ISS Mediclean Ltd,6008152,27.37,Facilities Quoted & Ad-hoc Works,Programme
HM Land Registry,HM Land Registry,24/05/2021,Facilities Quoted & Ad-hoc Works,Facilities,ISS Mediclean Ltd,6008152,433.39,Facilities Quoted & Ad-hoc Works,Programme
HM Land Registry,HM Land Registry,24/05/2021,Facilities Quoted & Ad-hoc Works,Facilities,ISS Mediclean Ltd,6008152,"2,311.87",Facilities Quoted & Ad-hoc Works,Programme
HM Land Registry,HM Land Registry,24/05/2021,Facilities Quoted & Ad-hoc Works,Facilities,ISS Mediclean Ltd,6008152,41.62,Facilities Quoted & Ad-hoc Works,Programme
HM Land Registry,HM Land Registry,24/05/2021,Facilities Quoted & Ad-hoc Works,Facilities,ISS Mediclean Ltd,6008152,"3,892.31",Facilities Quoted & Ad-hoc Works,Programme
HM Land Registry,HM Land Registry,24/05/2021,Facilities Quoted & Ad-hoc Works,Facilities,ISS Mediclean Ltd,6008152,"1,612.12",Facilities Quoted & Ad-hoc Works,Programme
HM Land Registry,HM Land Registry,24/05/2021,Facilities Quoted & Ad-hoc Works,Facilities,ISS Mediclean Ltd,6008152,81.71,Facilities Quoted & Ad-hoc Works,Programme
HM Land Registry,HM Land Registry,24/05/2021,Facilities Quoted & Ad-hoc Works,Facilities,ISS Mediclean Ltd,6008152,496.78,Facilities Quoted & Ad-hoc Works,Programme
HM Land Registry,HM Land Registry,24/05/2021,Facilities Quoted & Ad-hoc Works,Facilities,ISS Mediclean Ltd,6008152,"1,473.59",Facilities Quoted & Ad-hoc Works,Programme
HM Land Registry,HM Land Registry,24/05/2021,Facilities Quoted & Ad-hoc Works,Facilities,ISS Mediclean Ltd,6008152,861.39,Facilities Quoted & Ad-hoc Works,Programme
HM Land Registry,HM Land Registry,24/05/2021,Facilities Quoted & Ad-hoc Works,Facilities,ISS Mediclean Ltd,6008152,107.93,Facilities Quoted & Ad-hoc Works,Programme
HM Land Registry,HM Land Registry,24/05/2021,Facilities Quoted & Ad-hoc Works,Facilities,ISS Mediclean Ltd,6008152,45.03,Facilities Quoted & Ad-hoc Works,Programme
HM Land Registry,HM Land Registry,24/05/2021,Facilities Quoted & Ad-hoc Works,Facilities,ISS Mediclean Ltd,6008152,641.62,Facilities Quoted & Ad-hoc Works,Programme
HM Land Registry,HM Land Registry,24/05/2021,Facilities Quoted & Ad-hoc Works,Facilities,ISS Mediclean Ltd,6008152,"7,341.41",Facilities Quoted & Ad-hoc Works,Programme
HM Land Registry,HM Land Registry,24/05/2021,Facilities Quoted & Ad-hoc Works,Facilities,ISS Mediclean Ltd,6008152,100.42,Facilities Quoted & Ad-hoc Works,Programme
HM Land Registry,HM Land Registry,24/05/2021,Facilities Quoted & Ad-hoc Works,Facilities,ISS Mediclean Ltd,6008152,"14,718.22",Facilities Quoted & Ad-hoc Works,Programme
HM Land Registry,HM Land Registry,24/05/2021,Facilities Quoted & Ad-hoc Works,Facilities,ISS Mediclean Ltd,6008152,"11,593.67",Facilities Quoted & Ad-hoc Works,Programme
HM Land Registry,HM Land Registry,24/05/2021,Facilities Quoted & Ad-hoc Works,Facilities,ISS Mediclean Ltd,6008152,553.02,Facilities Quoted & Ad-hoc Works,Programme
HM Land Registry,HM Land Registry,24/05/2021,Facilities Quoted & Ad-hoc Works,Facilities,ISS Mediclean Ltd,6008152,"1,787.29",Facilities Quoted & Ad-hoc Works,Programme
HM Land Registry,HM Land Registry,24/05/2021,Facilities Quoted & Ad-hoc Works,Facilities,ISS Mediclean Ltd,6008152,"6,894.16",Facilities Quoted & Ad-hoc Works,Programme
HM Land Registry,HM Land Registry,24/05/2021,Facilities Quoted & Ad-hoc Works,Facilities,ISS Mediclean Ltd,6008152,"2,597.34",Facilities Quoted & Ad-hoc Works,Programme
HM Land Registry,HM Land Registry,24/05/2021,Facilities Quoted & Ad-hoc Works,Facilities,ISS Mediclean Ltd,6008152,502.07,Facilities Quoted & Ad-hoc Works,Programme
HM Land Registry,HM Land Registry,24/05/2021,Facilities Quoted & Ad-hoc Works,Facilities,ISS Mediclean Ltd,6008152,45.03,Facilities Quoted & Ad-hoc Works,Programme
HM Land Registry,HM Land Registry,24/05/2021,Facilities Quoted & Ad-hoc Works,Facilities,ISS Mediclean Ltd,6008152,458.04,Facilities Quoted & Ad-hoc Works,Programme
HM Land Registry,HM Land Registry,24/05/2021,Facilities Quoted & Ad-hoc Works,Facilities,ISS Mediclean Ltd,6008152,"6,834.40",Facilities Quoted & Ad-hoc Works,Programme
HM Land Registry,HM Land Registry,24/05/2021,Facilities Quoted & Ad-hoc Works,Facilities,ISS Mediclean Ltd,6008152,41.62,Facilities Quoted & Ad-hoc Works,Programme
HM Land Registry,HM Land Registry,24/05/2021,Facilities Quoted & Ad-hoc Works,Facilities,ISS Mediclean Ltd,6008152,"4,343.53",Facilities Quoted & Ad-hoc Works,Programme
HM Land Registry,HM Land Registry,24/05/2021,Facilities Quoted & Ad-hoc Works,Facilities,ISS Mediclean Ltd,6008152,"3,432.18",Facilities Quoted & Ad-hoc Works,Programme
HM Land Registry,HM Land Registry,24/05/2021,Facilities Quoted & Ad-hoc Works,Facilities,ISS Mediclean Ltd,6008152,226.11,Facilities Quoted & Ad-hoc Works,Programme
HM Land Registry,HM Land Registry,24/05/2021,Facilities Quoted & Ad-hoc Works,Facilities,ISS Mediclean Ltd,6008152,"1,677.33",Facilities Quoted & Ad-hoc Works,Programme
HM Land Registry,HM Land Registry,24/05/2021,Facilities Quoted & Ad-hoc Works,Facilities,ISS Mediclean Ltd,6008152,"4,925.81",Facilities Quoted & Ad-hoc Works,Programme
HM Land Registry,HM Land Registry,24/05/2021,Facilities Quoted & Ad-hoc Works,Facilities,ISS Mediclean Ltd,6008152,"2,577.61",Facilities Quoted & Ad-hoc Works,Programme
HM Land Registry,HM Land Registry,24/05/2021,Facilities Quoted & Ad-hoc Works,Facilities,ISS Mediclean Ltd,6008152,283.09,Facilities Quoted & Ad-hoc Works,Programme
HM Land Registry,HM Land Registry,24/05/2021,Facilities Quoted & Ad-hoc Works,Facilities,ISS Mediclean Ltd,6008152,36.41,Facilities Quoted & Ad-hoc Works,Programme
HM Land Registry,HM Land Registry,24/05/2021,Facilities Quoted & Ad-hoc Works,Facilities,ISS Mediclean Ltd,6008152,598.06,Facilities Quoted & Ad-hoc Works,Programme
HM Land Registry,HM Land Registry,24/05/2021,Facilities Quoted & Ad-hoc Works,Facilities,ISS Mediclean Ltd,6008152,"3,641.28",Facilities Quoted & Ad-hoc Works,Programme
HM Land Registry,HM Land Registry,24/05/2021,Facilities Quoted & Ad-hoc Works,Facilities,ISS Mediclean Ltd,6008152,41.62,Facilities Quoted & Ad-hoc Works,Programme
HM Land Registry,HM Land Registry,24/05/2021,Facilities Quoted & Ad-hoc Works,Facilities,ISS Mediclean Ltd,6008152,"4,554.58",Facilities Quoted & Ad-hoc Works,Programme
HM Land Registry,HM Land Registry,24/05/2021,Facilities Quoted & Ad-hoc Works,Facilities,ISS Mediclean Ltd,6008152,"2,340.15",Facilities Quoted & Ad-hoc Works,Programme
HM Land Registry,HM Land Registry,24/05/2021,Facilities Quoted & Ad-hoc Works,Facilities,ISS Mediclean Ltd,6008152,176.03,Facilities Quoted & Ad-hoc Works,Programme
HM Land Registry,HM Land Registry,24/05/2021,Facilities Quoted & Ad-hoc Works,Facilities,ISS Mediclean Ltd,6008152,"1,036.88",Facilities Quoted & Ad-hoc Works,Programme
HM Land Registry,HM Land Registry,24/05/2021,Facilities Quoted & Ad-hoc Works,Facilities,ISS Mediclean Ltd,6008152,"4,210.07",Facilities Quoted & Ad-hoc Works,Programme
HM Land Registry,HM Land Registry,24/05/2021,Facilities Quoted & Ad-hoc Works,Facilities,ISS Mediclean Ltd,6008152,"1,903.63",Facilities Quoted & Ad-hoc Works,Programme
HM Land Registry,HM Land Registry,24/05/2021,Facilities Quoted & Ad-hoc Works,Facilities,ISS Mediclean Ltd,6008152,190.19,Facilities Quoted & Ad-hoc Works,Programme
HM Land Registry,HM Land Registry,24/05/2021,Facilities Quoted & Ad-hoc Works,Facilities,ISS Mediclean Ltd,6008152,41.52,Facilities Quoted & Ad-hoc Works,Programme
HM Land Registry,HM Land Registry,24/05/2021,Facilities Quoted & Ad-hoc Works,Facilities,ISS Mediclean Ltd,6008152,606.23,Facilities Quoted & Ad-hoc Works,Programme
HM Land Registry,HM Land Registry,24/05/2021,Facilities Quoted & Ad-hoc Works,Facilities,ISS Mediclean Ltd,6008152,"5,593.47",Facilities Quoted & Ad-hoc Works,Programme
HM Land Registry,HM Land Registry,24/05/2021,Facilities Quoted & Ad-hoc Works,Facilities,ISS Mediclean Ltd,6008152,55.22,Facilities Quoted & Ad-hoc Works,Programme
HM Land Registry,HM Land Registry,24/05/2021,Facilities Quoted & Ad-hoc Works,Facilities,ISS Mediclean Ltd,6008152,"4,852.37",Facilities Quoted & Ad-hoc Works,Programme
HM Land Registry,HM Land Registry,24/05/2021,Facilities Quoted & Ad-hoc Works,Facilities,ISS Mediclean Ltd,6008152,"2,549.67",Facilities Quoted & Ad-hoc Works,Programme
HM Land Registry,HM Land Registry,24/05/2021,Facilities Quoted & Ad-hoc Works,Facilities,ISS Mediclean Ltd,6008152,203.91,Facilities Quoted & Ad-hoc Works,Programme
HM Land Registry,HM Land Registry,24/05/2021,Facilities Quoted & Ad-hoc Works,Facilities,ISS Mediclean Ltd,6008152,"1,232.77",Facilities Quoted & Ad-hoc Works,Programme
HM Land Registry,HM Land Registry,24/05/2021,Facilities Quoted & Ad-hoc Works,Facilities,ISS Mediclean Ltd,6008152,"5,230.84",Facilities Quoted & Ad-hoc Works,Programme
HM Land Registry,HM Land Registry,24/05/2021,Facilities Quoted & Ad-hoc Works,Facilities,ISS Mediclean Ltd,6008152,"2,695.97",Facilities Quoted & Ad-hoc Works,Programme
HM Land Registry,HM Land Registry,24/05/2021,Facilities Quoted & Ad-hoc Works,Facilities,ISS Mediclean Ltd,6008152,210.00,Facilities Quoted & Ad-hoc Works,Programme
HM Land Registry,HM Land Registry,24/05/2021,Facilities Quoted & Ad-hoc Works,Facilities,ISS Mediclean Ltd,6008152,34.52,Facilities Quoted & Ad-hoc Works,Programme
HM Land Registry,HM Land Registry,24/05/2021,Facilities Quoted & Ad-hoc Works,Facilities,ISS Mediclean Ltd,6008152,135.76,Facilities Quoted & Ad-hoc Works,Programme
HM Land Registry,HM Land Registry,24/05/2021,Facilities Quoted & Ad-hoc Works,Facilities,ISS Mediclean Ltd,6008152,"2,332.41",Facilities Quoted & Ad-hoc Works,Programme
HM Land Registry,HM Land Registry,24/05/2021,Facilities Quoted & Ad-hoc Works,Facilities,ISS Mediclean Ltd,6008152,41.62,Facilities Quoted & Ad-hoc Works,Programme
HM Land Registry,HM Land Registry,24/05/2021,Facilities Quoted & Ad-hoc Works,Facilities,ISS Mediclean Ltd,6008152,"8,905.74",Facilities Quoted & Ad-hoc Works,Programme
HM Land Registry,HM Land Registry,24/05/2021,Facilities Quoted & Ad-hoc Works,Facilities,ISS Mediclean Ltd,6008152,"6,210.86",Facilities Quoted & Ad-hoc Works,Programme
HM Land Registry,HM Land Registry,24/05/2021,Facilities Quoted & Ad-hoc Works,Facilities,ISS Mediclean Ltd,6008152,241.14,Facilities Quoted & Ad-hoc Works,Programme
HM Land Registry,HM Land Registry,24/05/2021,Facilities Quoted & Ad-hoc Works,Facilities,ISS Mediclean Ltd,6008152,339.55,Facilities Quoted & Ad-hoc Works,Programme
HM Land Registry,HM Land Registry,24/05/2021,Facilities Quoted & Ad-hoc Works,Facilities,ISS Mediclean Ltd,6008152,"8,625.58",Facilities Quoted & Ad-hoc Works,Programme
HM Land Registry,HM Land Registry,24/05/2021,Facilities Quoted & Ad-hoc Works,Facilities,ISS Mediclean Ltd,6008152,341.93,Facilities Quoted & Ad-hoc Works,Programme
HM Land Registry,HM Land Registry,24/05/2021,Facilities Quoted & Ad-hoc Works,Facilities,ISS Mediclean Ltd,6008152,39.00,Facilities Quoted & Ad-hoc Works,Programme
HM Land Registry,HM Land Registry,24/05/2021,Facilities Quoted & Ad-hoc Works,Facilities,ISS Mediclean Ltd,6008152,25.72,Facilities Quoted & Ad-hoc Works,Programme
HM Land Registry,HM Land Registry,24/05/2021,Facilities Quoted & Ad-hoc Works,Facilities,ISS Mediclean Ltd,6008152,99.01,Facilities Quoted & Ad-hoc Works,Programme
HM Land Registry,HM Land Registry,24/05/2021,Facilities Quoted & Ad-hoc Works,Facilities,ISS Mediclean Ltd,6008152,940.23,Facilities Quoted & Ad-hoc Works,Programme
HM Land Registry,HM Land Registry,24/05/2021,Facilities Quoted & Ad-hoc Works,Facilities,ISS Mediclean Ltd,6008152,41.62,Facilities Quoted & Ad-hoc Works,Programme
HM Land Registry,HM Land Registry,24/05/2021,Facilities Quoted & Ad-hoc Works,Facilities,ISS Mediclean Ltd,6008152,"11,833.69",Facilities Quoted & Ad-hoc Works,Programme
HM Land Registry,HM Land Registry,24/05/2021,Facilities Quoted & Ad-hoc Works,Facilities,ISS Mediclean Ltd,6008152,"1,256.29",Facilities Quoted & Ad-hoc Works,Programme
HM Land Registry,HM Land Registry,24/05/2021,Facilities Quoted & Ad-hoc Works,Facilities,ISS Mediclean Ltd,6008152,161.20,Facilities Quoted & Ad-hoc Works,Programme
HM Land Registry,HM Land Registry,24/05/2021,Facilities Quoted & Ad-hoc Works,Facilities,ISS Mediclean Ltd,6008152,325.85,Facilities Quoted & Ad-hoc Works,Programme
HM Land Registry,HM Land Registry,24/05/2021,Facilities Quoted & Ad-hoc Works,Facilities,ISS Mediclean Ltd,6008152,"10,013.97",Facilities Quoted & Ad-hoc Works,Programme
HM Land Registry,HM Land Registry,24/05/2021,Facilities Quoted & Ad-hoc Works,Facilities,ISS Mediclean Ltd,6008152,447.14,Facilities Quoted & Ad-hoc Works,Programme
HM Land Registry,HM Land Registry,24/05/2021,Facilities Quoted & Ad-hoc Works,Facilities,ISS Mediclean Ltd,6008152,17.56,Facilities Quoted & Ad-hoc Works,Programme
HM Land Registry,HM Land Registry,24/05/2021,Facilities Quoted & Ad-hoc Works,Facilities,ISS Mediclean Ltd,6008152,16.85,Facilities Quoted & Ad-hoc Works,Programme
HM Land Registry,HM Land Registry,24/05/2021,Facilities Quoted & Ad-hoc Works,Facilities,ISS Mediclean Ltd,6008152,497.91,Facilities Quoted & Ad-hoc Works,Programme
HM Land Registry,HM Land Registry,24/05/2021,Facilities Quoted & Ad-hoc Works,Facilities,ISS Mediclean Ltd,6008152,629.78,Facilities Quoted & Ad-hoc Works,Programme
HM Land Registry,HM Land Registry,24/05/2021,Facilities Quoted & Ad-hoc Works,Facilities,ISS Mediclean Ltd,6008152,16.94,Facilities Quoted & Ad-hoc Works,Programme
HM Land Registry,HM Land Registry,24/05/2021,Facilities Quoted & Ad-hoc Works,Facilities,ISS Mediclean Ltd,6008152,129.18,Facilities Quoted & Ad-hoc Works,Programme
HM Land Registry,HM Land Registry,24/05/2021,Facilities Quoted & Ad-hoc Works,Facilities,ISS Mediclean Ltd,6008152,166.53,Facilities Quoted & Ad-hoc Works,Programme
HM Land Registry,HM Land Registry,24/05/2021,Facilities Quoted & Ad-hoc Works,Facilities,ISS Mediclean Ltd,6008152,16.88,Facilities Quoted & Ad-hoc Works,Programme
HM Land Registry,HM Land Registry,24/05/2021,Facilities Quoted & Ad-hoc Works,Facilities,ISS Mediclean Ltd,6008152,-0.01,Facilities Quoted & Ad-hoc Works,Programme
HM Land Registry,HM Land Registry,24/05/2021,Facilities Quoted & Ad-hoc Works,Facilities,ISS Mediclean Ltd,6008152,173.75,Facilities Quoted & Ad-hoc Works,Programme
HM Land Registry,HM Land Registry,24/05/2021,Facilities Quoted & Ad-hoc Works,Facilities,ISS Mediclean Ltd,6008152,313.62,Facilities Quoted & Ad-hoc Works,Programme
HM Land Registry,HM Land Registry,24/05/2021,Facilities Quoted & Ad-hoc Works,Facilities,ISS Mediclean Ltd,6008152,41.16,Facilities Quoted & Ad-hoc Works,Programme
HM Land Registry,HM Land Registry,24/05/2021,Facilities Quoted & Ad-hoc Works,Facilities,ISS Mediclean Ltd,6008152,102.98,Facilities Quoted & Ad-hoc Works,Programme
HM Land Registry,HM Land Registry,24/05/2021,Facilities Quoted & Ad-hoc Works,Facilities,ISS Mediclean Ltd,6008152,245.01,Facilities Quoted & Ad-hoc Works,Programme
HM Land Registry,HM Land Registry,24/05/2021,Facilities Quoted & Ad-hoc Works,Facilities,ISS Mediclean Ltd,6008152,142.47,Facilities Quoted & Ad-hoc Works,Programme
HM Land Registry,HM Land Registry,24/05/2021,Facilities Quoted & Ad-hoc Works,Facilities,ISS Mediclean Ltd,6008152,16.88,Facilities Quoted & Ad-hoc Works,Programme
HM Land Registry,HM Land Registry,24/05/2021,Facilities Quoted & Ad-hoc Works,Facilities,ISS Mediclean Ltd,6008152,135.84,Facilities Quoted & Ad-hoc Works,Programme
HM Land Registry,HM Land Registry,24/05/2021,Facilities Quoted & Ad-hoc Works,Facilities,ISS Mediclean Ltd,6008152,632.37,Facilities Quoted & Ad-hoc Works,Programme
HM Land Registry,HM Land Registry,24/05/2021,Facilities Quoted & Ad-hoc Works,Facilities,ISS Mediclean Ltd,6008152,16.52,Facilities Quoted & Ad-hoc Works,Programme
HM Land Registry,HM Land Registry,24/05/2021,Facilities Quoted & Ad-hoc Works,Facilities,ISS Mediclean Ltd,6008152,62.37,Facilities Quoted & Ad-hoc Works,Programme
HM Land Registry,HM Land Registry,24/05/2021,Facilities Quoted & Ad-hoc Works,Facilities,ISS Mediclean Ltd,6008152,444.50,Facilities Quoted & Ad-hoc Works,Programme
HM Land Registry,HM Land Registry,24/05/2021,Facilities Quoted & Ad-hoc Works,Facilities,ISS Mediclean Ltd,6008152,460.29,Facilities Quoted & Ad-hoc Works,Programme
HM Land Registry,HM Land Registry,24/05/2021,Facilities Quoted & Ad-hoc Works,Facilities,ISS Mediclean Ltd,6008152,16.79,Facilities Quoted & Ad-hoc Works,Programme
HM Land Registry,HM Land Registry,24/05/2021,Facilities Quoted & Ad-hoc Works,Facilities,ISS Mediclean Ltd,6008152,66.44,Facilities Quoted & Ad-hoc Works,Programme
HM Land Registry,HM Land Registry,24/05/2021,Facilities Quoted & Ad-hoc Works,Facilities,ISS Mediclean Ltd,6008152,632.37,Facilities Quoted & Ad-hoc Works,Programme
HM Land Registry,HM Land Registry,24/05/2021,Facilities Quoted & Ad-hoc Works,Facilities,ISS Mediclean Ltd,6008152,15.44,Facilities Quoted & Ad-hoc Works,Programme
HM Land Registry,HM Land Registry,24/05/2021,Facilities Quoted & Ad-hoc Works,Facilities,ISS Mediclean Ltd,6008152,39.88,Facilities Quoted & Ad-hoc Works,Programme
HM Land Registry,HM Land Registry,24/05/2021,Facilities Quoted & Ad-hoc Works,Facilities,ISS Mediclean Ltd,6008152,366.24,Facilities Quoted & Ad-hoc Works,Programme
HM Land Registry,HM Land Registry,24/05/2021,Facilities Quoted & Ad-hoc Works,Facilities,ISS Mediclean Ltd,6008152,355.08,Facilities Quoted & Ad-hoc Works,Programme
HM Land Registry,HM Land Registry,24/05/2021,Facilities Quoted & Ad-hoc Works,Facilities,ISS Mediclean Ltd,6008152,9.20,Facilities Quoted & Ad-hoc Works,Programme
HM Land Registry,HM Land Registry,24/05/2021,Facilities Quoted & Ad-hoc Works,Facilities,ISS Mediclean Ltd,6008152,9.64,Facilities Quoted & Ad-hoc Works,Programme
HM Land Registry,HM Land Registry,24/05/2021,Facilities Quoted & Ad-hoc Works,Facilities,ISS Mediclean Ltd,6008152,181.29,Facilities Quoted & Ad-hoc Works,Programme
HM Land Registry,HM Land Registry,27/05/2021,Facilities Quoted & Ad-hoc Works,Facilities,ISS Mediclean Ltd,6008196,"5,472.83",Facilities Quoted & Ad-hoc Works,Programme
HM Land Registry,HM Land Registry,27/05/2021,Facilities Quoted & Ad-hoc Works,Facilities,ISS Mediclean Ltd,6008196,"4,741.79",Facilities Quoted & Ad-hoc Works,Programme
HM Land Registry,HM Land Registry,27/05/2021,Facilities Quoted & Ad-hoc Works,Facilities,ISS Mediclean Ltd,6008196,"2,389.64",Facilities Quoted & Ad-hoc Works,Programme
HM Land Registry,HM Land Registry,27/05/2021,Facilities Quoted & Ad-hoc Works,Facilities,ISS Mediclean Ltd,6008196,"2,515.88",Facilities Quoted & Ad-hoc Works,Programme
HM Land Registry,HM Land Registry,27/05/2021,Facilities Quoted & Ad-hoc Works,Facilities,ISS Mediclean Ltd,6008196,"60,370.39",Facilities Quoted & Ad-hoc Works,Programme
HM Land Registry,HM Land Registry,27/05/2021,Facilities Quoted & Ad-hoc Works,Facilities,ISS Mediclean Ltd,6008196,"1,775.30",Facilities Quoted & Ad-hoc Works,Programme
HM Land Registry,HM Land Registry,27/05/2021,Facilities Quoted & Ad-hoc Works,Facilities,ISS Mediclean Ltd,6008196,713.19,Facilities Quoted & Ad-hoc Works,Programme
HM Land Registry,HM Land Registry,27/05/2021,Facilities Quoted & Ad-hoc Works,Facilities,ISS Mediclean Ltd,6008196,"17,557.84",Facilities Quoted & Ad-hoc Works,Programme
HM Land Registry,HM Land Registry,27/05/2021,Facilities Quoted & Ad-hoc Works,Facilities,ISS Mediclean Ltd,6008196,"3,372.98",Facilities Quoted & Ad-hoc Works,Programme
HM Land Registry,HM Land Registry,27/05/2021,Facilities Quoted & Ad-hoc Works,Facilities,ISS Mediclean Ltd,6008196,"1,063.78",Facilities Quoted & Ad-hoc Works,Programme
HM Land Registry,HM Land Registry,27/05/2021,Facilities Quoted & Ad-hoc Works,Facilities,ISS Mediclean Ltd,6008196,"34,737.24",Facilities Quoted & Ad-hoc Works,Programme
HM Land Registry,HM Land Registry,27/05/2021,Facilities Quoted & Ad-hoc Works,Facilities,ISS Mediclean Ltd,6008196,"1,055.17",Facilities Quoted & Ad-hoc Works,Programme
HM Land Registry,HM Land Registry,27/05/2021,Facilities Quoted & Ad-hoc Works,Facilities,ISS Mediclean Ltd,6008196,"2,883.45",Facilities Quoted & Ad-hoc Works,Programme
HM Land Registry,HM Land Registry,27/05/2021,Facilities Quoted & Ad-hoc Works,Facilities,ISS Mediclean Ltd,6008196,"1,172.63",Facilities Quoted & Ad-hoc Works,Programme
HM Land Registry,HM Land Registry,27/05/2021,Facilities Quoted & Ad-hoc Works,Facilities,ISS Mediclean Ltd,6008196,"1,297.28",Facilities Quoted & Ad-hoc Works,Programme
HM Land Registry,HM Land Registry,27/05/2021,Facilities Quoted & Ad-hoc Works,Facilities,ISS Mediclean Ltd,6008196,126.99,Facilities Quoted & Ad-hoc Works,Programme
HM Land Registry,HM Land Registry,27/05/2021,Facilities Quoted & Ad-hoc Works,Facilities,ISS Mediclean Ltd,6008196,"5,015.77",Facilities Quoted & Ad-hoc Works,Programme
HM Land Registry,HM Land Registry,27/05/2021,Facilities Quoted & Ad-hoc Works,Facilities,ISS Mediclean Ltd,6008196,593.30,Facilities Quoted & Ad-hoc Works,Programme
HM Land Registry,HM Land Registry,27/05/2021,Facilities Quoted & Ad-hoc Works,Facilities,ISS Mediclean Ltd,6008196,871.54,Facilities Quoted & Ad-hoc Works,Programme
HM Land Registry,HM Land Registry,27/05/2021,Facilities Quoted & Ad-hoc Works,Facilities,ISS Mediclean Ltd,6008196,"3,929.46",Facilities Quoted & Ad-hoc Works,Programme
HM Land Registry,HM Land Registry,27/05/2021,Facilities Quoted & Ad-hoc Works,Facilities,ISS Mediclean Ltd,6008196,848.10,Facilities Quoted & Ad-hoc Works,Programme
HM Land Registry,HM Land Registry,27/05/2021,Facilities Quoted & Ad-hoc Works,Facilities,ISS Mediclean Ltd,6008196,501.04,Facilities Quoted & Ad-hoc Works,Programme
HM Land Registry,HM Land Registry,27/05/2021,Facilities Quoted & Ad-hoc Works,Facilities,ISS Mediclean Ltd,6008196,863.07,Facilities Quoted & Ad-hoc Works,Programme
HM Land Registry,HM Land Registry,27/05/2021,Facilities Quoted & Ad-hoc Works,Facilities,ISS Mediclean Ltd,6008196,399.56,Facilities Quoted & Ad-hoc Works,Programme
HM Land Registry,HM Land Registry,27/05/2021,Facilities Quoted & Ad-hoc Works,Facilities,ISS Mediclean Ltd,6008196,74.62,Facilities Quoted & Ad-hoc Works,Programme
HM Land Registry,HM Land Registry,27/05/2021,Facilities Quoted & Ad-hoc Works,Facilities,ISS Mediclean Ltd,6008196,"4,492.12",Facilities Quoted & Ad-hoc Works,Programme
HM Land Registry,HM Land Registry,27/05/2021,Facilities Quoted & Ad-hoc Works,Facilities,ISS Mediclean Ltd,6008196,"3,518.15",Facilities Quoted & Ad-hoc Works,Programme
HM Land Registry,HM Land Registry,27/05/2021,Facilities Quoted & Ad-hoc Works,Facilities,ISS Mediclean Ltd,6008196,"1,983.22",Facilities Quoted & Ad-hoc Works,Programme
HM Land Registry,HM Land Registry,27/05/2021,Facilities Quoted & Ad-hoc Works,Facilities,ISS Mediclean Ltd,6008196,"1,368.43",Facilities Quoted & Ad-hoc Works,Programme
HM Land Registry,HM Land Registry,27/05/2021,Facilities Quoted & Ad-hoc Works,Facilities,ISS Mediclean Ltd,6008196,"1,095.05",Facilities Quoted & Ad-hoc Works,Programme
HM Land Registry,HM Land Registry,27/05/2021,Facilities Quoted & Ad-hoc Works,Facilities,ISS Mediclean Ltd,6008196,"2,058.54",Facilities Quoted & Ad-hoc Works,Programme
HM Land Registry,HM Land Registry,27/05/2021,Facilities Quoted & Ad-hoc Works,Facilities,ISS Mediclean Ltd,6008196,"3,096.94",Facilities Quoted & Ad-hoc Works,Programme
HM Land Registry,HM Land Registry,27/05/2021,Facilities Quoted & Ad-hoc Works,Facilities,ISS Mediclean Ltd,6008196,809.73,Facilities Quoted & Ad-hoc Works,Programme
HM Land Registry,HM Land Registry,27/05/2021,Facilities Quoted & Ad-hoc Works,Facilities,ISS Mediclean Ltd,6008196,"2,828.40",Facilities Quoted & Ad-hoc Works,Programme
HM Land Registry,HM Land Registry,27/05/2021,Facilities Quoted & Ad-hoc Works,Facilities,ISS Mediclean Ltd,6008196,513.96,Facilities Quoted & Ad-hoc Works,Programme
HM Land Registry,HM Land Registry,27/05/2021,Facilities Quoted & Ad-hoc Works,Facilities,ISS Mediclean Ltd,6008196,"1,124.19",Facilities Quoted & Ad-hoc Works,Programme
HM Land Registry,HM Land Registry,27/05/2021,Facilities Quoted & Ad-hoc Works,Facilities,ISS Mediclean Ltd,6008196,532.61,Facilities Quoted & Ad-hoc Works,Programme
HM Land Registry,HM Land Registry,27/05/2021,Facilities Quoted & Ad-hoc Works,Facilities,ISS Mediclean Ltd,6008196,310.84,Facilities Quoted & Ad-hoc Works,Programme
HM Land Registry,HM Land Registry,27/05/2021,Facilities Quoted & Ad-hoc Works,Facilities,ISS Mediclean Ltd,6008196,66.37,Facilities Quoted & Ad-hoc Works,Programme
HM Land Registry,HM Land Registry,27/05/2021,Facilities Quoted & Ad-hoc Works,Facilities,ISS Mediclean Ltd,6008196,"2,423.13",Facilities Quoted & Ad-hoc Works,Programme
HM Land Registry,HM Land Registry,27/05/2021,Facilities Quoted & Ad-hoc Works,Facilities,ISS Mediclean Ltd,6008196,"22,759.86",Facilities Quoted & Ad-hoc Works,Programme
HM Land Registry,HM Land Registry,27/05/2021,Facilities Quoted & Ad-hoc Works,Facilities,ISS Mediclean Ltd,6008196,518.65,Facilities Quoted & Ad-hoc Works,Programme
HM Land Registry,HM Land Registry,27/05/2021,Facilities Quoted & Ad-hoc Works,Facilities,ISS Mediclean Ltd,6008196,215.48,Facilities Quoted & Ad-hoc Works,Programme
HM Land Registry,HM Land Registry,27/05/2021,Facilities Quoted & Ad-hoc Works,Facilities,ISS Mediclean Ltd,6008196,"3,229.33",Facilities Quoted & Ad-hoc Works,Programme
HM Land Registry,HM Land Registry,27/05/2021,Facilities Quoted & Ad-hoc Works,Facilities,ISS Mediclean Ltd,6008196,"2,410.34",Facilities Quoted & Ad-hoc Works,Programme
HM Land Registry,HM Land Registry,27/05/2021,Facilities Quoted & Ad-hoc Works,Facilities,ISS Mediclean Ltd,6008196,"3,048.90",Facilities Quoted & Ad-hoc Works,Programme
HM Land Registry,HM Land Registry,27/05/2021,Facilities Quoted & Ad-hoc Works,Facilities,ISS Mediclean Ltd,6008196,"1,336.83",Facilities Quoted & Ad-hoc Works,Programme
HM Land Registry,HM Land Registry,27/05/2021,Facilities Quoted & Ad-hoc Works,Facilities,ISS Mediclean Ltd,6008196,"2,248.30",Facilities Quoted & Ad-hoc Works,Programme
HM Land Registry,HM Land Registry,27/05/2021,Facilities Quoted & Ad-hoc Works,Facilities,ISS Mediclean Ltd,6008196,"3,883.62",Facilities Quoted & Ad-hoc Works,Programme
HM Land Registry,HM Land Registry,27/05/2021,Facilities Quoted & Ad-hoc Works,Facilities,ISS Mediclean Ltd,6008196,677.98,Facilities Quoted & Ad-hoc Works,Programme
HM Land Registry,HM Land Registry,27/05/2021,Facilities Quoted & Ad-hoc Works,Facilities,ISS Mediclean Ltd,6008196,214.62,Facilities Quoted & Ad-hoc Works,Programme
HM Land Registry,HM Land Registry,27/05/2021,Facilities Quoted & Ad-hoc Works,Facilities,ISS Mediclean Ltd,6008196,"1,343.12",Facilities Quoted & Ad-hoc Works,Programme
HM Land Registry,HM Land Registry,27/05/2021,Facilities Quoted & Ad-hoc Works,Facilities,ISS Mediclean Ltd,6008196,25.27,Facilities Quoted & Ad-hoc Works,Programme
HM Land Registry,HM Land Registry,27/05/2021,Facilities Quoted & Ad-hoc Works,Facilities,ISS Mediclean Ltd,6008196,25.27,Facilities Quoted & Ad-hoc Works,Programme
HM Land Registry,HM Land Registry,27/05/2021,Facilities Quoted & Ad-hoc Works,Facilities,ISS Mediclean Ltd,6008196,83.08,Facilities Quoted & Ad-hoc Works,Programme
HM Land Registry,HM Land Registry,27/05/2021,Facilities Quoted & Ad-hoc Works,Facilities,ISS Mediclean Ltd,6008196,118.00,Facilities Quoted & Ad-hoc Works,Programme
HM Land Registry,HM Land Registry,27/05/2021,Facilities Quoted & Ad-hoc Works,Facilities,ISS Mediclean Ltd,6008196,426.42,Facilities Quoted & Ad-hoc Works,Programme
HM Land Registry,HM Land Registry,27/05/2021,Facilities Quoted & Ad-hoc Works,Facilities,ISS Mediclean Ltd,6008196,90.00,Facilities Quoted & Ad-hoc Works,Programme
HM Land Registry,HM Land Registry,27/05/2021,Facilities Quoted & Ad-hoc Works,Facilities,ISS Mediclean Ltd,6008196,"1,531.38",Facilities Quoted & Ad-hoc Works,Programme
HM Land Registry,HM Land Registry,27/05/2021,Facilities Quoted & Ad-hoc Works,Facilities,ISS Mediclean Ltd,6008196,"1,482.88",Facilities Quoted & Ad-hoc Works,Programme
HM Land Registry,HM Land Registry,27/05/2021,Facilities Quoted & Ad-hoc Works,Facilities,ISS Mediclean Ltd,6008196,275.60,Facilities Quoted & Ad-hoc Works,Programme
HM Land Registry,HM Land Registry,27/05/2021,Facilities Quoted & Ad-hoc Works,Facilities,ISS Mediclean Ltd,6008196,243.12,Facilities Quoted & Ad-hoc Works,Programme
HM Land Registry,HM Land Registry,27/05/2021,Facilities Quoted & Ad-hoc Works,Facilities,ISS Mediclean Ltd,6008196,"12,228.45",Facilities Quoted & Ad-hoc Works,Programme
HM Land Registry,HM Land Registry,27/05/2021,Facilities Quoted & Ad-hoc Works,Facilities,ISS Mediclean Ltd,6008196,20.77,Facilities Quoted & Ad-hoc Works,Programme
HM Land Registry,HM Land Registry,27/05/2021,Facilities Quoted & Ad-hoc Works,Facilities,ISS Mediclean Ltd,6008196,601.34,Facilities Quoted & Ad-hoc Works,Programme
HM Land Registry,HM Land Registry,27/05/2021,Facilities Quoted & Ad-hoc Works,Facilities,ISS Mediclean Ltd,6008196,361.66,Facilities Quoted & Ad-hoc Works,Programme
HM Land Registry,HM Land Registry,27/05/2021,Facilities Quoted & Ad-hoc Works,Facilities,ISS Mediclean Ltd,6008196,227.37,Facilities Quoted & Ad-hoc Works,Programme
HM Land Registry,HM Land Registry,27/05/2021,Facilities Quoted & Ad-hoc Works,Facilities,ISS Mediclean Ltd,6008196,581.54,Facilities Quoted & Ad-hoc Works,Programme
HM Land Registry,HM Land Registry,27/05/2021,Facilities Quoted & Ad-hoc Works,Facilities,ISS Mediclean Ltd,6008196,196.84,Facilities Quoted & Ad-hoc Works,Programme
HM Land Registry,HM Land Registry,27/05/2021,Facilities Quoted & Ad-hoc Works,Facilities,ISS Mediclean Ltd,6008196,138.46,Facilities Quoted & Ad-hoc Works,Programme
HM Land Registry,HM Land Registry,27/05/2021,Facilities Quoted & Ad-hoc Works,Facilities,ISS Mediclean Ltd,6008196,214.62,Facilities Quoted & Ad-hoc Works,Programme
HM Land Registry,HM Land Registry,27/05/2021,Facilities Quoted & Ad-hoc Works,Facilities,ISS Mediclean Ltd,6008196,85.28,Facilities Quoted & Ad-hoc Works,Programme
HM Land Registry,HM Land Registry,04/05/2021,Professional Services,DDaT Change Activities,Kainos Software Ltd,6007987,"37,986.67",Professional Services,Programme
HM Land Registry,HM Land Registry,04/05/2021,Professional Services,DDaT Change Activities,Kainos Software Ltd,6007987,"7,597.33",Professional Services,Programme
HM Land Registry,HM Land Registry,04/05/2021,Professional Services,DDaT Change Activities,Kainos Software Ltd,6007987,"18,898.00",Professional Services,Programme
HM Land Registry,HM Land Registry,04/05/2021,Professional Services,DDaT Change Activities,Kainos Software Ltd,6007987,"3,779.60",Professional Services,Programme
HM Land Registry,HM Land Registry,04/05/2021,Professional Services,DDaT Change Activities,Kainos Software Ltd,6007987,"92,138.00",Professional Services,Programme
HM Land Registry,HM Land Registry,04/05/2021,Professional Services,DDaT Change Activities,Kainos Software Ltd,6007987,"18,427.60",Professional Services,Programme
HM Land Registry,HM Land Registry,04/05/2021,Professional Services,DDaT Change Activities,Kainos Software Ltd,6007987,"15,462.00",Professional Services,Programme
HM Land Registry,HM Land Registry,04/05/2021,Professional Services,DDaT Change Activities,Kainos Software Ltd,6007987,"3,092.40",Professional Services,Programme
HM Land Registry,HM Land Registry,04/05/2021,Professional Services,DDaT Change Activities,Kainos Software Ltd,6007987,"43,684.50",Professional Services,Programme
HM Land Registry,HM Land Registry,04/05/2021,Professional Services,DDaT Change Activities,Kainos Software Ltd,6007987,"8,736.90",Professional Services,Programme
HM Land Registry,HM Land Registry,04/05/2021,Professional Services,Operations Change Activities,Kainos Software Ltd,6007987,"4,695.00",Professional Services,Programme
HM Land Registry,HM Land Registry,04/05/2021,Professional Services,Operations Change Activities,Kainos Software Ltd,6007987,"21,163.50",Professional Services,Programme
HM Land Registry,HM Land Registry,04/05/2021,Professional Services,Operations Change Activities,Kainos Software Ltd,6007987,939.00,Professional Services,Programme
HM Land Registry,HM Land Registry,04/05/2021,Professional Services,Operations Change Activities,Kainos Software Ltd,6007987,"4,232.70",Professional Services,Programme
HM Land Registry,HM Land Registry,04/05/2021,Professional Services,Transformation Change Activities,Kainos Software Ltd,6007987,"26,128.50",Professional Services,Programme
HM Land Registry,HM Land Registry,04/05/2021,Professional Services,Transformation Change Activities,Kainos Software Ltd,6007987,"5,225.70",Professional Services,Programme
HM Land Registry,HM Land Registry,04/05/2021,Professional Services,Operations Change Activities,Kainos Software Ltd,6007987,"19,939.30",Professional Services,Programme
HM Land Registry,HM Land Registry,04/05/2021,Professional Services,Operations Change Activities,Kainos Software Ltd,6007987,"10,307.60",Professional Services,Programme
HM Land Registry,HM Land Registry,04/05/2021,Professional Services,Operations Change Activities,Kainos Software Ltd,6007987,"19,032.50",Professional Services,Programme
HM Land Registry,HM Land Registry,04/05/2021,Professional Services,Operations Change Activities,Kainos Software Ltd,6007987,"3,987.86",Professional Services,Programme
HM Land Registry,HM Land Registry,04/05/2021,Professional Services,Operations Change Activities,Kainos Software Ltd,6007987,"2,061.52",Professional Services,Programme
HM Land Registry,HM Land Registry,04/05/2021,Professional Services,Operations Change Activities,Kainos Software Ltd,6007987,"3,806.50",Professional Services,Programme
HM Land Registry,HM Land Registry,04/05/2021,Professional Services,Office of DDaT,Kainos Software Ltd,6007987,"26,246.60",Professional Services,Programme
HM Land Registry,HM Land Registry,04/05/2021,Professional Services,Office of DDaT,Kainos Software Ltd,6007987,"5,249.32",Professional Services,Programme
HM Land Registry,HM Land Registry,04/05/2021,Professional Services,DDaT Change Activities,Kainos Software Ltd,6007987,"128,817.00",Professional Services,Programme
HM Land Registry,HM Land Registry,04/05/2021,Professional Services,DDaT Change Activities,Kainos Software Ltd,6007987,"25,763.40",Professional Services,Programme
HM Land Registry,HM Land Registry,05/05/2021,Professional Services,DDaT Change Activities,Kainos Software Ltd,6008000,"28,865.00",Professional Services,Programme
HM Land Registry,HM Land Registry,05/05/2021,Professional Services,DDaT Change Activities,Kainos Software Ltd,6008000,"45,445.00",Professional Services,Programme
HM Land Registry,HM Land Registry,05/05/2021,Professional Services,DDaT Change Activities,Kainos Software Ltd,6008000,"21,180.00",Professional Services,Programme
HM Land Registry,HM Land Registry,05/05/2021,Professional Services,DDaT Change Activities,Kainos Software Ltd,6008000,"5,773.00",Professional Services,Programme
HM Land Registry,HM Land Registry,05/05/2021,Professional Services,DDaT Change Activities,Kainos Software Ltd,6008000,"13,325.00",Professional Services,Programme
HM Land Registry,HM Land Registry,10/05/2021,Professional Services,DDaT Change Activities,Kainos Software Ltd,6008042,"34,155.00",Professional Services,Programme
HM Land Registry,HM Land Registry,10/05/2021,Professional Services,DDaT Change Activities,Kainos Software Ltd,6008042,"6,831.00",Professional Services,Programme
HM Land Registry,HM Land Registry,10/05/2021,Professional Services,Operations Change Activities,Kainos Software Ltd,6008042,"93,380.33",Professional Services,Programme
HM Land Registry,HM Land Registry,10/05/2021,Professional Services,Operations Change Activities,Kainos Software Ltd,6008042,"18,676.07",Professional Services,Programme
HM Land Registry,HM Land Registry,10/05/2021,Professional Services,DDaT Change Activities,Kainos Software Ltd,6008042,"158,194.00",Professional Services,Programme
HM Land Registry,HM Land Registry,10/05/2021,Professional Services,Transformation Change Activities,Kainos Software Ltd,6008042,"11,968.73",Professional Services,Programme
HM Land Registry,HM Land Registry,10/05/2021,Professional Services,DDaT Change Activities,Kainos Software Ltd,6008042,"6,242.07",Professional Services,Programme
HM Land Registry,HM Land Registry,10/05/2021,Professional Services,DDaT Change Activities,Kainos Software Ltd,6008042,"32,887.21",Professional Services,Programme
HM Land Registry,HM Land Registry,10/05/2021,Professional Services,Transformation Change Activities,Kainos Software Ltd,6008042,"2,393.75",Professional Services,Programme
HM Land Registry,HM Land Registry,10/05/2021,Professional Services,DDaT Change Activities,Kainos Software Ltd,6008042,"24,604.10",Professional Services,Programme
HM Land Registry,HM Land Registry,10/05/2021,Professional Services,DDaT Change Activities,Kainos Software Ltd,6008042,"4,920.82",Professional Services,Programme
HM Land Registry,HM Land Registry,10/05/2021,Professional Services,DDaT Change Activities,Kainos Software Ltd,6008042,"18,541.28",Professional Services,Programme
HM Land Registry,HM Land Registry,10/05/2021,Professional Services,DDaT Change Activities,Kainos Software Ltd,6008042,"92,706.40",Professional Services,Programme
HM Land Registry,HM Land Registry,10/05/2021,Professional Services,DDaT Change Activities,Kainos Software Ltd,6008042,"140,836.20",Professional Services,Programme
HM Land Registry,HM Land Registry,10/05/2021,Professional Services,DDaT Change Activities,Kainos Software Ltd,6008042,"38,284.70",Professional Services,Programme
HM Land Registry,HM Land Registry,10/05/2021,Professional Services,DDaT Change Activities,Kainos Software Ltd,6008042,"21,891.43",Professional Services,Programme
HM Land Registry,HM Land Registry,10/05/2021,Professional Services,DDaT Change Activities,Kainos Software Ltd,6008042,"4,378.29",Professional Services,Programme
HM Land Registry,HM Land Registry,10/05/2021,Professional Services,DDaT Change Activities,Kainos Software Ltd,6008042,"28,167.24",Professional Services,Programme
HM Land Registry,HM Land Registry,10/05/2021,Professional Services,DDaT Change Activities,Kainos Software Ltd,6008042,"7,656.94",Professional Services,Programme
HM Land Registry,HM Land Registry,10/05/2021,Professional Services,DDaT Change Activities,Kainos Software Ltd,6008042,"228,923.30",Professional Services,Programme
HM Land Registry,HM Land Registry,10/05/2021,Professional Services,DDaT Change Activities,Kainos Software Ltd,6008042,"45,784.66",Professional Services,Programme
HM Land Registry,HM Land Registry,10/05/2021,Professional Services,Finance,Kainos Software Ltd,6008042,"19,757.00",Professional Services,Programme
HM Land Registry,HM Land Registry,10/05/2021,Professional Services,Finance,Kainos Software Ltd,6008042,"3,951.40",Professional Services,Programme
HM Land Registry,HM Land Registry,24/05/2021,Professional Services,DDaT Change Activities,Kainos Software Ltd,6008153,"128,356.30",Professional Services,Programme
HM Land Registry,HM Land Registry,24/05/2021,Professional Services,DDaT Change Activities,Kainos Software Ltd,6008153,"15,462.00",Professional Services,Programme
HM Land Registry,HM Land Registry,24/05/2021,Professional Services,DDaT Change Activities,Kainos Software Ltd,6008153,"3,092.40",Professional Services,Programme
HM Land Registry,HM Land Registry,24/05/2021,Professional Services,DDaT Change Activities,Kainos Software Ltd,6008153,"25,671.26",Professional Services,Programme
HM Land Registry,HM Land Registry,24/05/2021,Professional Services,DDaT Change Activities,Kainos Software Ltd,6008153,"2,061.60",Professional Services,Programme
HM Land Registry,HM Land Registry,24/05/2021,Professional Services,DDaT Change Activities,Kainos Software Ltd,6008153,412.32,Professional Services,Programme
HM Land Registry,HM Land Registry,24/05/2021,Professional Services,DDaT Change Activities,Kainos Software Ltd,6008153,"5,295.00",Professional Services,Programme
HM Land Registry,HM Land Registry,24/05/2021,Professional Services,DDaT Change Activities,Kainos Software Ltd,6008153,"1,059.00",Professional Services,Programme
HM Land Registry,HM Land Registry,24/05/2021,Professional Services,DDaT Change Activities,Kainos Software Ltd,6008153,"141,554.57",Professional Services,Programme
HM Land Registry,HM Land Registry,24/05/2021,Professional Services,DDaT Change Activities,Kainos Software Ltd,6008153,"33,677.80",Professional Services,Programme
HM Land Registry,HM Land Registry,24/05/2021,Professional Services,DDaT Change Activities,Kainos Software Ltd,6008153,"24,252.00",Professional Services,Programme
HM Land Registry,HM Land Registry,24/05/2021,Professional Services,DDaT Change Activities,Kainos Software Ltd,6008153,"6,735.56",Professional Services,Programme
HM Land Registry,HM Land Registry,24/05/2021,Professional Services,DDaT Change Activities,Kainos Software Ltd,6008153,"4,850.40",Professional Services,Programme
HM Land Registry,HM Land Registry,24/05/2021,Professional Services,DDaT Change Activities,Kainos Software Ltd,6008153,"28,310.91",Professional Services,Programme
HM Land Registry,HM Land Registry,24/05/2021,Professional Services,Operations Change Activities,Kainos Software Ltd,6008153,"89,184.00",Professional Services,Programme
HM Land Registry,HM Land Registry,24/05/2021,Professional Services,Operations Change Activities,Kainos Software Ltd,6008153,"17,836.80",Professional Services,Programme
HM Land Registry,HM Land Registry,24/05/2021,Professional Services,DDaT Change Activities,Kainos Software Ltd,6008153,"47,838.50",Professional Services,Programme
HM Land Registry,HM Land Registry,24/05/2021,Professional Services,DDaT Change Activities,Kainos Software Ltd,6008153,"9,567.70",Professional Services,Programme
HM Land Registry,HM Land Registry,24/05/2021,Professional Services,DDaT Change Activities,Kainos Software Ltd,6008153,"11,385.00",Professional Services,Programme
HM Land Registry,HM Land Registry,24/05/2021,Professional Services,DDaT Change Activities,Kainos Software Ltd,6008153,"2,277.00",Professional Services,Programme
HM Land Registry,HM Land Registry,24/05/2021,Professional Services,DDaT Change Activities,Kainos Software Ltd,6008153,"80,306.50",Professional Services,Programme
HM Land Registry,HM Land Registry,24/05/2021,Professional Services,DDaT Change Activities,Kainos Software Ltd,6008153,"16,061.30",Professional Services,Programme
HM Land Registry,HM Land Registry,24/05/2021,Professional Services,DDaT Change Activities,Kainos Software Ltd,6008153,"26,979.17",Professional Services,Programme
HM Land Registry,HM Land Registry,24/05/2021,Professional Services,DDaT Change Activities,Kainos Software Ltd,6008153,"5,395.83",Professional Services,Programme
HM Land Registry,HM Land Registry,24/05/2021,Professional Services,Office of DDaT,Kainos Software Ltd,6008153,"68,543.60",Professional Services,Programme
HM Land Registry,HM Land Registry,24/05/2021,Professional Services,Office of DDaT,Kainos Software Ltd,6008153,"13,708.72",Professional Services,Programme
HM Land Registry,HM Land Registry,24/05/2021,Professional Services,Office of DDaT,Kainos Software Ltd,6008153,"45,179.50",Professional Services,Programme
HM Land Registry,HM Land Registry,24/05/2021,Professional Services,Office of DDaT,Kainos Software Ltd,6008153,"9,035.90",Professional Services,Programme
HM Land Registry,HM Land Registry,26/05/2021,Professional Services,DDaT Change Activities,Kainos Software Ltd,6008175,"8,590.00",Professional Services,Programme
HM Land Registry,HM Land Registry,26/05/2021,Professional Services,DDaT Change Activities,Kainos Software Ltd,6008175,"21,180.00",Professional Services,Programme
HM Land Registry,HM Land Registry,26/05/2021,Professional Services,DDaT Change Activities,Kainos Software Ltd,6008175,"1,718.00",Professional Services,Programme
HM Land Registry,HM Land Registry,26/05/2021,Professional Services,DDaT Change Activities,Kainos Software Ltd,6008175,"4,236.00",Professional Services,Programme
HM Land Registry,HM Land Registry,26/05/2021,Professional Services,Operations Change Activities,Kainos Software Ltd,6008175,"33,425.00",Professional Services,Programme
HM Land Registry,HM Land Registry,26/05/2021,Professional Services,Operations Change Activities,Kainos Software Ltd,6008175,"5,295.00",Professional Services,Programme
HM Land Registry,HM Land Registry,26/05/2021,Professional Services,Operations Change Activities,Kainos Software Ltd,6008175,"26,163.50",Professional Services,Programme
HM Land Registry,HM Land Registry,26/05/2021,Professional Services,Operations Change Activities,Kainos Software Ltd,6008175,"5,647.50",Professional Services,Programme
HM Land Registry,HM Land Registry,26/05/2021,Professional Services,Operations Change Activities,Kainos Software Ltd,6008175,"1,129.50",Professional Services,Programme
HM Land Registry,HM Land Registry,26/05/2021,Professional Services,Operations Change Activities,Kainos Software Ltd,6008175,"1,059.00",Professional Services,Programme
HM Land Registry,HM Land Registry,26/05/2021,Professional Services,Operations Change Activities,Kainos Software Ltd,6008175,"6,685.00",Professional Services,Programme
HM Land Registry,HM Land Registry,26/05/2021,Professional Services,Operations Change Activities,Kainos Software Ltd,6008175,"5,232.70",Professional Services,Programme
HM Land Registry,HM Land Registry,26/05/2021,Professional Services,Transformation Change Activities,Kainos Software Ltd,6008175,"21,631.50",Professional Services,Programme
HM Land Registry,HM Land Registry,26/05/2021,Professional Services,Transformation Change Activities,Kainos Software Ltd,6008175,"4,326.30",Professional Services,Programme
HM Land Registry,HM Land Registry,26/05/2021,Professional Services,DDaT Change Activities,Kainos Software Ltd,6008175,"77,254.46",Professional Services,Programme
HM Land Registry,HM Land Registry,26/05/2021,Professional Services,DDaT Change Activities,Kainos Software Ltd,6008175,"386,272.30",Professional Services,Programme
HM Land Registry,HM Land Registry,26/05/2021,Professional Services,Finance,Kainos Software Ltd,6008175,"16,321.00",Professional Services,Programme
HM Land Registry,HM Land Registry,26/05/2021,Professional Services,Finance,Kainos Software Ltd,6008175,"3,264.20",Professional Services,Programme
HM Land Registry,HM Land Registry,26/05/2021,Professional Services,Office of DDaT,Kainos Software Ltd,6008175,"22,063.40",Professional Services,Programme
HM Land Registry,HM Land Registry,26/05/2021,Professional Services,Office of DDaT,Kainos Software Ltd,6008175,"4,412.68",Professional Services,Programme
HM Land Registry,HM Land Registry,26/05/2021,Professional Services,DDaT Change Activities,Kainos Software Ltd,6008175,"-386,272.30",Professional Services,Programme
HM Land Registry,HM Land Registry,26/05/2021,Professional Services,DDaT Change Activities,Kainos Software Ltd,6008175,"-77,254.46",Professional Services,Programme
HM Land Registry,HM Land Registry,26/05/2021,Professional Services,DDaT Change Activities,Kainos Software Ltd,6008175,"77,214.46",Professional Services,Programme
HM Land Registry,HM Land Registry,26/05/2021,Professional Services,DDaT Change Activities,Kainos Software Ltd,6008175,"386,072.30",Professional Services,Programme
HM Land Registry,HM Land Registry,21/05/2021,Software as a Service (Cloud),DDaT Operations,Mulesoft LLC,60411,"69,430.81",Software as a Service (Cloud),Programme
HM Land Registry,HM Land Registry,12/05/2021,Professional Services,DDaT Change Activities,North Highland UK Ltd,6008067,"27,878.00",Professional Services,Programme
HM Land Registry,HM Land Registry,12/05/2021,Professional Services,DDaT Change Activities,North Highland UK Ltd,6008067,"11,833.50",Professional Services,Programme
HM Land Registry,HM Land Registry,12/05/2021,Professional Services,DDaT Change Activities,North Highland UK Ltd,6008067,"12,960.50",Professional Services,Programme
HM Land Registry,HM Land Registry,12/05/2021,Professional Services,DDaT Change Activities,North Highland UK Ltd,6008067,"9,579.50",Professional Services,Programme
HM Land Registry,HM Land Registry,12/05/2021,Professional Services,DDaT Change Activities,North Highland UK Ltd,6008067,"30,654.40",Professional Services,Programme
HM Land Registry,HM Land Registry,12/05/2021,Professional Services,DDaT Change Activities,North Highland UK Ltd,6008067,"12,355.90",Professional Services,Programme
HM Land Registry,HM Land Registry,12/05/2021,Professional Services,DDaT Change Activities,North Highland UK Ltd,6008067,"2,471.18",Professional Services,Programme
HM Land Registry,HM Land Registry,12/05/2021,Professional Services,DDaT Change Activities,North Highland UK Ltd,6008067,"1,915.90",Professional Services,Programme
HM Land Registry,HM Land Registry,12/05/2021,Professional Services,DDaT Change Activities,North Highland UK Ltd,6008067,"7,942.30",Professional Services,Programme
HM Land Registry,HM Land Registry,12/05/2021,Professional Services,DDaT Change Activities,North Highland UK Ltd,6008067,"2,592.10",Professional Services,Programme
HM Land Registry,HM Land Registry,12/05/2021,Professional Services,DDaT Change Activities,North Highland UK Ltd,6008067,"6,130.88",Professional Services,Programme
HM Land Registry,HM Land Registry,19/05/2021,Professional Services,DDaT Change Activities,North Highland UK Ltd,6008123,"15,060.00",Professional Services,Programme
HM Land Registry,HM Land Registry,19/05/2021,Professional Services,DDaT Change Activities,North Highland UK Ltd,6008123,"3,012.00",Professional Services,Programme
HM Land Registry,HM Land Registry,19/05/2021,Professional Services,Transformation Change Activities,North Highland UK Ltd,6008123,"8,556.00",Professional Services,Programme
HM Land Registry,HM Land Registry,19/05/2021,Professional Services,Transformation Change Activities,North Highland UK Ltd,6008123,"1,711.20",Professional Services,Programme
HM Land Registry,HM Land Registry,19/05/2021,Professional Services,DDaT Change Activities,North Highland UK Ltd,6008123,"44,316.00",Professional Services,Programme
HM Land Registry,HM Land Registry,19/05/2021,Professional Services,DDaT Change Activities,North Highland UK Ltd,6008123,"17,491.50",Professional Services,Programme
HM Land Registry,HM Land Registry,19/05/2021,Professional Services,DDaT Change Activities,North Highland UK Ltd,6008123,"10,488.00",Professional Services,Programme
HM Land Registry,HM Land Registry,19/05/2021,Professional Services,DDaT Change Activities,North Highland UK Ltd,6008123,"10,488.00",Professional Services,Programme
HM Land Registry,HM Land Registry,19/05/2021,Professional Services,DDaT Change Activities,North Highland UK Ltd,6008123,"11,114.60",Professional Services,Programme
HM Land Registry,HM Land Registry,19/05/2021,Professional Services,DDaT Change Activities,North Highland UK Ltd,6008123,"17,744.40",Professional Services,Programme
HM Land Registry,HM Land Registry,19/05/2021,Professional Services,DDaT Change Activities,North Highland UK Ltd,6008123,"2,222.92",Professional Services,Programme
HM Land Registry,HM Land Registry,19/05/2021,Professional Services,DDaT Change Activities,North Highland UK Ltd,6008123,"3,548.88",Professional Services,Programme
HM Land Registry,HM Land Registry,19/05/2021,Professional Services,DDaT Change Activities,North Highland UK Ltd,6008123,"3,498.30",Professional Services,Programme
HM Land Registry,HM Land Registry,19/05/2021,Professional Services,DDaT Change Activities,North Highland UK Ltd,6008123,"8,863.20",Professional Services,Programme
HM Land Registry,HM Land Registry,19/05/2021,Professional Services,DDaT Change Activities,North Highland UK Ltd,6008123,"2,097.60",Professional Services,Programme
HM Land Registry,HM Land Registry,19/05/2021,Professional Services,DDaT Change Activities,North Highland UK Ltd,6008123,"2,097.60",Professional Services,Programme
HM Land Registry,HM Land Registry,13/05/2021,Software as a Service (Cloud),DDaT Operations,Oracle Corporation (UK) Ltd,6008080,"49,875.00",Software as a Service (Cloud),Programme
HM Land Registry,HM Land Registry,28/05/2021,Ordnance Survey Surveys,Central Operations,Ordnance Survey,6008212,"209,939.00",Ordnance Survey Surveys,Programme
HM Land Registry,HM Land Registry,17/05/2021,Fixed Asset Interface Account,Balance Sheet,Pitney Bowes Finance Ltd,6008091,"320,000.00",Fixed Asset Interface Account,Programme
HM Land Registry,HM Land Registry,17/05/2021,Computer Equipment Maintenance,DDaT Operations,Pitney Bowes Finance Ltd,6008091,"35,000.00",Computer Equipment Maintenance,Programme
HM Land Registry,HM Land Registry,17/05/2021,Fixed Asset Interface Account,Balance Sheet,Pitney Bowes Finance Ltd,6008091,"64,000.00",Fixed Asset Interface Account,Programme
HM Land Registry,HM Land Registry,17/05/2021,Fixed Asset Interface Account,Balance Sheet,Pitney Bowes Finance Ltd,6008091,"320,000.00",Fixed Asset Interface Account,Programme
HM Land Registry,HM Land Registry,17/05/2021,Fixed Asset Interface Account,Balance Sheet,Pitney Bowes Finance Ltd,6008091,"64,000.00",Fixed Asset Interface Account,Programme
HM Land Registry,HM Land Registry,17/05/2021,Fixed Asset Interface Account,Balance Sheet,Pitney Bowes Finance Ltd,6008091,"-320,000.00",Fixed Asset Interface Account,Programme
HM Land Registry,HM Land Registry,17/05/2021,Computer Equipment Maintenance,DDaT Operations,Pitney Bowes Finance Ltd,6008091,"-35,000.00",Computer Equipment Maintenance,Programme
HM Land Registry,HM Land Registry,17/05/2021,Fixed Asset Interface Account,Balance Sheet,Pitney Bowes Finance Ltd,6008091,"-64,000.00",Fixed Asset Interface Account,Programme
HM Land Registry,HM Land Registry,27/05/2021,Rates Payable,Facilities & Property Asset Management,Plymouth City Council,6008201,"32,768.00",Rates Payable,Programme
HM Land Registry,HM Land Registry,24/05/2021,RFS Outsourced Services,Document Storage and Retrieval,Restore Plc,6008155,"155,331.98",RFS Outsourced Services,Programme
HM Land Registry,HM Land Registry,24/05/2021,RFS Outsourced Services,Document Storage and Retrieval,Restore Plc,6008155,"210,705.64",RFS Outsourced Services,Programme
HM Land Registry,HM Land Registry,13/05/2021,Letter Post,Facilities,Royal Mail,6008082,3.10,Letter Post,Programme
HM Land Registry,HM Land Registry,13/05/2021,Letter Post,Facilities,Royal Mail,6008082,62.00,Letter Post,Programme
HM Land Registry,HM Land Registry,13/05/2021,Letter Post,Facilities,Royal Mail,6008082,"1,371.50",Letter Post,Programme
HM Land Registry,HM Land Registry,13/05/2021,Letter Post,Facilities,Royal Mail,6008082,77.08,Letter Post,Programme
HM Land Registry,HM Land Registry,13/05/2021,Letter Post,Facilities,Royal Mail,6008082,129.08,Letter Post,Programme
HM Land Registry,HM Land Registry,13/05/2021,Letter Post,Facilities,Royal Mail,6008082,"9,743.56",Letter Post,Programme
HM Land Registry,HM Land Registry,13/05/2021,Letter Post,Facilities,Royal Mail,6008082,192.70,Letter Post,Programme
HM Land Registry,HM Land Registry,13/05/2021,Letter Post,Facilities,Royal Mail,6008082,"1,023.49",Letter Post,Programme
HM Land Registry,HM Land Registry,13/05/2021,Letter Post,Facilities,Royal Mail,6008082,209.45,Letter Post,Programme
HM Land Registry,HM Land Registry,13/05/2021,Letter Post,Facilities,Royal Mail,6008082,"2,662.90",Letter Post,Programme
HM Land Registry,HM Land Registry,13/05/2021,Letter Post,Facilities,Royal Mail,6008082,527.65,Letter Post,Programme
HM Land Registry,HM Land Registry,13/05/2021,Letter Post,Facilities,Royal Mail,6008082,2.04,Letter Post,Programme
HM Land Registry,HM Land Registry,13/05/2021,Letter Post,Facilities,Royal Mail,6008082,"37,366.32",Letter Post,Programme
HM Land Registry,HM Land Registry,13/05/2021,Letter Post,Facilities,Royal Mail,6008082,19.60,Letter Post,Programme
HM Land Registry,HM Land Registry,13/05/2021,Letter Post,Facilities,Royal Mail,6008082,124.86,Letter Post,Programme
HM Land Registry,HM Land Registry,13/05/2021,Letter Post,Facilities,Royal Mail,6008082,1.60,Letter Post,Programme
HM Land Registry,HM Land Registry,13/05/2021,Letter Post,Facilities,Royal Mail,6008082,"1,003.46",Letter Post,Programme
HM Land Registry,HM Land Registry,13/05/2021,Letter Post,Facilities,Royal Mail,6008082,122.76,Letter Post,Programme
HM Land Registry,HM Land Registry,13/05/2021,Letter Post,Facilities,Royal Mail,6008082,315.15,Letter Post,Programme
HM Land Registry,HM Land Registry,13/05/2021,Letter Post,Facilities,Royal Mail,6008082,"4,318.53",Letter Post,Programme
HM Land Registry,HM Land Registry,13/05/2021,Letter Post,Facilities,Royal Mail,6008082,20.60,Letter Post,Programme
HM Land Registry,HM Land Registry,13/05/2021,Letter Post,Facilities,Royal Mail,6008082,"2,441.51",Letter Post,Programme
HM Land Registry,HM Land Registry,13/05/2021,Letter Post,Facilities,Royal Mail,6008082,76.00,Letter Post,Programme
HM Land Registry,HM Land Registry,13/05/2021,Letter Post,Facilities,Royal Mail,6008082,"4,760.15",Letter Post,Programme
HM Land Registry,HM Land Registry,13/05/2021,Letter Post,Facilities,Royal Mail,6008082,17.60,Letter Post,Programme
HM Land Registry,HM Land Registry,13/05/2021,Letter Post,Facilities,Royal Mail,6008082,121.90,Letter Post,Programme
HM Land Registry,HM Land Registry,13/05/2021,Letter Post,Facilities,Royal Mail,6008082,86.71,Letter Post,Programme
HM Land Registry,HM Land Registry,13/05/2021,Letter Post,Facilities,Royal Mail,6008082,2.45,Letter Post,Programme
HM Land Registry,HM Land Registry,13/05/2021,Letter Post,Facilities,Royal Mail,6008082,4.78,Letter Post,Programme
HM Land Registry,HM Land Registry,24/05/2021,"FF&F:Purchases <1,000",Facilities,Senator International Ltd,6008156,-375.64,"FF&F:Purchases <1,000",Programme
HM Land Registry,HM Land Registry,24/05/2021,"FF&F:Purchases <1,000",Facilities,Senator International Ltd,6008156,-75.13,"FF&F:Purchases <1,000",Programme
HM Land Registry,HM Land Registry,24/05/2021,"FF&F:Purchases <1,000",Facilities,Senator International Ltd,6008156,"21,867.57","FF&F:Purchases <1,000",Programme
HM Land Registry,HM Land Registry,24/05/2021,"FF&F:Purchases <1,000",Facilities,Senator International Ltd,6008156,"4,373.51","FF&F:Purchases <1,000",Programme
HM Land Registry,HM Land Registry,24/05/2021,"FF&F:Purchases <1,000",Facilities,Senator International Ltd,6008156,"3,333.98","FF&F:Purchases <1,000",Programme
HM Land Registry,HM Land Registry,24/05/2021,"FF&F:Purchases <1,000",Facilities,Senator International Ltd,6008156,666.80,"FF&F:Purchases <1,000",Programme
HM Land Registry,HM Land Registry,27/05/2021,"FF&F:Purchases <1,000",Facilities,SouthernsBroadstock Limited,6008204,"254,087.00","FF&F:Purchases <1,000",Programme
HM Land Registry,HM Land Registry,27/05/2021,"FF&F:Purchases <1,000",Facilities,SouthernsBroadstock Limited,6008204,"50,817.40","FF&F:Purchases <1,000",Programme
HM Land Registry,HM Land Registry,13/05/2021,Assets in the Course of Construction,Transformation Change Activities,Sparta Global Ltd,6008084,"5,000.00",Assets in the Course of Construction,Programme
HM Land Registry,HM Land Registry,13/05/2021,Assets in the Course of Construction,Transformation Change Activities,Sparta Global Ltd,6008084,"1,000.00",Assets in the Course of Construction,Programme
HM Land Registry,HM Land Registry,13/05/2021,Assets in the Course of Construction,Transformation Change Activities,Sparta Global Ltd,6008084,"5,000.00",Assets in the Course of Construction,Programme
